Nominativi dei beneficiari;Data mandato;Natura economica;Importo;Descrizione mandato;N. mandato;TITNO_BL;2� liv.;3� liv.;4� liv.;5� liv.
ERARIO DELLO STATO PER PAGAMENTO I.V.A.;10/01/2017;Versamenti IVA a debito per le gestioni commerciali;13.103,81;PAGAMENTO IVA A DEBITO SERVIZI COMMERCIALI  2016 MESE DI DICEMBRE ;2;1;10;3;1;1
AGOSTELLI CHIARA;12/01/2017;Altre spese per consultazioni elettorali dell'ente;104,00;REFERENDUM 4 DICEMBRE 2016 - COMPETENZE DEI COMPONENTI DI SEGGIO - IMPEGNO DI SPESA SEGGIO 1;6;1;3;2;99;4
ALDERIGHI ALICE;12/01/2017;Altre spese per consultazioni elettorali dell'ente;104,00;REFERENDUM 4 DICEMBRE 2016 - COMPETENZE DEI COMPONENTI DI SEGGIO - IMPEGNO DI SPESA SEGGIO 3;6;1;3;2;99;4
ALLEGRI MATTIA;12/01/2017;Altre spese per consultazioni elettorali dell'ente;104,00;REFERENDUM 4 DICEMBRE 2016 - COMPETENZE DEI COMPONENTI DI SEGGIO - IMPEGNO DI SPESA SEGGIO 1;6;1;3;2;99;4
AMMANNATI LETIZIA;12/01/2017;Altre spese per consultazioni elettorali dell'ente;104,00;REFERENDUM 4 DICEMBRE 2016 - COMPETENZE DEI COMPONENTI DI SEGGIO - IMPEGNO DI SPESA SEGGIO 4;6;1;3;2;99;4
ANGELUCCI MARCO;12/01/2017;Altre spese per consultazioni elettorali dell'ente;104,00;REFERENDUM 4 DICEMBRE 2016 - COMPETENZE DEI COMPONENTI DI SEGGIO - IMPEGNO DI SPESA SEGGIO 13;6;1;3;2;99;4
ANSELMO ROSA;12/01/2017;Altre spese per consultazioni elettorali dell'ente;104,00;REFERENDUM 4 DICEMBRE 2016 - COMPETENZE DEI COMPONENTI DI SEGGIO - IMPEGNO DI SPESA SEGGIO 7;6;1;3;2;99;4
BALDUCCI DESDEMONA;12/01/2017;Altre spese per consultazioni elettorali dell'ente;130,00;REFERENDUM 4 DICEMBRE 2016 - COMPETENZE DEI COMPONENTI DI SEGGIO - IMPEGNO DI SPESA SEGGIO 11;6;1;3;2;99;4
BALZACCHI SERENA;12/01/2017;Altre spese per consultazioni elettorali dell'ente;104,00;REFERENDUM 4 DICEMBRE 2016 - COMPETENZE DEI COMPONENTI DI SEGGIO - IMPEGNO DI SPESA SEGGIO 2;6;1;3;2;99;4
BANDECCHI BRENDA;12/01/2017;Altre spese per consultazioni elettorali dell'ente;104,00;REFERENDUM 4 DICEMBRE 2016 - COMPETENZE DEI COMPONENTI DI SEGGIO - IMPEGNO DI SPESA SEGGIO 5;6;1;3;2;99;4
BARONTI  CARLO;12/01/2017;Altre spese per consultazioni elettorali dell'ente;130,00;REFERENDUM 4 DICEMBRE 2016 - COMPETENZE DEI COMPONENTI DI SEGGIO - IMPEGNO DI SPESA SEGGIO 9;6;1;3;2;99;4
BARTALUCCI  DEBORA;12/01/2017;Altre spese per consultazioni elettorali dell'ente;104,00;REFERENDUM 4 DICEMBRE 2016 - COMPETENZE DEI COMPONENTI DI SEGGIO - IMPEGNO DI SPESA SEGGIO 11;6;1;3;2;99;4
BARTOLI FRANCESCA;12/01/2017;Altre spese per consultazioni elettorali dell'ente;104,00;REFERENDUM 4 DICEMBRE 2016 - COMPETENZE DEI COMPONENTI DI SEGGIO - IMPEGNO DI SPESA SEGGIO 11;6;1;3;2;99;4
BECONCINI FABIO;12/01/2017;Altre spese per consultazioni elettorali dell'ente;130,00;REFERENDUM 4 DICEMBRE 2016 - COMPETENZE DEI COMPONENTI DI SEGGIO - IMPEGNO DI SPESA SEGGIO 13;6;1;3;2;99;4
BERTINI GIULIA;12/01/2017;Altre spese per consultazioni elettorali dell'ente;130,00;REFERENDUM 4 DICEMBRE 2016 - COMPETENZE DEI COMPONENTI DI SEGGIO - IMPEGNO DI SPESA SEGGIO 8;6;1;3;2;99;4
BERTINI MATTIA;12/01/2017;Altre spese per consultazioni elettorali dell'ente;104,00;REFERENDUM 4 DICEMBRE 2016 - COMPETENZE DEI COMPONENTI DI SEGGIO - IMPEGNO DI SPESA SEGGIO 7;6;1;3;2;99;4
BIANCONI MANOLA;12/01/2017;Altre spese per consultazioni elettorali dell'ente;104,00;REFERENDUM 4 DICEMBRE 2016 - COMPETENZE DEI COMPONENTI DI SEGGIO - IMPEGNO DI SPESA SEGGIO 2;6;1;3;2;99;4
BIONDI ENRICA;12/01/2017;Altre spese per consultazioni elettorali dell'ente;104,00;REFERENDUM 4 DICEMBRE 2016 - COMPETENZE DEI COMPONENTI DI SEGGIO - IMPEGNO DI SPESA SEGGIO 14;6;1;3;2;99;4
BISCARDI SANDRA;12/01/2017;Altre spese per consultazioni elettorali dell'ente;130,00;REFERENDUM 4 DICEMBRE 2016 - COMPETENZE DEI COMPONENTI DI SEGGIO - IMPEGNO DI SPESA SEGGIO 14;6;1;3;2;99;4
BOLDRINI MONICA;12/01/2017;Altre spese per consultazioni elettorali dell'ente;104,00;REFERENDUM 4 DICEMBRE 2016 - COMPETENZE DEI COMPONENTI DI SEGGIO - IMPEGNO DI SPESA SEGGIO 9;6;1;3;2;99;4
BUSCIONI MASSIMO;12/01/2017;Altre spese per consultazioni elettorali dell'ente;104,00;REFERENDUM 4 DICEMBRE 2016 - COMPETENZE DEI COMPONENTI DI SEGGIO - IMPEGNO DI SPESA SEGGIO 15;6;1;3;2;99;4
BUSCIONI MAURIZIO;12/01/2017;Altre spese per consultazioni elettorali dell'ente;104,00;REFERENDUM 4 DICEMBRE 2016 - COMPETENZE DEI COMPONENTI DI SEGGIO - IMPEGNO DI SPESA SEGGIO 12;6;1;3;2;99;4
BUSONI ANNA;12/01/2017;Altre spese per consultazioni elettorali dell'ente;130,00;REFERENDUM 4 DICEMBRE 2016 - COMPETENZE DEI COMPONENTI DI SEGGIO - IMPEGNO DI SPESA SEGGIO 12;6;1;3;2;99;4
CAPPELLINI DANIELA;12/01/2017;Altre spese per consultazioni elettorali dell'ente;130,00;REFERENDUM 4 DICEMBRE 2016 - COMPETENZE DEI COMPONENTI DI SEGGIO - IMPEGNO DI SPESA SEGGIO 5;6;1;3;2;99;4
CENI GIANNI;12/01/2017;Altre spese per consultazioni elettorali dell'ente;104,00;REFERENDUM 4 DICEMBRE 2016 - COMPETENZE DEI COMPONENTI DI SEGGIO - IMPEGNO DI SPESA SEGGIO 15;6;1;3;2;99;4
CIOLI ANDREA;12/01/2017;Altre spese per consultazioni elettorali dell'ente;104,00;REFERENDUM 4 DICEMBRE 2016 - COMPETENZE DEI COMPONENTI DI SEGGIO - IMPEGNO DI SPESA SEGGIO 15;6;1;3;2;99;4
CIURO EMANUEL;12/01/2017;Altre spese per consultazioni elettorali dell'ente;104,00;REFERENDUM 4 DICEMBRE 2016 - COMPETENZE DEI COMPONENTI DI SEGGIO - IMPEGNO DI SPESA SEGGIO 15;6;1;3;2;99;4
CUSIN IRENE;12/01/2017;Altre spese per consultazioni elettorali dell'ente;104,00;REFERENDUM 4 DICEMBRE 2016 - COMPETENZE DEI COMPONENTI DI SEGGIO - IMPEGNO DI SPESA SEGGIO 3;6;1;3;2;99;4
DONDOLINI LEONARDO;12/01/2017;Altre spese per consultazioni elettorali dell'ente;130,00;REFERENDUM 4 DICEMBRE 2016 - COMPETENZE DEI COMPONENTI DI SEGGIO - IMPEGNO DI SPESA SEGGIO 1;6;1;3;2;99;4
FRATINI LUCIA;12/01/2017;Altre spese per consultazioni elettorali dell'ente;104,00;REFERENDUM 4 DICEMBRE 2016 - COMPETENZE DEI COMPONENTI DI SEGGIO - IMPEGNO DI SPESA SEGGIO 10;6;1;3;2;99;4
FRESE NADIA;12/01/2017;Altre spese per consultazioni elettorali dell'ente;130,00;REFERENDUM 4 DICEMBRE 2016 - COMPETENZE DEI COMPONENTI DI SEGGIO - IMPEGNO DI SPESA SEGGIO 6;6;1;3;2;99;4
GIACOMELLI  RICCARDO;12/01/2017;Altre spese per consultazioni elettorali dell'ente;104,00;REFERENDUM 4 DICEMBRE 2016 - COMPETENZE DEI COMPONENTI DI SEGGIO - IMPEGNO DI SPESA SEGGIO 11;6;1;3;2;99;4
GIGLI CHIARA;12/01/2017;Altre spese per consultazioni elettorali dell'ente;104,00;REFERENDUM 4 DICEMBRE 2016 - COMPETENZE DEI COMPONENTI DI SEGGIO - IMPEGNO DI SPESA SEGGIO 2;6;1;3;2;99;4
GIRALDI DOMITILLA;12/01/2017;Altre spese per consultazioni elettorali dell'ente;104,00;REFERENDUM 4 DICEMBRE 2016 - COMPETENZE DEI COMPONENTI DI SEGGIO - IMPEGNO DI SPESA SEGGIO 13;6;1;3;2;99;4
IANNUZZI MATTIA;12/01/2017;Altre spese per consultazioni elettorali dell'ente;130,00;REFERENDUM 4 DICEMBRE 2016 - COMPETENZE DEI COMPONENTI DI SEGGIO - IMPEGNO DI SPESA SEGGIO 7;6;1;3;2;99;4
INNOCENTI TIZIANA;12/01/2017;Altre spese per consultazioni elettorali dell'ente;104,00;REFERENDUM 4 DICEMBRE 2016 - COMPETENZE DEI COMPONENTI DI SEGGIO - IMPEGNO DI SPESA SEGGIO 3;6;1;3;2;99;4
LA VECCHIA LORENZO;12/01/2017;Altre spese per consultazioni elettorali dell'ente;104,00;REFERENDUM 4 DICEMBRE 2016 - COMPETENZE DEI COMPONENTI DI SEGGIO - IMPEGNO DI SPESA SEGGIO 6;6;1;3;2;99;4
LASSI GIANNI;12/01/2017;Altre spese per consultazioni elettorali dell'ente;104,00;REFERENDUM 4 DICEMBRE 2016 - COMPETENZE DEI COMPONENTI DI SEGGIO - IMPEGNO DI SPESA SEGGIO 6;6;1;3;2;99;4
LUCARELLI FEDERICA;12/01/2017;Altre spese per consultazioni elettorali dell'ente;104,00;REFERENDUM 4 DICEMBRE 2016 - COMPETENZE DEI COMPONENTI DI SEGGIO - IMPEGNO DI SPESA SEGGIO 6;6;1;3;2;99;4
LUCARELLI STEFANIA;12/01/2017;Altre spese per consultazioni elettorali dell'ente;104,00;REFERENDUM 4 DICEMBRE 2016 - COMPETENZE DEI COMPONENTI DI SEGGIO - IMPEGNO DI SPESA SEGGIO 1;6;1;3;2;99;4
LUPI ILARIA;12/01/2017;Altre spese per consultazioni elettorali dell'ente;104,00;REFERENDUM 4 DICEMBRE 2016 - COMPETENZE DEI COMPONENTI DI SEGGIO - IMPEGNO DI SPESA SEGGIO 5;6;1;3;2;99;4
MAESTRINI VITTORIA;12/01/2017;Altre spese per consultazioni elettorali dell'ente;104,00;REFERENDUM 4 DICEMBRE 2016 - COMPETENZE DEI COMPONENTI DI SEGGIO - IMPEGNO DI SPESA SEGGIO 9;6;1;3;2;99;4
MANCINI ANTONIO;12/01/2017;Altre spese per consultazioni elettorali dell'ente;130,00;REFERENDUM 4 DICEMBRE 2016 - COMPETENZE DEI COMPONENTI DI SEGGIO - IMPEGNO DI SPESA SEGGIO 10;6;1;3;2;99;4
MANNARINO FEDERICA;12/01/2017;Altre spese per consultazioni elettorali dell'ente;104,00;REFERENDUM 4 DICEMBRE 2016 - COMPETENZE DEI COMPONENTI DI SEGGIO - IMPEGNO DI SPESA SEGGIO 9;6;1;3;2;99;4
MARCELLI DANTE;12/01/2017;Altre spese per consultazioni elettorali dell'ente;104,00;REFERENDUM 4 DICEMBRE 2016 - COMPETENZE DEI COMPONENTI DI SEGGIO - IMPEGNO DI SPESA SEGGIO 8;6;1;3;2;99;4
MAZZANTINI PAOLA;12/01/2017;Altre spese per consultazioni elettorali dell'ente;104,00;REFERENDUM 4 DICEMBRE 2016 - COMPETENZE DEI COMPONENTI DI SEGGIO - IMPEGNO DI SPESA SEGGIO 13;6;1;3;2;99;4
MAZZOLI  GIACOMO;12/01/2017;Altre spese per consultazioni elettorali dell'ente;104,00;REFERENDUM 4 DICEMBRE 2016 - COMPETENZE DEI COMPONENTI DI SEGGIO - IMPEGNO DI SPESA SEGGIO 6;6;1;3;2;99;4
MELANI MITA;12/01/2017;Altre spese per consultazioni elettorali dell'ente;104,00;REFERENDUM 4 DICEMBRE 2016 - COMPETENZE DEI COMPONENTI DI SEGGIO - IMPEGNO DI SPESA SEGGIO 12;6;1;3;2;99;4
MENICHETTI PAOLA;12/01/2017;Altre spese per consultazioni elettorali dell'ente;104,00;REFERENDUM 4 DICEMBRE 2016 - COMPETENZE DEI COMPONENTI DI SEGGIO - IMPEGNO DI SPESA SEGGIO 5;6;1;3;2;99;4
MEOZZI GIULIA;12/01/2017;Altre spese per consultazioni elettorali dell'ente;104,00;REFERENDUM 4 DICEMBRE 2016 - COMPETENZE DEI COMPONENTI DI SEGGIO - IMPEGNO DI SPESA SEGGIO 12;6;1;3;2;99;4
MERLO ANDREA;12/01/2017;Altre spese per consultazioni elettorali dell'ente;104,00;REFERENDUM 4 DICEMBRE 2016 - COMPETENZE DEI COMPONENTI DI SEGGIO - IMPEGNO DI SPESA SEGGIO 2;6;1;3;2;99;4
MICHELUCCI GIANMARCO;12/01/2017;Altre spese per consultazioni elettorali dell'ente;104,00;REFERENDUM 4 DICEMBRE 2016 - COMPETENZE DEI COMPONENTI DI SEGGIO - IMPEGNO DI SPESA SEGGIO 14;6;1;3;2;99;4
MORELLI NICCOLO';12/01/2017;Altre spese per consultazioni elettorali dell'ente;104,00;REFERENDUM 4 DICEMBRE 2016 - COMPETENZE DEI COMPONENTI DI SEGGIO - IMPEGNO DI SPESA SEGGIO 3;6;1;3;2;99;4
MORLANDI PAOLA;12/01/2017;Altre spese per consultazioni elettorali dell'ente;130,00;REFERENDUM 4 DICEMBRE 2016 - COMPETENZE DEI COMPONENTI DI SEGGIO - IMPEGNO DI SPESA SEGGIO 3;6;1;3;2;99;4
NARDI NICCOLO';12/01/2017;Altre spese per consultazioni elettorali dell'ente;104,00;REFERENDUM 4 DICEMBRE 2016 - COMPETENZE DEI COMPONENTI DI SEGGIO - IMPEGNO DI SPESA SEGGIO 4;6;1;3;2;99;4
NINCI GREGORIO;12/01/2017;Altre spese per consultazioni elettorali dell'ente;104,00;REFERENDUM 4 DICEMBRE 2016 - COMPETENZE DEI COMPONENTI DI SEGGIO - IMPEGNO DI SPESA SEGGIO 12;6;1;3;2;99;4
PALANDRI LUIGI;12/01/2017;Altre spese per consultazioni elettorali dell'ente;130,00;REFERENDUM 4 DICEMBRE 2016 - COMPETENZE DEI COMPONENTI DI SEGGIO - IMPEGNO DI SPESA SEGGIO 4;6;1;3;2;99;4
PASQUALI OLIVIA;12/01/2017;Altre spese per consultazioni elettorali dell'ente;104,00;REFERENDUM 4 DICEMBRE 2016 - COMPETENZE DEI COMPONENTI DI SEGGIO - IMPEGNO DI SPESA SEGGIO 13;6;1;3;2;99;4
PASQUINUCCI ALESSIA;12/01/2017;Altre spese per consultazioni elettorali dell'ente;104,00;REFERENDUM 4 DICEMBRE 2016 - COMPETENZE DEI COMPONENTI DI SEGGIO - IMPEGNO DI SPESA SEGGIO 11;6;1;3;2;99;4
PERUZZI SERENA;12/01/2017;Altre spese per consultazioni elettorali dell'ente;104,00;REFERENDUM 4 DICEMBRE 2016 - COMPETENZE DEI COMPONENTI DI SEGGIO - IMPEGNO DI SPESA SEGGIO 14;6;1;3;2;99;4
PEZZATINI NICOLA;12/01/2017;Altre spese per consultazioni elettorali dell'ente;104,00;REFERENDUM 4 DICEMBRE 2016 - COMPETENZE DEI COMPONENTI DI SEGGIO - IMPEGNO DI SPESA SEGGIO 14;6;1;3;2;99;4
PICCINI ELEONORA;12/01/2017;Altre spese per consultazioni elettorali dell'ente;130,00;REFERENDUM 4 DICEMBRE 2016 - COMPETENZE DEI COMPONENTI DI SEGGIO - IMPEGNO DI SPESA SEGGIO 2;6;1;3;2;99;4
PROSPERI MARTINA;12/01/2017;Altre spese per consultazioni elettorali dell'ente;104,00;REFERENDUM 4 DICEMBRE 2016 - COMPETENZE DEI COMPONENTI DI SEGGIO - IMPEGNO DI SPESA SEGGIO 7;6;1;3;2;99;4
RAFFI NICO;12/01/2017;Altre spese per consultazioni elettorali dell'ente;104,00;REFERENDUM 4 DICEMBRE 2016 - COMPETENZE DEI COMPONENTI DI SEGGIO - IMPEGNO DI SPESA SEGGIO 8;6;1;3;2;99;4
REALE ALESSIO;12/01/2017;Altre spese per consultazioni elettorali dell'ente;104,00;REFERENDUM 4 DICEMBRE 2016 - COMPETENZE DEI COMPONENTI DI SEGGIO - IMPEGNO DI SPESA SEGGIO 5;6;1;3;2;99;4
RUGGERI FEDERICO;12/01/2017;Altre spese per consultazioni elettorali dell'ente;104,00;REFERENDUM 4 DICEMBRE 2016 - COMPETENZE DEI COMPONENTI DI SEGGIO - IMPEGNO DI SPESA SEGGIO 9;6;1;3;2;99;4
SALERNO ANTONELLA GRAZIA;12/01/2017;Altre spese per consultazioni elettorali dell'ente;104,00;REFERENDUM 4 DICEMBRE 2016 - COMPETENZE DEI COMPONENTI DI SEGGIO - IMPEGNO DI SPESA SEGGIO 10;6;1;3;2;99;4
SANTINI ELISABETTA;12/01/2017;Altre spese per consultazioni elettorali dell'ente;104,00;REFERENDUM 4 DICEMBRE 2016 - COMPETENZE DEI COMPONENTI DI SEGGIO - IMPEGNO DI SPESA SEGGIO 10;6;1;3;2;99;4
SCARDIGLI ANDREA;12/01/2017;Altre spese per consultazioni elettorali dell'ente;104,00;REFERENDUM 4 DICEMBRE 2016 - COMPETENZE DEI COMPONENTI DI SEGGIO - IMPEGNO DI SPESA SEGGIO 4;6;1;3;2;99;4
SIMEONE ROBERTA;12/01/2017;Altre spese per consultazioni elettorali dell'ente;104,00;REFERENDUM 4 DICEMBRE 2016 - COMPETENZE DEI COMPONENTI DI SEGGIO - IMPEGNO DI SPESA SEGGIO 1;6;1;3;2;99;4
SINACORI GABRIELE;12/01/2017;Altre spese per consultazioni elettorali dell'ente;104,00;REFERENDUM 4 DICEMBRE 2016 - COMPETENZE DEI COMPONENTI DI SEGGIO - IMPEGNO DI SPESA SEGGIO 8;6;1;3;2;99;4
TRISTAINO ALIDA;12/01/2017;Altre spese per consultazioni elettorali dell'ente;104,00;REFERENDUM 4 DICEMBRE 2016 - COMPETENZE DEI COMPONENTI DI SEGGIO - IMPEGNO DI SPESA SEGGIO 10;6;1;3;2;99;4
VALENTI ALESSIO;12/01/2017;Altre spese per consultazioni elettorali dell'ente;104,00;REFERENDUM 4 DICEMBRE 2016 - COMPETENZE DEI COMPONENTI DI SEGGIO - IMPEGNO DI SPESA SEGGIO 4;6;1;3;2;99;4
VEZZOSI GIULIO;12/01/2017;Altre spese per consultazioni elettorali dell'ente;104,00;REFERENDUM 4 DICEMBRE 2016 - COMPETENZE DEI COMPONENTI DI SEGGIO - IMPEGNO DI SPESA SEGGIO 8;6;1;3;2;99;4
VITI AISCIA;12/01/2017;Altre spese per consultazioni elettorali dell'ente;104,00;REFERENDUM 4 DICEMBRE 2016 - COMPETENZE DEI COMPONENTI DI SEGGIO - IMPEGNO DI SPESA SEGGIO 7;6;1;3;2;99;4
VITI CHIARA;12/01/2017;Altre spese per consultazioni elettorali dell'ente;104,00;REFERENDUM 4 DICEMBRE 2016 - COMPETENZE DEI COMPONENTI DI SEGGIO - IMPEGNO DI SPESA SEGGIO 11;6;1;3;2;99;4
VOLPI GIADA;12/01/2017;Altre spese per consultazioni elettorali dell'ente;130,00;REFERENDUM 4 DICEMBRE 2016 - COMPETENZE DEI COMPONENTI DI SEGGIO - IMPEGNO DI SPESA SEGGIO 15;6;1;3;2;99;4
ARNO MANETTI ASCENSORI S.R.L.;16/01/2017;Manutenzione ordinaria e riparazioni di beni immobili;2.279,31;IVA-Liqu. Fatt. Nr. 3617  del 31/10/2016 (di cui Split per euro 2.279,31) - MANUTENZIONE EXTRACANONE Imp. Ascensore Uffici Spicchio, Villa Reghini, RSA, Sc. prim. e sec. 1� grado Vinci, Sc. sec. 1� grado Sovigliana, Sc. infanzia Sovigl Fatt;7;1;3;2;9;8
ARNO MANETTI ASCENSORI S.R.L.;16/01/2017;Manutenzione ordinaria e riparazioni di beni immobili;10.360,50;Liquidazione Fattura Nr. 3617  del 31/10/2016 - MANUTENZIONE EXTRACANONE Imp. Ascensore Uffici Spicchio, Villa Reghini, RSA, Sc. prim. e sec. 1� grado Vinci, Sc. sec. 1� grado Sovigliana, Sc. infanzia Sovigliana;7;1;3;2;9;8
SCOTTI S.P.A.;16/01/2017;Manutenzione ordinaria e riparazioni di mezzi di trasporto ad uso civile, di sicurezza e ordine pubblico;109,04;IVA - Liquidazione Fattura Nr. 102/1  del 09/11/2016 (di cui Split per euro 109,04) - RIPARAZIONE E TAGLIANDO FIAT PANDA VAN TARGATA DJ742DC _ DETERMINA A CONTRARRE E AFFIDAMENTO DITTA SCOTTI SPA;8;1;3;2;9;1
SCOTTI S.P.A.;16/01/2017;Manutenzione ordinaria e riparazioni di mezzi di trasporto ad uso civile, di sicurezza e ordine pubblico;10,22;IVA - Liquidazione Fattura Nr. 86/1  del 13/10/2016 (di cui Split per euro 10,22) - REVISIONE FIAT SEICENTO TARGATA DR856SH _ DETERMINA A CONTRARRE E AFFIDAMENTO DITTA SCOTTI S.P.A.;8;1;3;2;9;1
SCOTTI S.P.A.;16/01/2017;Manutenzione ordinaria e riparazioni di mezzi di trasporto ad uso civile, di sicurezza e ordine pubblico;495,64;Liquidazione Fattura Nr. 102/1  del 09/11/2016 - RIPARAZIONE E TAGLIANDO FIAT PANDA VAN TARGATA DJ742DC _ DETERMINA A CONTRARRE E AFFIDAMENTO DITTA SCOTTI SPA;8;1;3;2;9;1
SCOTTI S.P.A.;16/01/2017;Manutenzione ordinaria e riparazioni di mezzi di trasporto ad uso civile, di sicurezza e ordine pubblico;56,66;Liquidazione Fattura Nr. 86/1  del 13/10/2016 - REVISIONE FIAT SEICENTO TARGATA DR856SH _ DETERMINA A CONTRARRE E AFFIDAMENTO DITTA SCOTTI S.P.A.;8;1;3;2;9;1
MATERIALI EDILI BALDACCI DI BALDACCI RENATO E C. SNC;16/01/2017;Altri beni e materiali di consumo n.a.c.;4,65;IVA - Liquidazione Fattura Nr. 1361  del 31/10/2016 (di cui Split per euro 4,65) - FONITURA MATERIALE EDILE CIMITERO VINCI;9;1;3;1;2;999
MATERIALI EDILI BALDACCI DI BALDACCI RENATO E C. SNC;16/01/2017;Altri beni e materiali di consumo n.a.c.;21,14;Liquidazione Fattura Nr. 1361  del 31/10/2016 - FONITURA MATERIALE EDILE CIMITERO VINCI;9;1;3;1;2;999
GERARDO MANCINI LAVORAZIONE IN FERRO;16/01/2017;Beni immobili n.a.c.;88,00;IVA - Liquidazione Fattura Nr. 05  del 31/10/2016 (di cui Split per euro 88,00) - Stuttura metallica per il supporto di piante arborie presso il parco giochi in Piazza Garibaldi Vinci;10;2;2;1;9;999
GERARDO MANCINI LAVORAZIONE IN FERRO;16/01/2017;Beni immobili n.a.c.;400,00;Liquidazione Fattura Nr. 05  del 31/10/2016 - Stuttura metallica per il supporto di piante arborie presso il parco giochi in Piazza Garibaldi Vinci;10;2;2;1;9;999
COOPERATIVA SOCIALE ZOE S.C.A.R.L.;16/01/2017;Servizi di pulizia e lavanderia;200,57;IVA Liquidazione Fattura Nr. FATTPA 224_16  del 31/10/2016 (di cui Split per euro 200,57) - PULIZIA EDIFICI COMUNALI OTTOBRE 2016;11;1;3;2;13;2
COOPERATIVA SOCIALE ZOE S.C.A.R.L.;16/01/2017;Servizi di pulizia e lavanderia;911,68;Liquidazione Fattura Nr. FATTPA 224_16  del 31/10/2016 - PULIZIA EDIFICI COMUNALI OTTOBRE 2016;11;1;3;2;13;2
ACCA SOFTWARE S.P.A.;16/01/2017;Gestione e manutenzione applicazioni;20,68;IVA - Liquidazione Fattura Nr. P000586/2016  del 08/11/2016 (di cui Split per euro 20,68) - AGGIORNAMENTO SOFTWARE APPLICATIVO PRIMUS-C CAPITOLATI - MEPA;12;1;3;2;19;1
ACCA SOFTWARE S.P.A.;16/01/2017;Gestione e manutenzione applicazioni;94,00;Liquidazione Fattura Nr. P000586/2016  del 08/11/2016 - AGGIORNAMENTO SOFTWARE APPLICATIVO PRIMUS-C CAPITOLATI - MEPA;12;1;3;2;19;1
ARCA - COOPERATIVA SOCIALE A R.L.;16/01/2017;Contratti di servizio di asilo nido;1.403,39;IVA-Liquid. Fattura Nr. E-1248  del 10/11/2016 (di cui Split per euro 1.403,39) - GESTIONE NIDO COMUNALE ES. 2016 -- COSTO DEL SERVIZIO EDUCATIVO MESE DI OTTOBRE 2016 Fattura Nr. E-1248 del 10-11-2016;13;1;3;2;15;10
ARCA - COOPERATIVA SOCIALE A R.L.;16/01/2017;Contratti di servizio di asilo nido;35.084,67;Liquidazione Fattura Nr. E-1248  del 10/11/2016 - GESTIONE NIDO COMUNALE ES. 2016 -- COSTO DEL SERVIZIO EDUCATIVO MESE DI OTTOBRE 2016;13;1;3;2;15;10
ACQUE S.P.A.;16/01/2017;Acqua;0,11;IVA - Liquidazione Fattura Nr. 6016012000007798  del 22/12/2016 (di cui Split per euro 0,11) - FORNITURA ACQUA POTABILE COMUNE;14;1;3;2;5;5
ACQUE S.P.A.;16/01/2017;Acqua;1,11;Liquidazione Fattura Nr. 6016012000007798  del 22/12/2016 - FORNITURA ACQUA POTABILE COMUNE;14;1;3;2;5;5
ACQUE S.P.A.;16/01/2017;Acqua;2,16;IVA - Liquidazione Fattura Nr. 6016012000007806  del 22/12/2016 (di cui Split per euro 2,16) - FORNITURA ACQUA POTABILE UFFICI;15;1;3;2;5;5
ACQUE S.P.A.;16/01/2017;Acqua;21,62;Liquidazione Fattura Nr. 6016012000007806  del 22/12/2016 - FORNITURA ACQUA POTABILE UFFICI;15;1;3;2;5;5
ACQUE S.P.A.;16/01/2017;Acqua;24,48;IVA - Liquidazione Fattura Nr. 6016012000007808  del 22/12/2016 (di cui Split per euro 24,48) - FORNITURA ACQUA POTABILE SCUOLA INFANZIA VINCI;16;1;3;2;5;5
ACQUE S.P.A.;16/01/2017;Acqua;244,77;Liquidazione Fattura Nr. 6016012000007808  del 22/12/2016 - FORNITURA ACQUA POTABILE SCUOLA INFANZIA VINCI;16;1;3;2;5;5
ACQUE S.P.A.;16/01/2017;Acqua;1,23;IVA - Liquidazione Fattura Nr. 6016012000007895  del 23/12/2016 (di cui Split per euro 1,23) - FORNITURA ACQUA POTABILE SCUOLA PRIMARIA VINCI;17;1;3;2;5;5
ACQUE S.P.A.;16/01/2017;Acqua;12,32;Liquidazione Fattura Nr. 6016012000007895  del 23/12/2016 - FORNITURA ACQUA POTABILE SCUOLA PRIMARIA VINCI;17;1;3;2;5;5
ACQUE S.P.A.;16/01/2017;Acqua;1,49;IVA - Liquidazione Fattura Nr. 6016012000007799  del 22/12/2016 (di cui Split per euro 1,49) - FORNITURA ACQUA POTABILE BIBLIOTECA;18;1;3;2;5;5
ACQUE S.P.A.;16/01/2017;Acqua;14,94;"Liquidazione Fattura Nr. 6016012000007799  del 22/12/2016 - FORNITURA ACQUA POTABILE BIBLIOTECA
";18;1;3;2;5;5
ACQUE S.P.A.;16/01/2017;Acqua;33,14;IVA - Liquidazione Fattura Nr. 6016012000007715  del 21/12/2016 (di cui Split per euro 33,14) - FORNITURA ACQUA POTABILE ROTATORIA VIA MARTIRI;19;1;3;2;5;5
ACQUE S.P.A.;16/01/2017;Acqua;0,09;IVA - Liquidazione Fattura Nr. 6016012000007718  del 21/12/2016 (di cui Split per euro 0,09) - FORNITURA ACQUA POTABILE IDRANTE VIA PROVINCIALE DI MERCATALE;19;1;3;2;5;5
ACQUE S.P.A.;16/01/2017;Acqua;0,90;IVA - Liquidazione Fattura Nr. 6016012000007800  del 22/12/2016 (di cui Split per euro 0,90) - FORNITURA ACQUA POTABILE FONTANELLO VIA VAL PUSTERIA;19;1;3;2;5;5
ACQUE S.P.A.;16/01/2017;Acqua;0,90;IVA - Liquidazione Fattura Nr. 6016012000007801  del 22/12/2016 (di cui Split per euro 0,90) - FORNITURA ACQUA POTABILE FONT. P.ZZA DELLA LIBERTA';19;1;3;2;5;5
ACQUE S.P.A.;16/01/2017;Acqua;8,17;IVA - Liquidazione Fattura Nr. 6016012000007802  del 22/12/2016 (di cui Split per euro 8,17) - FORNITURA ACQUA POTABILE FONT. VIA GIOVANNI XXIII;19;1;3;2;5;5
ACQUE S.P.A.;16/01/2017;Acqua;1,16;IVA - Liquidazione Fattura Nr. 6016012000007804  del 22/12/2016 (di cui Split per euro 1,16) - FORNITURA ACQUA POTABILE FONT. PIAZZA LEONARDO DA VINCI;19;1;3;2;5;5
ACQUE S.P.A.;16/01/2017;Acqua;73,92;IVA - Liquidazione Fattura Nr. 6016012000007859  del 23/12/2016 (di cui Split per euro 73,92) - FORNITURA ACQUA POTABILE FONTANA P.ZZA DEI GUIDI;19;1;3;2;5;5
ACQUE S.P.A.;16/01/2017;Acqua;0,92;IVA - Liquidazione Fattura Nr. 6016012000007897  del 23/12/2016 (di cui Split per euro 0,92) - FORNITURA ACQUA POTABILE FONT. VIA CERRETANA;19;1;3;2;5;5
ACQUE S.P.A.;16/01/2017;Acqua;0,60;IVA - Liquidazione Fattura Nr. 6016012000007899  del 23/12/2016 (di cui Split per euro 0,60) - FORNITURA ACQUA POTABILE FONT. VIA GIROLAMO CALVI;19;1;3;2;5;5
ACQUE S.P.A.;16/01/2017;Acqua;331,36;Liquidazione Fattura Nr. 6016012000007715  del 21/12/2016 - FORNITURA ACQUA POTABILE ROTATORIA VIA MARTIRI;19;1;3;2;5;5
ACQUE S.P.A.;16/01/2017;Acqua;0,93;Liquidazione Fattura Nr. 6016012000007718  del 21/12/2016 - FORNITURA ACQUA POTABILE IDRANTE VIA PROVINCIALE DI MERCATALE;19;1;3;2;5;5
ACQUE S.P.A.;16/01/2017;Acqua;8,96;Liquidazione Fattura Nr. 6016012000007800  del 22/12/2016 - FORNITURA ACQUA POTABILE FONTANELLO VIA VAL PUSTERIA;19;1;3;2;5;5
ACQUE S.P.A.;16/01/2017;Acqua;8,96;Liquidazione Fattura Nr. 6016012000007801  del 22/12/2016 - FORNITURA ACQUA POTABILE FONT. P.ZZA DELLA LIBERTA';19;1;3;2;5;5
ACQUE S.P.A.;16/01/2017;Acqua;81,71;Liquidazione Fattura Nr. 6016012000007802  del 22/12/2016 - FORNITURA ACQUA POTABILE FONT. VIA GIOVANNI XXIII;19;1;3;2;5;5
ACQUE S.P.A.;16/01/2017;Acqua;11,62;Liquidazione Fattura Nr. 6016012000007804  del 22/12/2016 - FORNITURA ACQUA POTABILE FONT. PIAZZA LEONARDO DA VINCI;19;1;3;2;5;5
ACQUE S.P.A.;16/01/2017;Acqua;739,22;Liquidazione Fattura Nr. 6016012000007859  del 23/12/2016 - FORNITURA ACQUA POTABILE FONTANA P.ZZA DEI GUIDI;19;1;3;2;5;5
ACQUE S.P.A.;16/01/2017;Acqua;9,18;Liquidazione Fattura Nr. 6016012000007897  del 23/12/2016 - FORNITURA ACQUA POTABILE FONT. VIA CERRETANA;19;1;3;2;5;5
ACQUE S.P.A.;16/01/2017;Acqua;5,95;Liquidazione Fattura Nr. 6016012000007899  del 23/12/2016 - FORNITURA ACQUA POTABILE FONT. VIA GIROLAMO CALVI;19;1;3;2;5;5
ELETTRO LINE S.N.C.;16/01/2017;Manutenzione ordinaria e riparazioni di impianti e macchinari;129,80;IVA - Liquidazione Fattura Nr. 000052PA  del 24/11/2016 - INTERVENTI DI MANUTENZIONE ELETTRICA AL MUSEO LEONARDIANO E AL PALASPORT FALCONE E BORSELLINO _ DETERMINA A CONTRARRE E AFFIDAMENTO DITTA ELETTRO LINE SNC;20;1;3;2;9;4
ELETTRO LINE S.N.C.;16/01/2017;Manutenzione ordinaria e riparazioni di impianti e macchinari;590,00;Liquidazione Fattura Nr. 000052PA  del 24/11/2016 - INTERVENTI DI MANUTENZIONE ELETTRICA AL MUSEO LEONARDIANO E AL PALASPORT FALCONE E BORSELLINO _ DETERMINA A CONTRARRE E AFFIDAMENTO DITTA ELETTRO LINE SNC;20;1;3;2;9;4
ELETTRO LINE S.N.C.;16/01/2017;Manutenzione ordinaria e riparazioni di beni immobili;168,08;IVA - iquidazione Fattura Nr. 000050PA  del 24/11/2016 (di cui Split per euro 168,08) - INTERVENTI DI MANUTENZIONE ELETTRICA AL MUSEO LEONARDIANO E AL PALASPORT FALCONE E BORSELLINO _ DET. A CONTRARRE E AFFIDAMENTO DITTA ELETTRO LINE SNC Fa;21;1;3;2;9;8
ELETTRO LINE S.N.C.;16/01/2017;Manutenzione ordinaria e riparazioni di beni immobili;252,12;IVA - Liquidazione Fattura Nr. 000051PA  del 24/11/2016 - INTERVENTI DI MANUTENZIONE ELETTRICA AL MUSEO LEONARDIANO E AL PALASPORT FALCONE E BORSELLINO _ DETERMINA A CONTRARRE E AFFIDAMENTO DITTA ELETTRO LINE SNC;21;1;3;2;9;8
ELETTRO LINE S.N.C.;16/01/2017;Manutenzione ordinaria e riparazioni di beni immobili;764,00;Liquidazione Fattura Nr. 000050PA  del 24/11/2016 - INTERVENTI DI MANUTENZIONE ELETTRICA AL MUSEO LEONARDIANO E AL PALASPORT FALCONE E BORSELLINO _ DETERMINA A CONTRARRE E AFFIDAMENTO DITTA ELETTRO LINE SNC;21;1;3;2;9;8
ELETTRO LINE S.N.C.;16/01/2017;Manutenzione ordinaria e riparazioni di beni immobili;1.146,00;Liquidazione Fattura Nr. 000051PA  del 24/11/2016 - INTERVENTI DI MANUTENZIONE ELETTRICA AL MUSEO LEONARDIANO E AL PALASPORT FALCONE E BORSELLINO _ DETERMINA A CONTRARRE E AFFIDAMENTO DITTA ELETTRO LINE SNC;21;1;3;2;9;8
STEME OFFICINA MECCANICA DI ROBERTO DESIDERI,ENZO LEPORATTI & C. S.A.S.;16/01/2017;Attrezzature n.a.c.;180,08;IVA - Liquidazione Fattura Nr. FATTPA 1_16  del 31/10/2016 (di cui Split per euro 180,08) - ACQUISTO ATTREZZATURE PER GIARDINAGGIO _ DETERMINA A CONTRARRE E AFFIDAMENTO DITTA STEME OFFICINA MECCANICA SAS;22;2;2;1;5;999
STEME OFFICINA MECCANICA DI ROBERTO DESIDERI,ENZO LEPORATTI & C. S.A.S.;16/01/2017;Attrezzature n.a.c.;818,55;Liquidazione Fattura Nr. FATTPA 1_16  del 31/10/2016 - ACQUISTO ATTREZZATURE PER GIARDINAGGIO _ DETERMINA A CONTRARRE E AFFIDAMENTO DITTA STEME OFFICINA MECCANICA SAS;22;2;2;1;5;999
CINELLI TACITO;17/01/2017;Locazione di beni immobili;2.500,00;LOCAZIONE LOCALI SITI IN VINCI, VIA FUCINI ANGOLO VIA ROSSI, DESTINATI AD UFFICI COMUNALI E BIBLIOTECA-IMPEGNO DI SPESA PER PAGAMENTO CANONE ANTICIPATO 1� GENNAIO LOCALI URP VIA FUCINI;23;1;3;2;7;1
CINELLI TACITO;17/01/2017;Locazione di beni immobili;1.677,47;LOCAZIONE LOCALI SITI IN VINCI, VIA FUCINI ANGOLO VIA ROSSI, DESTINATI AD UFFICI COMUNALI E BIBLIOTECA-IMPEGNO DI SPESA PER PAGAMENTO CANONE ANTICIPATO 1� GENN. BIBLIOTECA CIVICA;24;1;3;2;7;1
GRAZIANI CATIA;17/01/2017;Altre prestazioni professionali e specialistiche n.a.c.;6.250,00;LIQUIDAZIONE FATTURA NR. 266  DEL 02/01/2017 - QUARTA ED ULTIMA RATA COMPENSO PER ATTIVITA' DI TUTORING ;25;1;3;2;11;999
CENTRO INTERNAZIONALE DI STUDI E DOCUMENTAZIONE LEONARDO DA VINCI ;17/01/2017;Trasferimenti correnti a Istituzioni Sociali Private ;15.000,00;CONTRIBUTO AL CENTRO INTERNAZIONALE STUDI E DOCUMENTAZIONE LEONARDO DA VINCI, ANNO 2016 - IMPEGNO DI SPESA E LIQUIDAZIONE;26;1;4;4;1;1
EDISON ENERGIA S.P.A.;17/01/2017;Energia elettrica;4.189,30;IVA-Liquidazione Fattura Nr. 5750365974  del 12/12/2016 (di cui Split per euro 4.189,30) - FORNITURA ENERGIA ELETTRICA P.I. NOVEMBRE 2016;27;1;3;2;5;4
EDISON ENERGIA S.P.A.;17/01/2017;Energia elettrica;19.042,27;Liquidazione Fattura Nr. 5750365974  del 12/12/2016 - FORNITURA ENERGIA ELETTRICA P.I. NOVEMBRE 2016;27;1;3;2;5;4
ANGELINO S.R.L.;20/01/2017;Contratti di servizio di trasporto scolastico;3.414,85;IVA-Liquidazione Fattura Nr. 00477P  del 30/11/2016 (di cui Split per euro 3.414,85) - Servizio di Trasporto scolastico 2016/2017 mese di novembre 2016;29;1;3;2;15;2
ANGELINO S.R.L.;20/01/2017;Contratti di servizio di trasporto scolastico;2.753,78;IVA-Liquidazione Fattura Nr. 00522P  del 29/12/2016 - Trasporto Scolastico 2016-2017 -- mese di dicembre 2016;29;1;3;2;15;2
ANGELINO S.R.L.;20/01/2017;Contratti di servizio di trasporto scolastico;34.148,51;Liquidazione Fattura Nr. 00477P  del 30/11/2016 - Servizio di Trasporto scolastico 2016/2017 mese di novembre 2016;29;1;3;2;15;2
ANGELINO S.R.L.;20/01/2017;Contratti di servizio di trasporto scolastico;27.537,84;Liquidazione Fattura Nr. 00522P  del 29/12/2016 - Trasporto Scolastico 2016-2017 -- mese di dicembre 2016;29;1;3;2;15;2
LENSI MARZIO E AMMANNATI GIANNA PAOLA;20/01/2017;Locazione di beni immobili;5.610,00;LOCAZIONE LOCALI SITI IN VINCI, VIA ROMA N. 29, DESTINATI AD ARCHIVIO COMUNALE- PAG. 1�TRIMESTRE 2017;32;1;3;2;7;1
BARTALUCCI SAS DI BARTALUCCI ELENA E BARTALUCCI MONICA;20/01/2017;Altri servizi ausiliari n.a.c.;13,57;IVA Liquidazione Fattura Nr. 409/P  del 18/11/2016 (di cui Split per euro 13,57) - TRASCRIZIONE CONSIGLIO COMUNALE DEL 22/03/2016;33;1;3;2;13;999
BARTALUCCI SAS DI BARTALUCCI ELENA E BARTALUCCI MONICA;20/01/2017;Altri servizi ausiliari n.a.c.;61,68;Liquidazione Fattura Nr. 409/P  del 18/11/2016 - TRASCRIZIONE CONSIGLIO COMUNALE DEL 22/03/2016;33;1;3;2;13;999
C.I.S.  INTELLIGENT SYSTEM S.R.L.;20/01/2017;Servizi di sicurezza;177,21;IVA - Liquidazione Fattura Nr. 140/PA  del 30/12/2016 (di cui Split per euro 177,21) - DETERMINAZIONE N.174 SETTORE II DEL 29/12/2016 CAPITOLO 1724/2/2017 IMPEGNO DS02174/1/2016 DEL 29/12/2016;34;1;3;2;19;6
C.I.S.  INTELLIGENT SYSTEM S.R.L.;20/01/2017;Servizi di sicurezza;805,50;Liquidazione Fattura Nr. 140/PA  del 30/12/2016 - DETERMINAZIONE N.174 SETTORE II DEL 29/12/2016 CAPITOLO 1724/2/2017 IMPEGNO DS02174/1/2016 DEL 29/12/2016;34;1;3;2;19;6
L'ARCOBALENO DI CALISTRI CATERINA;20/01/2017;Pubblicazioni;22,00;Liquidazione Fattura Nr. 9 / P  del 20/12/2016 - FORNITURA LIBRI DI TESTO PER CEDOLE LIBRARIE ELEMENTARI;36;1;3;1;1;2
PROMOCULTURA SOCIETA' COOPERATIVA A.R.L..;20/01/2017;Altri beni e materiali di consumo n.a.c.;242,00; IVA Liquidazione Fattura Nr. 13-E-2016  del 10/02/2016 - Redazione testi didattici;37;1;3;1;2;999
PROMOCULTURA SOCIETA' COOPERATIVA A.R.L..;20/01/2017;Altri beni e materiali di consumo n.a.c.;1.100,00;Liquidazione Fattura Nr. 13-E-2016  del 10/02/2016 - Redazione testi didattici;37;1;3;1;2;999
S.MARCO LIPOTIPO;20/01/2017;Giornali e riviste;46,00;Liquidazione Fattura Nr. 2-03  del 16/11/2016 per rinnovo abbonamento a Accademia, vol. XVI (2016), per la Biblioteca Leonardiana;38;1;3;1;1;1
PROMOCULTURA SOCIETA' COOPERATIVA A.R.L..;20/01/2017;Altre spese per contratti di servizio pubblico;238,70;IVA - reverse charge Liquidazione Fattura Nr. 153-E-2016  del 04/11/2016 - Servizi di pulizie presso i musei del Comune di Vinci. 62 ore;39;1;3;2;15;999
PROMOCULTURA SOCIETA' COOPERATIVA A.R.L..;20/01/2017;Altre spese per contratti di servizio pubblico;12.845,00;LIQUIDAZIONE FATTURA NR. 09-E-2016  DEL 10/02/2016 AL NETTO DI NOTA: N. 119-E-2016 DEL 15/09/2016 DI 2 572,50 - SERVIZI MUSEALI (881 ORE);39;1;3;2;15;999
PROMOCULTURA SOCIETA' COOPERATIVA A.R.L..;20/01/2017;Altre spese per contratti di servizio pubblico;15.067,20;LIQUIDAZIONE FATTURA NR. 151-E-2016  DEL 04/11/2016 - SERVIZI MUSEALI MUSEO LEONARDIANO. MESE OTTOBRE 2016 TOTALE 860 ORE  CIG ZF41B6394F  CAPITOLO 3300 DET. 109-2016;39;1;3;2;15;999
PROMOCULTURA SOCIETA' COOPERATIVA A.R.L..;20/01/2017;Altre spese per contratti di servizio pubblico;3.150,00;LIQUIDAZIONE FATTURA NR. 152-E-2016  DEL 04/11/2016 - SERVIZI MUSEALI CASA NATALE ANCHIANO.180 ORE;39;1;3;2;15;999
PROMOCULTURA SOCIETA' COOPERATIVA A.R.L..;20/01/2017;Altre spese per contratti di servizio pubblico;1.085,00;LIQUIDAZIONE FATTURA NR. 153-E-2016  DEL 04/11/2016 - SERVIZI DI PULIZIE PRESSO I MUSEI DEL COMUNE DI VINCI. 62 ORE;39;1;3;2;15;999
PROMOCULTURA SOCIETA' COOPERATIVA A.R.L..;20/01/2017;Altre spese per contratti di servizio pubblico;14.629,20;LIQUIDAZIONE FATTURA NR. 166-E-2016  DEL 04/12/2016 - SERVIZI MUSEALI MUSEO LEONARDIANO. MESE NOVEMBRE 2016 TOTALE 835 ORE  CIG ZF41B6394F  CAPITOLO 3300 DET. 109-2016;39;1;3;2;15;999
CO&SO EMPOLI - CONS. DI COOP. SOCIALI - SOCIETA' COOPERATIVA;20/01/2017;Altre spese per contratti di servizio pubblico;3.906,78;Liquidazione Fattura Nr. 001038-2C0 del 31/10/2016 - Fattura per ore svolte nel mese di Ottobre 2016 per Servizi al pubblico e didattica presso la Biblioteca Leonardiana e sedi distaccate;40;1;3;2;15;999
PROMOCULTURA SOCIETA' COOPERATIVA A.R.L..;20/01/2017;Altri servizi diversi n.a.c.;1.078,00;IVA Liquidazione Fattura Nr. 13-E-2016  del 10/02/2016 - Redazione testi didattici;41;1;3;2;99;999
PROMOCULTURA SOCIETA' COOPERATIVA A.R.L..;20/01/2017;Altri servizi diversi n.a.c.;4.900,00;Liquidazione Fattura Nr. 13-E-2016  del 10/02/2016 - Redazione testi didattici;41;1;3;2;99;999
PROMOCULTURA SOCIETA' COOPERATIVA A.R.L..;20/01/2017;Altre spese per contratti di servizio pubblico;954,80;IVA - Liquidazione Fattura Nr. 155-E-2016  del 04/11/2016 (di cui Split per euro 954,80) - Servizi  ufficio turistico 248 ore;42;1;3;2;15;999
PROMOCULTURA SOCIETA' COOPERATIVA A.R.L..;20/01/2017;Altre spese per contratti di servizio pubblico;4.340,00;LIQUIDAZIONE FATTURA NR. 155-E-2016  DEL 04/11/2016 - SERVIZI  UFFICIO TURISTICO 248 ORE;42;1;3;2;15;999
CENTRO STUDI TURISTICI;20/01/2017;Altri servizi diversi n.a.c.;1.442,62;IVA Liquidazione Fattura Nr. 61/FE/2016 del 19/12/2016 - OSSERVATORIO TURISTICO DI DESTINAZIONE;43;1;3;2;99;999
CENTRO STUDI TURISTICI;20/01/2017;Altri servizi diversi n.a.c.;6.557,38;Liquidazione Fattura Nr. 61/FE/2016 del 19/12/2016 - OSSERVATORIO TURISTICO DI DESTINAZIONE;43;1;3;2;99;999
UNIONE DEI COMUNI CIRCONDARIO EMPOLESE VALDELSA;20/01/2017;Trasferimenti correnti a Unioni di Comuni;10.025,19;TRASFERIMENTO ALL'UNIONE PER LE FUNZIONI RELATIVE ALLE POLITICHE ABITATIVEANNO 2016;44;1;4;1;2;5
UNIONE DEI COMUNI CIRCONDARIO EMPOLESE VALDELSA;20/01/2017;Trasferimenti correnti a Unioni di Comuni;4.810,29;TRASFERIMENTO ALL'UNIONE DEI COMUNI PER LE FUNZIONI RELATIVE  ALL'IMMIGRAZIONE POLITICHE ANNO 2016;45;1;4;1;2;5
UNIONE DEI COMUNI CIRCONDARIO EMPOLESE VALDELSA;20/01/2017;Trasferimenti correnti a Unioni di Comuni;249.864,14;TRASFERIMENTO ALL'UNIONE PER LE FUNZIONI RELATIVE AD ATTIVITA' INERENTI I SERVIZI SOCIALI ASSISTENZIALI ANNO 2016;46;1;4;1;2;5
LIBRO CO. ITALIA S.R.L.;20/01/2017;Materiale bibliografico;273,62;Liquidazione Fattura Nr. 193/16/F  del 30/11/2016 - Fornitura generica;47;2;2;1;99;1
 ADACTO S.R.L.;20/01/2017;Opere dell'ingegno e Diritti d'autore;330,00;IVA Liquidazione Fattura Nr. 7/1 del 24/11/2016 - ACQUISTO APPLICATIVI GRAFICI CAMPAGNA THIS IS MY HOME PER SISTEMA MUSEALE LUOGHI LEONARDIANI. AFFIDAMENTO DIRETTO;48;2;2;3;4;1
ADACTO S.R.L.;20/01/2017;Opere dell'ingegno e Diritti d'autore;1.500,00;Liquidazione Fattura Nr. 7/1 del 24/11/2016 - ACQUISTO APPLICATIVI GRAFICI CAMPAGNA THIS IS MY HOME PER SISTEMA MUSEALE LUOGHI LEONARDIANI. AFFIDAMENTO DIRETTO;48;2;2;3;4;1
TERMOCONTROL SRL MANUTENZIONE IMPIANTI;20/01/2017;Manutenzione ordinaria e riparazioni di impianti e macchinari;273,36;IVA-Liquidazione Fattura Nr. 000107PA  del 15/11/2016 (di cui Split per euro 273,36) - MANUTENZIONE IMPIANTI TERMOIDRAULICI E DI CONDIZIONAMENTO ANNO 2015-2016  - INTERVENTI MANUT. EXTRACANONE VARI EDIFICI SOGGETTI SPLIT PAYMENT;49;1;3;2;9;4
TERMOCONTROL SRL MANUTENZIONE IMPIANTI;20/01/2017;Manutenzione ordinaria e riparazioni di impianti e macchinari;1.242,55;Liquidazione Fattura Nr. 000107PA  del 15/11/2016 - MANUTENZIONE IMPIANTI TERMOIDRAULICI E DI CONDIZIONAMENTO ANNO 2015-2016  - INTERVENTI MANUT. EXTRACANONE VARI EDIFICI SOGGETTI SPLIT PAYMENT;49;1;3;2;9;4
TERMOCONTROL SRL MANUTENZIONE IMPIANTI;20/01/2017;Manutenzione ordinaria e riparazioni di impianti e macchinari;233,31;IVA-Liquidazione Fattura Nr. 000107PA  del 15/11/2016 (di cui Split per euro 233,31) - MANUTENZIONE IMPIANTI TERMOIDRAULICI E DI CONDIZIONAMENTO ANNO 2015-2016  - INTERVENTI MANUT. EXTRACANONE VARI EDIFICI SOGGETTI SPLIT PAYMENT;50;1;3;2;9;4
TERMOCONTROL SRL MANUTENZIONE IMPIANTI;20/01/2017;Manutenzione ordinaria e riparazioni di impianti e macchinari;1.060,48;Liquidazione Fattura Nr. 000107PA  del 15/11/2016 - MANUTENZIONE IMPIANTI TERMOIDRAULICI E DI CONDIZIONAMENTO ANNO 2015-2016  - INTERVENTI MANUT. EXTRACANONE VARI EDIFICI SOGGETTI SPLIT PAYMENT;50;1;3;2;9;4
TERMOCONTROL SRL MANUTENZIONE IMPIANTI;20/01/2017;Manutenzione ordinaria e riparazioni di impianti e macchinari;70,91;IVA-Liquidazione Fattura Nr. 000107PA  del 15/11/2016 (di cui Split per euro 70,91) - MANUTENZIONE IMPIANTI TERMOIDRAULICI E DI CONDIZIONAMENTO ANNO 2015-2016  - INTERVENTI MANUT. EXTRACANONE VARI EDIFICI SOGGETTI SPLIT PAYMENT;51;1;3;2;9;4
TERMOCONTROL SRL MANUTENZIONE IMPIANTI;20/01/2017;Manutenzione ordinaria e riparazioni di impianti e macchinari;322,32;Liquidazione Fattura Nr. 000107PA  del 15/11/2016 - MANUTENZIONE IMPIANTI TERMOIDRAULICI E DI CONDIZIONAMENTO ANNO 2015-2016  - INTERVENTI MANUT. EXTRACANONE VARI EDIFICI SOGGETTI SPLIT PAYMENT;51;1;3;2;9;4
TERMOCONTROL SRL MANUTENZIONE IMPIANTI;20/01/2017;Manutenzione ordinaria e riparazioni di impianti e macchinari;113,19;IVA-Liquidazione Fattura Nr. 000107PA  del 15/11/2016 (di cui Split per euro 113,19) - MANUTENZIONE IMPIANTI TERMOIDRAULICI E DI CONDIZIONAMENTO ANNO 2015-2016  - INTERVENTI MANUT. EXTRACANONE VARI EDIFICI SOGGETTI SPLIT PAYMENT;52;1;3;2;9;4
TERMOCONTROL SRL MANUTENZIONE IMPIANTI;20/01/2017;Manutenzione ordinaria e riparazioni di impianti e macchinari;514,52;Liquidazione Fattura Nr. 000107PA  del 15/11/2016 - MANUTENZIONE IMPIANTI TERMOIDRAULICI E DI CONDIZIONAMENTO ANNO 2015-2016  - INTERVENTI MANUT. EXTRACANONE VARI EDIFICI SOGGETTI SPLIT PAYMENT;52;1;3;2;9;4
TERMOCONTROL SRL MANUTENZIONE IMPIANTI;20/01/2017;Manutenzione ordinaria e riparazioni di impianti e macchinari;3,46;IVA-Liquidazione Fattura Nr. 000107PA  del 15/11/2016 (di cui Split per euro 3,46) - MANUTENZIONE IMPIANTI TERMOIDRAULICI E DI CONDIZIONAMENTO ANNO 2015-2016  - INTERVENTI MANUT. EXTRACANONE VARI EDIFICI SOGGETTI SPLIT PAYMENT;53;1;3;2;9;4
TERMOCONTROL SRL MANUTENZIONE IMPIANTI;20/01/2017;Manutenzione ordinaria e riparazioni di impianti e macchinari;15,74;Liquidazione Fattura Nr. 000107PA  del 15/11/2016 - MANUTENZIONE IMPIANTI TERMOIDRAULICI E DI CONDIZIONAMENTO ANNO 2015-2016  - INTERVENTI MANUT. EXTRACANONE VARI EDIFICI SOGGETTI SPLIT PAYMENT;53;1;3;2;9;4
TERMOCONTROL SRL MANUTENZIONE IMPIANTI;20/01/2017;Manutenzione ordinaria e riparazioni di impianti e macchinari;51,94;IVA-Liquidazione Fattura Nr. 000107PA  del 15/11/2016 (di cui Split per euro 51,94) - MANUTENZIONE IMPIANTI TERMOIDRAULICI E DI CONDIZIONAMENTO ANNO 2015-2016  - INTERVENTI MANUT. EXTRACANONE VARI EDIFICI SOGGETTI SPLIT PAYMENT;54;1;3;2;9;4
TERMOCONTROL SRL MANUTENZIONE IMPIANTI;20/01/2017;Manutenzione ordinaria e riparazioni di impianti e macchinari;236,11;Liquidazione Fattura Nr. 000107PA  del 15/11/2016 - MANUTENZIONE IMPIANTI TERMOIDRAULICI E DI CONDIZIONAMENTO ANNO 2015-2016  - INTERVENTI MANUT. EXTRACANONE VARI EDIFICI SOGGETTI SPLIT PAYMENT;54;1;3;2;9;4
PRATESI LORENZO S.R.L.;20/01/2017;Manutenzione ordinaria e riparazioni di beni immobili;38,81;IVA-Liquidazione Fattura Nr. 10/E  del 31/10/2016 (di cui Split per euro 38,81) - NOLEGGIO PIATTAFORMA AEREA - DETERMINA A CONTRARRE ED AFFIDAMENTO DITTA PRATESI LORENZO;55;1;3;2;9;8
PRATESI LORENZO S.R.L.;20/01/2017;Manutenzione ordinaria e riparazioni di beni immobili;176,41;Liquidazione Fattura Nr. 10/E  del 31/10/2016 - NOLEGGIO PIATTAFORMA AEREA - DETERMINA A CONTRARRE ED AFFIDAMENTO DITTA PRATESI LORENZO;55;1;3;2;9;8
CONSORZIO STRADALE DI RIPALTA C/O STUDIO TECNICO OPUS;20/01/2017;Altri trasferimenti a famiglie n.a.c.;1.500,00;IMPEGNO DI SPESA E SUCCESSIVA LIQUIDAZIONE DEL CONTRIBUTO PER L'ANNO 2015 AL CONSORZIO STRADALE DI RIPALTA.;56;1;4;2;5;999
GIUNTI  MICHELE ANGELO DOTTORE FORESTALE;20/01/2017;Spese per commissioni e comitati dell'Ente;281,84;LIQUIDAZIONE FATTURA NR. 3/FE  DEL 20/12/2016 - COMPENSI PER SEDUTE COMMISSIONE EDILIZIA;57;1;3;2;99;5
MAINARDI ING. NICOLA;20/01/2017;Spese per commissioni e comitati dell'Ente;277,84;LIQUIDAZIONE FATTURA NR. 000003-2016-PA  DEL 23/12/2016 - RIMBORSI COMMISSIONE EDILIZIA;57;1;3;2;99;5
TERMOCONTROL SRL MANUTENZIONE IMPIANTI;20/01/2017;Manutenzione ordinaria e riparazioni di impianti e macchinari;142,33;IVA-Liquidazione Fattura Nr. 000107PA  del 15/11/2016 (di cui Split per euro 142,33) - MANUTENZIONE IMPIANTI TERMOIDRAULICI E DI CONDIZIONAMENTO ANNO 2015-2016  - INTERVENTI MANUT. EXTRACANONE VARI EDIFICI SOGGETTI SPLIT PAYMENT;58;1;3;2;9;4
TERMOCONTROL SRL MANUTENZIONE IMPIANTI;20/01/2017;Manutenzione ordinaria e riparazioni di impianti e macchinari;646,92;Liquidazione Fattura Nr. 000107PA  del 15/11/2016 - MANUTENZIONE IMPIANTI TERMOIDRAULICI E DI CONDIZIONAMENTO ANNO 2015-2016  - INTERVENTI MANUT. EXTRACANONE VARI EDIFICI SOGGETTI SPLIT PAYMENT;58;1;3;2;9;4
TERMOCONTROL SRL MANUTENZIONE IMPIANTI;20/01/2017;Manutenzione ordinaria e riparazioni di impianti e macchinari;207,45;IVA-Liquidazione Fattura Nr. 000107PA  del 15/11/2016 (di cui Split per euro 207,45) - MANUTENZIONE IMPIANTI TERMOIDRAULICI E DI CONDIZIONAMENTO ANNO 2015-2016  - INTERVENTI MANUT. EXTRACANONE VARI EDIFICI SOGGETTI SPLIT PAYMENT;59;1;3;2;9;4
TERMOCONTROL SRL MANUTENZIONE IMPIANTI;20/01/2017;Manutenzione ordinaria e riparazioni di impianti e macchinari;942,97;Liquidazione Fattura Nr. 000107PA  del 15/11/2016 - MANUTENZIONE IMPIANTI TERMOIDRAULICI E DI CONDIZIONAMENTO ANNO 2015-2016  - INTERVENTI MANUT. EXTRACANONE VARI EDIFICI SOGGETTI SPLIT PAYMENT;59;1;3;2;9;4
ICONNECT SOLUTION S.R.L.;20/01/2017;Manutenzione ordinaria e riparazioni di altri beni materiali;176,00;IVA Liquidazione Fattura Nr. 4/PA  del 20/12/2016 (di cui Split per euro 176,00) - Rif. n 98  del 10/09/2016 - canone annuale garanzia e servizio manutenzione;60;1;3;2;9;11
ICONNECT SOLUTION S.R.L.;20/01/2017;Manutenzione ordinaria e riparazioni di altri beni materiali;800,00;Liquidazione Fattura Nr. 4/PA  del 20/12/2016 - Rif. n 98  del 10/09/2016 - canone annuale garanzia e servizio manutenzione;60;1;3;2;9;11
ICONNECT SOLUTION S.R.L.;20/01/2017;Gestione e manutenzione applicazioni;231,00;IVA Liquidazione Fattura Nr. 4/PA  del 20/12/2016 (di cui Split per euro 231,00) - Rif. n 98  del 10/09/2016 - canone annuale garanzia e servizio manutenzione;61;1;3;2;19;1
ICONNECT SOLUTION S.R.L.;20/01/2017;Gestione e manutenzione applicazioni;1.050,00;Liquidazione Fattura Nr. 4/PA  del 20/12/2016 - Rif. n 98  del 10/09/2016 - canone annuale garanzia e servizio manutenzione;61;1;3;2;19;1
C.C.N. VINCINCENTRO;20/01/2017;Trasferimenti correnti a Istituzioni Sociali Private ;600,00;"CCN VINCINCENTRO - CONCESSIONE DEL CONTRIBUTO PER INIZIATIVA ""NATALE 2016 LUMINARIE E DECORAZIONI A VINCI CAPOLUOGO""";62;1;4;4;1;1
C.C.N. VINCINCENTRO;20/01/2017;Trasferimenti correnti a Istituzioni Sociali Private ;2.400,00;CCN VINCINCENTRO - LIQUIDAZIONE DEL CONTRIBUTO PER ORGANIZZAZIONE EVENTI ANNO 2016;62;1;4;4;1;1
UNIVERSITA' DEGLI STUDI DI FIRENZE DIPARTIMENTO DI ARCHITETTURA;20/01/2017;Trasferimenti correnti a Istituzioni Sociali Private ;3.500,00;"PATTO DEL MONTALBANO - FIRMA, PER CONTO DEI COMUNI DEL PATTO,  DEL CONTRATTO CON UNIVERSIT� DI FIRENZE DIPARTIMENTO DI ARCHITETTURA, DI CONCESSIONE DEL CONTRIBUTO PER ORGANIZZAZIONE DEL CONVEGNO ""MONTALBANO IN TRANSIZIONE"" IN PROGRAMMA IL 2";63;1;4;4;1;1
AMMINISTRATORI COMUNALI;23/01/2017;Organi istituzionali dell'amministrazione - indennit�;8.330,37;pagamento amministratori;64;1;3;2;1;1
PERSONALE DIPENDENTE SEDE;23/01/2017;Rimborso per viaggio e trasloco;145,08;Pagamento Stipendi Anno 2017 Mese 1;74;1;3;2;2;1
GENERALI ITALIA SPA;23/01/2017;Spese per risarcimento danni;550,00;PAGAMENTO FRANCHIGIE SU SINISTRI LIQUIDATI NEL IV TRIMESTRE 2016 PER POLIZZE ASSICURATIVE RESPONSABILITA' CIVILE;87;1;10;5;2;1
ROCA'S IMPIANTI ELETTRICI DI GRANIERO   ROCCO E C.;24/01/2017;Manutenzione ordinaria e riparazioni di impianti e macchinari;50,60;IVA -LIQUIDAZIONE FATTURA NR. 000001-2016-PA  DEL 12/11/2016 (DI CUI SPLIT PER EURO 50,60) - RIPRISTINO FUNZIONALITA' E SOSTITUZIONE DELLE BATTERIE ALL'IMPIANTO DI ALLARME DEL MAGAZZINO _ DETERMINA A CONTRARRE E AFFIDAMENTO DITTA ROCA'S SAS;109;1;3;2;9;4
ROCA'S IMPIANTI ELETTRICI DI GRANIERO   ROCCO E C.;24/01/2017;Manutenzione ordinaria e riparazioni di impianti e macchinari;230,00;Liquidazione Fattura Nr. 000001-2016-PA  del 12/11/2016 - RIPRISTINO FUNZIONALITA' E SOSTITUZIONE DELLE BATTERIE ALL'IMPIANTO DI ALLARME DEL MAGAZZINO _ DETERMINA A CONTRARRE E AFFIDAMENTO DITTA ROCA'S SAS;109;1;3;2;9;4
REGIONE TOSCANA;24/01/2017;Altre spese per servizi amministrativi;200,00;CANONE C.F. 82003210489 PRATICA DEMANIO N.1269/2;110;1;3;2;16;999
REGIONE TOSCANA;24/01/2017;Altre spese per servizi amministrativi;432,00;CAUZIONE E BOLLI  C.F.82003210489 PRATICA DEMANIO N.1269/2;110;1;3;2;16;999
REGIONE TOSCANA;24/01/2017;Altre spese per servizi amministrativi;100,00;IMPOSTA C.F. 82003210489 PRATICA DEMANIO N.1269/2;110;1;3;2;16;999
ROCA'S IMPIANTI ELETTRICI DI GRANIERO   ROCCO E C.;24/01/2017;Manutenzione ordinaria e riparazioni di beni immobili;127,60;IVA -LIQUIDAZIONE FATTURA NR. 000002-2016-PA  DEL 12/11/2016 (DI CUI SPLIT PER EURO 127,60) - SISTEMAZIONE CANCELLI E SOSTITUZIONE PULSANTIERA SCUOLA MEDIA DI SOVIGLIANA _ DET. A CONT. E AFFID. DITTA ROCA'S SAS;111;1;3;2;9;8
ROCA'S IMPIANTI ELETTRICI DI GRANIERO   ROCCO E C.;24/01/2017;Manutenzione ordinaria e riparazioni di beni immobili;580,00;Liquidazione Fattura Nr. 000002-2016-PA  del 12/11/2016 - SISTEMAZIONE CANCELLI E SOSTITUZIONE DELLA PULSANTIERA PRESSO LA SCUOLA MEDIA DI SOVIGLIANA _ DET. A CONTRARRE E AFFIDAMENTO DITTA ROCA'S SAS;111;1;3;2;9;8
ELMAS S.R.L.;24/01/2017;Manutenzione ordinaria e riparazioni di impianti e macchinari;26,84;IVA - LIQUIDAZIONE FATTURA NR. 42  DEL 22/11/2016 - FORNITURA GENERICA;112;1;3;2;9;4
ELMAS S.R.L.;24/01/2017;Manutenzione ordinaria e riparazioni di impianti e macchinari;122,00;Liquidazione Fattura Nr. 42  del 22/11/2016 - Fornitura generica;112;1;3;2;9;4
SELMI DI SELMI ANDREA & SELMI FRANCESCO S.N.C.;24/01/2017;Altri beni e materiali di consumo n.a.c.;205,94;IVA - LIQUIDAZIONE FATTURA NR. 3/A  DEL 31/10/2016 (DI CUI SPLIT PER EURO 205,94) - FATTURA 3/A _ DET. 147/2016_ FORNITURA PICCOLE ATTREZZATURE PER MANUTENZIONE AREE A VERDE _ MESTICHERIA FERRAMENTA SELMI SNC;113;1;3;1;2;999
SELMI DI SELMI ANDREA & SELMI FRANCESCO S.N.C.;24/01/2017;Altri beni e materiali di consumo n.a.c.;936,10;Liquidazione Fattura Nr. 3/A  del 31/10/2016 - FATTURA 3/A _ DET. 147/2016_ FORNITURA PICCOLE ATTREZZATURE PER MANUTENZIONE AREE A VERDE _ MESTICHERIA FERRAMENTA SELMI SNC;113;1;3;1;2;999
ELETTRO LINE S.N.C.;24/01/2017;Manutenzione ordinaria e riparazioni di beni immobili;51,04;IVA - LIQUIDAZIONE FATTURA NR. 000054PA  DEL 24/11/2016 (DI CUI SPLIT PER EURO 51,04) - DET. 285    40% PALASPORT PER SPLIT ISTITUZIONALE;114;1;3;2;9;8
ELETTRO LINE S.N.C.;24/01/2017;Manutenzione ordinaria e riparazioni di beni immobili;76,56;IVA _ LIQUIDAZIONE FATTURA NR. 000053PA  DEL 24/11/2016 - DET. 285   PER 60% PALASPORT;114;1;3;2;9;8
ELETTRO LINE S.N.C.;24/01/2017;Manutenzione ordinaria e riparazioni di beni immobili;348,00;Liquidazione Fattura Nr. 000053PA  del 24/11/2016 - DET. 285    PER 60% PALASPORT;114;1;3;2;9;8
ELETTRO LINE S.N.C.;24/01/2017;Manutenzione ordinaria e riparazioni di beni immobili;232,00;Liquidazione Fattura Nr. 000054PA  del 24/11/2016 (di cui Split per euro 51,04) - DET. 285    40% PALASPORT PER SPLIT ISTITUZIONALE;114;1;3;2;9;8
VETRERIA POLI FABRIZIO;24/01/2017;Manutenzione ordinaria e riparazioni di beni immobili;123,20;IVA - LIQUIDAZIONE FATTURA NR. 9/PA  DEL 24/11/2016 (DI CUI SPLIT PER EURO 123,20) - SOSTITUZIONE VETRI PRESSO IL PALASPORT FALCONE E BORSELLINO _ DETERMINA A CONTRARRE E AFFIDAMENTO DITTA VETRERIA POLI FABRIZIO;114;1;3;2;9;8
VETRERIA POLI FABRIZIO;24/01/2017;Manutenzione ordinaria e riparazioni di beni immobili;560,00;Liquidazione Fattura Nr. 9/PA  del 24/11/2016 - SOSTITUZIONE VETRI PRESSO IL PALASPORT FALCONE E BORSELLINO _ DETERMINA A CONTRARRE E AFFIDAMENTO DITTA VETRERIA POLI FABRIZIO;114;1;3;2;9;8
PUBLIAMBIENTE S.P.A.;24/01/2017;Contratti di servizio per la raccolta rifiuti;1.865,18;IVA-LIQUIDAZIONE FATTURA NR. V-FTE-2016-000148  DEL 13/06/2016 (DI CUI SPLIT PER EURO 1.865,18) - SERVIZIO RACCOLTA E SPAZZAMENTO E SERVIZIO SMALTIMENTO -CONGUAGLIO GENNAIO-APRILE 2016;115;1;3;2;15;4
PUBLIAMBIENTE S.P.A.;24/01/2017;Contratti di servizio per la raccolta rifiuti;18.077,26;IVA-LIQUIDAZIONE FATTURA NR. V-FTE-2016-000149  DEL 13/06/2016 (DI CUI SPLIT PER EURO 18.077,26) - SERVIZIO RACCOLTA E SPAZZAMENTO E SERVIZIO SMALTIMENTO-MAGGIO 2016;115;1;3;2;15;4
PUBLIAMBIENTE S.P.A.;24/01/2017;Contratti di servizio per la raccolta rifiuti;18.077,26;IVA-LIQUIDAZIONE FATTURA NR. V-FTE-2016-000182  DEL 06/07/2016 (DI CUI SPLIT PER EURO 18.077,26) - SERVIZIO I.U.GIUGNO 2016;115;1;3;2;15;4
PUBLIAMBIENTE S.P.A.;24/01/2017;Contratti di servizio per la raccolta rifiuti;18.077,26;IVA-LIQUIDAZIONE FATTURA NR. V-FTE-2016-000215  DEL 18/08/2016 (DI CUI SPLIT PER EURO 18.077,26) - SERVIZIO I.U.LUGLIO 2016;115;1;3;2;15;4
PUBLIAMBIENTE S.P.A.;24/01/2017;Contratti di servizio per la raccolta rifiuti;18.077,26;IVA-LIQUIDAZIONE FATTURA NR. V-FTE-2016-000255  DEL 06/09/2016 (DI CUI SPLIT PER EURO 18.077,26) - SERVIZIO I.U.AGOSTO 2016;115;1;3;2;15;4
PUBLIAMBIENTE S.P.A.;24/01/2017;Contratti di servizio per la raccolta rifiuti;18.651,82;LIQUIDAZIONE FATTURA NR. V-FTE-2016-000148  DEL 13/06/2016 - SERVIZIO RACCOLTA E SPAZZAMENTO E SERVIZIO SMALTIMENTO -CONGUAGLIO GENNAIO-APRILE 2016;115;1;3;2;15;4
PUBLIAMBIENTE S.P.A.;24/01/2017;Contratti di servizio per la raccolta rifiuti;180.772,56;LIQUIDAZIONE FATTURA NR. V-FTE-2016-000149  DEL 13/06/2016 - SERVIZIO RACCOLTA E SPAZZAMENTO E SERVIZIO SMALTIMENTO-MAGGIO 2016;115;1;3;2;15;4
PUBLIAMBIENTE S.P.A.;24/01/2017;Contratti di servizio per la raccolta rifiuti;180.772,56;LIQUIDAZIONE FATTURA NR. V-FTE-2016-000182  DEL 06/07/2016 - SERVIZIO I.U.GIUGNO 2016;115;1;3;2;15;4
PUBLIAMBIENTE S.P.A.;24/01/2017;Contratti di servizio per la raccolta rifiuti;180.772,56;LIQUIDAZIONE FATTURA NR. V-FTE-2016-000215  DEL 18/08/2016 - SERVIZIO I.U.LUGLIO 2016;115;1;3;2;15;4
PUBLIAMBIENTE S.P.A.;24/01/2017;Contratti di servizio per la raccolta rifiuti;180.772,56;LIQUIDAZIONE FATTURA NR. V-FTE-2016-000255  DEL 06/09/2016 - SERVIZIO I.U.AGOSTO 2016;115;1;3;2;15;4
TOSCANA ENERGIA GREEN S.P.A.;24/01/2017;Trasferimenti correnti a altre imprese;923,75;IVA - Liquidazione Fattura Nr. VP0000086  del 29/12/2015 - Fornitura generica;116;1;4;3;99;999
TOSCANA ENERGIA GREEN S.P.A.;24/01/2017;Trasferimenti correnti a altre imprese;7.943,83;Liquidazione Fattura Nr. VP0000086  del 29/12/2015 - Fornitura generica;116;1;4;3;99;999
SELMI DI SELMI ANDREA & SELMI FRANCESCO S.N.C.;24/01/2017;Beni immobili n.a.c.;70,11;IVA - LIQUIDAZIONE FATTURA NR. 5/A  DEL 31/10/2016 (DI CUI SPLIT PER EURO 70,11) - FATTURA 5/A DET. 227/2016 FORNITURA MATERIALE PER RECINZIONE PARCO GIOCHI _ MESTICHERIA FERRAMENTA SELMI SNC;117;2;2;1;9;999
SELMI DI SELMI ANDREA & SELMI FRANCESCO S.N.C.;24/01/2017;Beni immobili n.a.c.;318,69;Liquidazione Fattura Nr. 5/A  del 31/10/2016 - Fattura 5/A DET. 227/2016 FORNITURA MATERIALE PER RECINZIONE PARCO GIOCHI _ MESTICHERIA FERRAMENTA SELMI SNC;117;2;2;1;9;999
SELF S.R.L.;24/01/2017;Altre prestazioni professionali e specialistiche n.a.c.;855,00;Liquidazione Fattura Nr. FATTPA 1_16  del 09/12/2016 - ACCOMPAGNAMENTO FORMATIVO NELLA FORMA DEL TUTORING PER LA GESTIONE DEL PERSONALE;118;1;3;2;11;999
GENERALI ITALIA SPA;24/01/2017;Altri premi di assicurazione contro i danni;22.157,72;PROROGA SERVIZIO DI COPERTURA ASSICURATIVA RCA E RISCHI VARI DAL 01/02/2017 AL 30/06/2017 A ASSICURAZIONI GENERALI AGENZIA DI EMPLI VIA VERDI.;119;1;10;4;1;999
ALREDY TOSCANA SOC. COOP.;24/01/2017;Stampa e rilegatura;41,80;IVA Liquidazione Fattura Nr. 938 del 30/11/2016 - vendita;120;1;3;2;13;4
ALREDY TOSCANA SOC. COOP.;24/01/2017;Stampa e rilegatura;190,00;Liquidazione Fattura Nr. 938 del 30/11/2016 - vendita;120;1;3;2;13;4
FIRENZE PUBBLICITA' S.N.C.;24/01/2017;Altri servizi diversi n.a.c.;423,77;IVA Liquidazione Fattura Nr. 15/a  del 21/12/2016 - Fornitura generica;121;1;3;2;99;999
FIRENZE PUBBLICITA' S.N.C.;24/01/2017;Altri servizi diversi n.a.c.;1.926,23;Liquidazione Fattura Nr. 15/a  del 21/12/2016 - Fornitura generica;121;1;3;2;99;999
L'ELETTRICA S.P.A.;26/01/2017;Accessori per uffici e alloggi;10,20;PAGAMENTO BUONO ECONOMALE NR. 200113 - ACQUISTO BENI PER MANUTENZIONE SEDI ISTITUZIONALI - ACQUISTO DIECI VALVOLINI PER LAMPIONI DELLA PUBBLICA ILLUMINAZIONE;122;1;3;1;2;5
MAZZANTI MONICA IN QUALITA' DI AGENTE CONTABILE - ECONOMO COMUNALE;26/01/2017;Carta, cancelleria e stampati;9,00;PAGAMENTO BUONO ECONOMALE NR. 200103 - ASSEGNAZIONE ALL'ECONOMO PER ACQUISTO URGENTE  PER GLI UFFICI - ACQUISTO NASTRO DA PACCHI PER CONFEZIONARE LE SCATOLE PER L'ARCHIVIO;123;1;3;1;2;1
MARINELLI MARIA ROSARIA;26/01/2017;Spese postali;48,68;PAGAMENTO BUONO ECONOMALE NR. 200104 - ASSEGNAZIONE ALL'ECONOMO PER SPEDIZIONI URGENTI E IMPREVSISTE DI VARIE TIPOLOGIE DI PACCHI POSTALI - SPEDITO PACCO ALL'AMBASCIATORE IN FRANCIA;124;1;3;2;16;2
TABACCHERIA LEONARDO;26/01/2017;Spese postali;22,00;PAGAMENTO BUONO ECONOMALE NR. 200114 - ASSEGNAZIONE ALL'ECONOMO PER SPEDIZIONI URGENTI E IMPREVSISTE DI VARIE TIPOLOGIE DI PACCHI POSTALI - ACQUISTO 11 MARCHE DA BOLLO PER DISTINTE AFFRANCATRICE;124;1;3;2;16;2
NESTI FABIO;26/01/2017;Manutenzione ordinaria e riparazioni di mezzi di trasporto ad uso civile, di sicurezza e ordine pubblico;25,00;PAGAMENTO BUONO ECONOMALE NR. 200105 -  RIPARAZIONE AUTOVEICOLI PER LE MANUTENZIONI SERVIZI SPORT E TEMPO LIBERO- RIPARAZIONE RUOTA FORATA DEL TRATTORINO;125;1;3;2;9;1
B & B S.R.L.;26/01/2017;Carta, cancelleria e stampati;48,60;PAGAMENTO BUONO ECONOMALE NR. 200112 - ASSEGNAZIONE ALL'ECONOMO PER ACQUISTI URGENTI DI CANCELLERIA - ACQUISTO MATERIALE VARIO DI CANCELLERIA PER NATALE AL MUSEO;127;1;3;1;2;1
B & B UFFICIO SRL;26/01/2017;Carta, cancelleria e stampati;48,00;PAGAMENTO BUONO ECONOMALE NR. 200106 - ASSEGNAZIONE ALL'ECONOMO PER ACQUISTI URGENTI DI CANCELLERIA -ACQUISTO MATERIALE PER INIZIATIVE NATALIZIE IN BIBLIOTECA;127;1;3;1;2;1
POSTE ITALIANE S.P.A. - FILIALE DI EMPOLI;26/01/2017;Carta, cancelleria e stampati;6,75;PAGAMENTO BUONO ECONOMALE NR. 200109 - ASSEGNAZIONE ALL'ECONOMO PER ACQUISTI URGENTI DI CANCELLERIA - FATTA RACCOMANDATA URGENTE A.R. PER DIPENDENTE F,F.;127;1;3;1;2;1
UNICOOP FIRENZE SOC. COOPERATIVA A RESPONSABILIT� LIMITATA;26/01/2017;Carta, cancelleria e stampati;49,72;PAGAMENTO BUONO ECONOMALE NR. 200107 - ASSEGNAZIONE ALL'ECONOMO PER ACQUISTI URGENTI DI CANCELLERIA - ACQUISTO MATERIALE PER INIZIATIVE NATALIZIE IN BIBLIOTECA;127;1;3;1;2;1
UNICOOP FIRENZE SOC. COOPERATIVA A RESPONSABILIT� LIMITATA;26/01/2017;Carta, cancelleria e stampati;46,81;PAGAMENTO BUONO ECONOMALE NR. 200111 - ASSEGNAZIONE ALL'ECONOMO PER ACQUISTI URGENTI DI CANCELLERIA - ACQUISTO MATERIALE VARIO DI CANCELLERIA PER NATALE AL MUSEO;127;1;3;1;2;1
TABACCHERIA LEONARDO;26/01/2017;Carta, cancelleria e stampati;18,00;PAGAMENTO BUONO ECONOMALE NR. 200108 - ASSEGNAZIONE ALL'ECONOMO PER ACQUISTO MARCHE DA APPLICARE SU CONTRATTI DEL SETTORE V  ACQUISTO DUE MARCHE ;128;1;3;1;2;1
UFFICIO TECNICA S.R.L.;26/01/2017;Carta, cancelleria e stampati;25,40;PAGAMENTO BUONO ECONOMALE NR. 200110 - SPESE MINUTE ED URGENTI PER IL SETTORE URBANISTICA ED AMBIENTE - ACQUISTO ROTOLO DI CARTA PER IL PLOTTER DELL'UFFICIO URBANISTICA;129;1;3;1;2;1
SELMI DI SELMI ANDREA & SELMI FRANCESCO S.N.C.;26/01/2017;Altri beni e materiali di consumo n.a.c.;217,09;IVA-Liqu.Fattura Nr. 2/A  del 31/10/2016 (di cui Split per euro 217,09) - MATERIALI FERRAMENTA PER SEDI ISTITUZIONALI Fattura Nr. 2/A del 31-10-2016;130;1;3;1;2;999
SELMI DI SELMI ANDREA & SELMI FRANCESCO S.N.C.;26/01/2017;Altri beni e materiali di consumo n.a.c.;986,78;Liquidazione Fattura Nr. 2/A  del 31/10/2016 - MATERIALI FERRAMENTA PER SEDI ISTITUZIONALI;130;1;3;1;2;999
INNOCENTI VASCO - IMBIANCHINO;26/01/2017;Manutenzione ordinaria e riparazioni di beni immobili;33,00;IVA-Liquidazione Fattura Nr. 2PA  del 09/11/2016 (di cui Split per euro 33,00) - RIPRESE IMBIANCATURA INTERNA ED ESTERNA EDIFICI ISTITUZIONALI;131;1;3;2;9;8
INNOCENTI VASCO - IMBIANCHINO;26/01/2017;Manutenzione ordinaria e riparazioni di beni immobili;150,00;Liquidazione Fattura Nr. 2PA  del 09/11/2016 - RIPRESE IMBIANCATURA INTERNA ED ESTERNA EDIFICI ISTITUZIONALI;131;1;3;2;9;8
ARNO MANETTI ASCENSORI S.R.L.;26/01/2017;Manutenzione ordinaria e riparazioni di impianti e macchinari;62,70;IVA-Liqu. Fattura Nr. 4096  del 28/11/2016 (di cui Split per euro 62,70) - Manut. imp. ascensore 3� trim. 2016 sedi istituzionali, scuole, Villa Reghini, RSA, Palasport per la parte istituzionale Fattura Nr. 4096 del 28-11-2016;132;1;3;2;9;4
ARNO MANETTI ASCENSORI S.R.L.;26/01/2017;Manutenzione ordinaria e riparazioni di impianti e macchinari;285,00;Liquidazione Fattura Nr. 4096  del 28/11/2016 - Manut. imp. ascensore 3� trim. 2016 sedi istituzionali, scuole, Villa Reghini, RSA, Palasport per la parte istituzionale;132;1;3;2;9;4
R.F. ANTINCENDIO  DI FORCONI GIOVANNI;26/01/2017;Manutenzione ordinaria e riparazioni di impianti e macchinari;135,97;IVA-Liqu. Fattura Nr. 249/PA2016  del 18/11/2016 (di cui Split per euro 135,97) - MANUT. E VERIF.  PRESIDI ANTINC. EDIF. ISTITUZIONALI, ALTRI SERV. GENERALI, SCUOLE, BIBL., TEATRO, UFF. TURIS., RSA, VILLA REGHINI, PALASPORT PARTE ISTITUZ Fa;132;1;3;2;9;4
R.F. ANTINCENDIO  DI FORCONI GIOVANNI;26/01/2017;Manutenzione ordinaria e riparazioni di impianti e macchinari;156,83;IVA-Liquidazione Fattura Nr. 251/PA2016  del 18/11/2016 (di cui Split per euro 156,83) - MANUTENZIONE EXTRACANOME PRESIDI ANTINCENDIO SU EDIFICI SOGGETTI A SPLIT PAYMENT;132;1;3;2;9;4
R.F. ANTINCENDIO  DI FORCONI GIOVANNI;26/01/2017;Manutenzione ordinaria e riparazioni di impianti e macchinari;618,02;Liquidazione Fattura Nr. 249/PA2016  del 18/11/2016 - MANUT. E VERIF.  PRESIDI ANTINC. EDIF. ISTITUZIONALI, ALTRI SERV. GENERALI, SCUOLE, BIBL., TEATRO, UFF. TURIS., RSA, VILLA REGHINI, PALASPORT PARTE ISTITUZ.   ;132;1;3;2;9;4
R.F. ANTINCENDIO  DI FORCONI GIOVANNI;26/01/2017;Manutenzione ordinaria e riparazioni di impianti e macchinari;712,86;Liquidazione Fattura Nr. 251/PA2016  del 18/11/2016 - MANUTENZIONE EXTRACANOME PRESIDI ANTINCENDIO SU EDIFICI SOGGETTI A SPLIT PAYMENT;132;1;3;2;9;4
R.F. ANTINCENDIO  DI FORCONI GIOVANNI;26/01/2017;Manutenzione ordinaria e riparazioni di impianti e macchinari;31,15;IVA-Liqu. Fattura Nr. 249/PA2016  del 18/11/2016 (di cui Split per euro 31,15) - MANUT. E VERIF.  PRESIDI ANTINC. EDIF. ISTITUZIONALI, ALTRI SERV. GENERALI, SCUOLE, BIBL., TEATRO, UFF. TURIS., RSA, VILLA REGHINI, PALASPORT PARTE ISTITUZ. Fa;133;1;3;2;9;4
R.F. ANTINCENDIO  DI FORCONI GIOVANNI;26/01/2017;Manutenzione ordinaria e riparazioni di impianti e macchinari;30,64;IVA-Liquidazione Fattura Nr. 251/PA2016  del 18/11/2016 (di cui Split per euro 30,64) - MANUTENZIONE EXTRACANOME PRESIDI ANTINCENDIO SU EDIFICI SOGGETTI A SPLIT PAYMENT;133;1;3;2;9;4
R.F. ANTINCENDIO  DI FORCONI GIOVANNI;26/01/2017;Manutenzione ordinaria e riparazioni di impianti e macchinari;141,58;Liquidazione Fattura Nr. 249/PA2016  del 18/11/2016 - MANUT. E VERIF.  PRESIDI ANTINC. EDIF. ISTITUZIONALI, ALTRI SERV. GENERALI, SCUOLE, BIBL., TEATRO, UFF. TURIS., RSA, VILLA REGHINI, PALASPORT PARTE ISTITUZ.   ;133;1;3;2;9;4
R.F. ANTINCENDIO  DI FORCONI GIOVANNI;26/01/2017;Manutenzione ordinaria e riparazioni di impianti e macchinari;139,24;Liquidazione Fattura Nr. 251/PA2016  del 18/11/2016 - MANUTENZIONE EXTRACANOME PRESIDI ANTINCENDIO SU EDIFICI SOGGETTI A SPLIT PAYMENT;133;1;3;2;9;4
SPEMA S.N.C. - ALLESTIMENTI SU VEICOLI INDUSTRIALI;26/01/2017;Manutenzione ordinaria e riparazioni di mezzi di trasporto ad uso civile, di sicurezza e ordine pubblico;38,28;IVA-Liqu. Fattura Nr. 6  del 24/11/2016 (di cui Split per euro 38,28) - ASSISTENZA ALLA VERIFICA PERIODICA DELLA GRU MATR.FI/200228/05, DELLA GRU MATR. FI/200065/12 E DEL PONTE SVILUPPABILE MOTORIZZATO MATR.. FI/200504/08- DETERMINA A CO Fa;134;1;3;2;9;1
SPEMA S.N.C. - ALLESTIMENTI SU VEICOLI INDUSTRIALI;26/01/2017;Manutenzione ordinaria e riparazioni di mezzi di trasporto ad uso civile, di sicurezza e ordine pubblico;174,00;Liquidazione Fattura Nr. 6  del 24/11/2016 - ASSISTENZA ALLA VERIFICA PERIODICA DELLA GRU MATR.FI/200228/05, DELLA GRU MATR. FI/200065/12 E DEL PONTE SVILUPPABILE MOTORIZZATO MATR.. FI/200504/08- DETERMINA A CONTRARRE E AFFIDAMENTO DITTA SP;134;1;3;2;9;1
SPEMA S.N.C. - ALLESTIMENTI SU VEICOLI INDUSTRIALI;26/01/2017;Manutenzione ordinaria e riparazioni di mezzi di trasporto ad uso civile, di sicurezza e ordine pubblico;109,12;IVA-Liqu. Fattura Nr. 6  del 24/11/2016 (di cui Split per euro 109,12) - ASSISTENZA ALLA VERIFICA PERIODICA DELLA GRU MATR.FI/200228/05, DELLA GRU MATR. FI/200065/12 E DEL PONTE SVILUPPABILE MOTORIZZATO MATR.. FI/200504/08- DETERMINA A C Fa;135;1;3;2;9;1
SPEMA S.N.C. - ALLESTIMENTI SU VEICOLI INDUSTRIALI;26/01/2017;Manutenzione ordinaria e riparazioni di mezzi di trasporto ad uso civile, di sicurezza e ordine pubblico;496,00;Liquidazione Fattura Nr. 6  del 24/11/2016 - ASSISTENZA ALLA VERIFICA PERIODICA DELLA GRU MATR.FI/200228/05, DELLA GRU MATR. FI/200065/12 E DEL PONTE SVILUPPABILE MOTORIZZATO MATR.. FI/200504/08- DETERMINA A CONTRARRE E AFFIDAMENTO DITTA SP;135;1;3;2;9;1
ARNO MANETTI ASCENSORI S.R.L.;26/01/2017;Manutenzione ordinaria e riparazioni di impianti e macchinari;20,35;IVA-Liqu. Fattura Nr. 4096  del 28/11/2016 (di cui Split per euro 20,35) - Manut. imp. ascensore 3� trim. 2016 sedi istituzionali, scuole, Villa Reghini, RSA, Palasport per la parte istituzionale Fattura Nr. 4096 del 28-11-2016;136;1;3;2;9;4
ARNO MANETTI ASCENSORI S.R.L.;26/01/2017;Manutenzione ordinaria e riparazioni di impianti e macchinari;92,50;Liquidazione Fattura Nr. 4096  del 28/11/2016 - Manut. imp. ascensore 3� trim. 2016 sedi istituzionali, scuole, Villa Reghini, RSA, Palasport per la parte istituzionale;136;1;3;2;9;4
R.F. ANTINCENDIO  DI FORCONI GIOVANNI;26/01/2017;Manutenzione ordinaria e riparazioni di impianti e macchinari;132,28;IVA-Liqu. Fattura Nr. 249/PA2016  del 18/11/2016 (di cui Split per euro 132,28) - MANUT. E VERIF.  PRESIDI ANTINC. EDIF. ISTITUZIONALI, ALTRI SERV. GENERALI, SCUOLE, BIBL., TEATRO, UFF. TURIS., RSA, VILLA REGHINI, PALASPORT PARTE ISTITUZ Fa;136;1;3;2;9;4
R.F. ANTINCENDIO  DI FORCONI GIOVANNI;26/01/2017;Manutenzione ordinaria e riparazioni di impianti e macchinari;135,29;IVA-Liquidazione Fattura Nr. 251/PA2016  del 18/11/2016 (di cui Split per euro 135,29) - MANUTENZIONE EXTRACANOME PRESIDI ANTINCENDIO SU EDIFICI SOGGETTI A SPLIT PAYMENT;136;1;3;2;9;4
R.F. ANTINCENDIO  DI FORCONI GIOVANNI;26/01/2017;Manutenzione ordinaria e riparazioni di impianti e macchinari;601,28;Liquidazione Fattura Nr. 249/PA2016  del 18/11/2016 - MANUT. E VERIF.  PRESIDI ANTINC. EDIF. ISTITUZIONALI, ALTRI SERV. GENERALI, SCUOLE, BIBL., TEATRO, UFF. TURIS., RSA, VILLA REGHINI, PALASPORT PARTE ISTITUZ.   ;136;1;3;2;9;4
R.F. ANTINCENDIO  DI FORCONI GIOVANNI;26/01/2017;Manutenzione ordinaria e riparazioni di impianti e macchinari;614,94;Liquidazione Fattura Nr. 251/PA2016  del 18/11/2016 - MANUTENZIONE EXTRACANOME PRESIDI ANTINCENDIO SU EDIFICI SOGGETTI A SPLIT PAYMENT;136;1;3;2;9;4
ARNO MANETTI ASCENSORI S.R.L.;26/01/2017;Manutenzione ordinaria e riparazioni di impianti e macchinari;30,52;IVA-Liqui. Fattura Nr. 4096  del 28/11/2016 (di cui Split per euro 30,52) - Manut. imp. ascensore 3� trim. 2016 sedi istituzionali, scuole, Villa Reghini, RSA, Palasport per la parte istituzionale Fattura Nr. 4096 del 28-11-2016;137;1;3;2;9;4
ARNO MANETTI ASCENSORI S.R.L.;26/01/2017;Manutenzione ordinaria e riparazioni di impianti e macchinari;138,75;Liquidazione Fattura Nr. 4096  del 28/11/2016 - Manut. imp. ascensore 3� trim. 2016 sedi istituzionali, scuole, Villa Reghini, RSA, Palasport per la parte istituzionale;137;1;3;2;9;4
R.F. ANTINCENDIO  DI FORCONI GIOVANNI;26/01/2017;Manutenzione ordinaria e riparazioni di impianti e macchinari;76,30;IVA-Liqu. Fattura Nr. 249/PA2016  del 18/11/2016 (di cui Split per euro 76,30) - MANUT. E VERIF.  PRESIDI ANTINC. EDIF. ISTITUZIONALI, ALTRI SERV. GENERALI, SCUOLE, BIBL., TEATRO, UFF. TURIS., RSA, VILLA REGHINI, PALASPORT PARTE ISTITUZ. Fa;137;1;3;2;9;4
R.F. ANTINCENDIO  DI FORCONI GIOVANNI;26/01/2017;Manutenzione ordinaria e riparazioni di impianti e macchinari;301,71;IVA-Liquidazione Fattura Nr. 251/PA2016  del 18/11/2016 (di cui Split per euro 301,71) - MANUTENZIONE EXTRACANOME PRESIDI ANTINCENDIO SU EDIFICI SOGGETTI A SPLIT PAYMENT;137;1;3;2;9;4
R.F. ANTINCENDIO  DI FORCONI GIOVANNI;26/01/2017;Manutenzione ordinaria e riparazioni di impianti e macchinari;346,80;Liquidazione Fattura Nr. 249/PA2016  del 18/11/2016 - MANUT. E VERIF.  PRESIDI ANTINC. EDIF. ISTITUZIONALI, ALTRI SERV. GENERALI, SCUOLE, BIBL., TEATRO, UFF. TURIS., RSA, VILLA REGHINI, PALASPORT PARTE ISTITUZ.   ;137;1;3;2;9;4
R.F. ANTINCENDIO  DI FORCONI GIOVANNI;26/01/2017;Manutenzione ordinaria e riparazioni di impianti e macchinari;1.371,40;Liquidazione Fattura Nr. 251/PA2016  del 18/11/2016 - MANUTENZIONE EXTRACANOME PRESIDI ANTINCENDIO SU EDIFICI SOGGETTI A SPLIT PAYMENT;137;1;3;2;9;4
ARNO MANETTI ASCENSORI S.R.L.;26/01/2017;Manutenzione ordinaria e riparazioni di impianti e macchinari;30,53;IVA-Liqu. Fattura Nr. 4096  del 28/11/2016 (di cui Split per euro 30,53) - Manut. imp. ascensore 3� trim. 2016 sedi istituzionali, scuole, Villa Reghini, RSA, Palasport per la parte istituzionale Fattura Nr. 4096 del 28-11-2016;138;1;3;2;9;4
ARNO MANETTI ASCENSORI S.R.L.;26/01/2017;Manutenzione ordinaria e riparazioni di impianti e macchinari;138,75;Liquidazione Fattura Nr. 4096  del 28/11/2016 - Manut. imp. ascensore 3� trim. 2016 sedi istituzionali, scuole, Villa Reghini, RSA, Palasport per la parte istituzionale;138;1;3;2;9;4
R.F. ANTINCENDIO  DI FORCONI GIOVANNI;26/01/2017;Manutenzione ordinaria e riparazioni di impianti e macchinari;124,14;IVA-Liqu. Fattura Nr. 249/PA2016  del 18/11/2016 (di cui Split per euro 124,14) - MANUT. E VERIF.  PRESIDI ANTINC. EDIF. ISTITUZIONALI, ALTRI SERV. GENERALI, SCUOLE, BIBL., TEATRO, UFF. TURIS., RSA, VILLA REGHINI, PALASPORT PARTE ISTITUZ Fa;138;1;3;2;9;4
R.F. ANTINCENDIO  DI FORCONI GIOVANNI;26/01/2017;Manutenzione ordinaria e riparazioni di impianti e macchinari;31,74;IVA-Liquidazione Fattura Nr. 251/PA2016  del 18/11/2016 (di cui Split per euro 31,74) - MANUTENZIONE EXTRACANOME PRESIDI ANTINCENDIO SU EDIFICI SOGGETTI A SPLIT PAYMENT;138;1;3;2;9;4
R.F. ANTINCENDIO  DI FORCONI GIOVANNI;26/01/2017;Manutenzione ordinaria e riparazioni di impianti e macchinari;564,28;Liquidazione Fattura Nr. 249/PA2016  del 18/11/2016 - MANUT. E VERIF.  PRESIDI ANTINC. EDIF. ISTITUZIONALI, ALTRI SERV. GENERALI, SCUOLE, BIBL., TEATRO, UFF. TURIS., RSA, VILLA REGHINI, PALASPORT PARTE ISTITUZ.   ;138;1;3;2;9;4
R.F. ANTINCENDIO  DI FORCONI GIOVANNI;26/01/2017;Manutenzione ordinaria e riparazioni di impianti e macchinari;144,28;Liquidazione Fattura Nr. 251/PA2016  del 18/11/2016 - MANUTENZIONE EXTRACANOME PRESIDI ANTINCENDIO SU EDIFICI SOGGETTI A SPLIT PAYMENT;138;1;3;2;9;4
ACQUE S.P.A.;26/01/2017;Acqua;26,73;IVA - Liquidazione Fattura Nr. 6016012000008130  del 30/12/2016 (di cui Split per euro 26,73) - FORNITURA ACQUA POTABILE CASA NATALE LEONARDO;139;1;3;2;5;5
ACQUE S.P.A.;26/01/2017;Acqua;267,25;Liquidazione Fattura Nr. 6016012000008130  del 30/12/2016 - FORNITURA ACQUA POTABILE CASA NATALE LEONARDO;139;1;3;2;5;5
ARNO MANETTI ASCENSORI S.R.L.;26/01/2017;Manutenzione ordinaria e riparazioni di impianti e macchinari;61,05;IVA-Liqu. Fattura Nr. 4097  del 28/11/2016 - Manut. imp. ascensore Museo, Casa Natale, Palazzina, Nido, Papasport per il 60% uso extrascolastico Fattura Nr. 4097 del 28-11-2016;140;1;3;2;9;4
ARNO MANETTI ASCENSORI S.R.L.;26/01/2017;Manutenzione ordinaria e riparazioni di impianti e macchinari;277,50;Liquidazione Fattura Nr. 4097  del 28/11/2016 - Manut. imp. ascensore Museo, Casa Natale, Palazzina, Nido, Papasport per il 60% uso extrascolastico;140;1;3;2;9;4
R.F. ANTINCENDIO  DI FORCONI GIOVANNI;26/01/2017;Manutenzione ordinaria e riparazioni di impianti e macchinari;171,76;IVA-Liqu. Fattura Nr. 250/PA2016  del 18/11/2016 - VERIF. PRESIDI ANTINCENDIO MUSEO, CASA NATALE, PALAZZINA, NIDO, PALASPORT Fattura Nr. 250/PA2016 del 18-11-2016;140;1;3;2;9;4
R.F. ANTINCENDIO  DI FORCONI GIOVANNI;26/01/2017;Manutenzione ordinaria e riparazioni di impianti e macchinari;136,06;IVA-Liquidazione Fattura Nr. 252/PA2016  del 18/11/2016 - MANUTENZIONE EXTRACANONE PRESIDI ANTINCENDIO SU EDIFICI SOGGETTI A REVERSE CHARGE;140;1;3;2;9;4
R.F. ANTINCENDIO  DI FORCONI GIOVANNI;26/01/2017;Manutenzione ordinaria e riparazioni di impianti e macchinari;780,75;Liquidazione Fattura Nr. 250/PA2016  del 18/11/2016 - VERIF. PRESIDI ANTINCENDIO MUSEO, CASA NATALE, PALAZZINA, NIDO, PALASPORT;140;1;3;2;9;4
R.F. ANTINCENDIO  DI FORCONI GIOVANNI;26/01/2017;Manutenzione ordinaria e riparazioni di impianti e macchinari;618,43;Liquidazione Fattura Nr. 252/PA2016  del 18/11/2016 - MANUTENZIONE EXTRACANONE PRESIDI ANTINCENDIO SU EDIFICI SOGGETTI A REVERSE CHARGE;140;1;3;2;9;4
R.F. ANTINCENDIO  DI FORCONI GIOVANNI;26/01/2017;Manutenzione ordinaria e riparazioni di impianti e macchinari;36,95;IVA-Liqu. Fattura Nr. 249/PA2016  del 18/11/2016 (di cui Split per euro 36,95) - MANUT. E VERIF.  PRESIDI ANTINC. EDIF. ISTITUZIONALI, ALTRI SERV. GENERALI, SCUOLE, BIBL., TEATRO, UFF. TURIS., RSA, VILLA REGHINI, PALASPORT PARTE ISTITUZ. Fa;141;1;3;2;9;4
R.F. ANTINCENDIO  DI FORCONI GIOVANNI;26/01/2017;Manutenzione ordinaria e riparazioni di impianti e macchinari;45,25;IVA-Liquidazione Fattura Nr. 251/PA2016  del 18/11/2016 (di cui Split per euro 45,25) - MANUTENZIONE EXTRACANOME PRESIDI ANTINCENDIO SU EDIFICI SOGGETTI A SPLIT PAYMENT;141;1;3;2;9;4
R.F. ANTINCENDIO  DI FORCONI GIOVANNI;26/01/2017;Manutenzione ordinaria e riparazioni di impianti e macchinari;167,94;Liquidazione Fattura Nr. 249/PA2016  del 18/11/2016 - MANUT. E VERIF.  PRESIDI ANTINC. EDIF. ISTITUZIONALI, ALTRI SERV. GENERALI, SCUOLE, BIBL., TEATRO, UFF. TURIS., RSA, VILLA REGHINI, PALASPORT PARTE ISTITUZ.   ;141;1;3;2;9;4
R.F. ANTINCENDIO  DI FORCONI GIOVANNI;26/01/2017;Manutenzione ordinaria e riparazioni di impianti e macchinari;205,70;Liquidazione Fattura Nr. 251/PA2016  del 18/11/2016 - MANUTENZIONE EXTRACANOME PRESIDI ANTINCENDIO SU EDIFICI SOGGETTI A SPLIT PAYMENT;141;1;3;2;9;4
R.F. ANTINCENDIO  DI FORCONI GIOVANNI;26/01/2017;Manutenzione ordinaria e riparazioni di impianti e macchinari;61,51;IVA-Liqu.Fattura Nr. 249/PA2016  del 18/11/2016 (di cui Split per euro 61,51) - MANUT. E VERIF.  PRESIDI ANTINC. EDIF. ISTITUZIONALI, ALTRI SERV. GENERALI, SCUOLE, BIBL., TEATRO, UFF. TURIS., RSA, VILLA REGHINI, PALASPORT PARTE ISTITUZ. Fat;142;1;3;2;9;4
R.F. ANTINCENDIO  DI FORCONI GIOVANNI;26/01/2017;Manutenzione ordinaria e riparazioni di impianti e macchinari;92,71;IVA-Liquidazione Fattura Nr. 251/PA2016  del 18/11/2016 (di cui Split per euro 92,71) - MANUTENZIONE EXTRACANOME PRESIDI ANTINCENDIO SU EDIFICI SOGGETTI A SPLIT PAYMENT;142;1;3;2;9;4
R.F. ANTINCENDIO  DI FORCONI GIOVANNI;26/01/2017;Manutenzione ordinaria e riparazioni di impianti e macchinari;279,62;Liquidazione Fattura Nr. 249/PA2016  del 18/11/2016 - MANUT. E VERIF.  PRESIDI ANTINC. EDIF. ISTITUZIONALI, ALTRI SERV. GENERALI, SCUOLE, BIBL., TEATRO, UFF. TURIS., RSA, VILLA REGHINI, PALASPORT PARTE ISTITUZ.   ;142;1;3;2;9;4
R.F. ANTINCENDIO  DI FORCONI GIOVANNI;26/01/2017;Manutenzione ordinaria e riparazioni di impianti e macchinari;421,42;Liquidazione Fattura Nr. 251/PA2016  del 18/11/2016 - MANUTENZIONE EXTRACANOME PRESIDI ANTINCENDIO SU EDIFICI SOGGETTI A SPLIT PAYMENT;142;1;3;2;9;4
UISP - UNIONE ITALIANA SPORT PER TUTTI COMITATO TERRITORIALE EMPOLI VALDELSA;26/01/2017;Altri servizi diversi n.a.c.;2.728,53;Liquidazione Fattura Nr. 236/2016  del 16/11/2016 - Servizio di custodia e pulizia Palasport Falcone e Borsellino CIG Z191B08EFF settembre 2016 la fatturazione effettuata da soggetto che si avvale del regime di cui alla Legge 16/12/1991 n.3;143;1;3;2;99;999
UISP - UNIONE ITALIANA SPORT PER TUTTI COMITATO TERRITORIALE EMPOLI VALDELSA;26/01/2017;Altri servizi diversi n.a.c.;4.295,01;Liquidazione Fattura Nr. 237/2016  del 16/11/2016 - Servizio di custodia e pulizia Palasport Falcone e Borsellino CIG Z191B08EFF ottobre 2016 fatturazione effettuata da soggetto che si avvale del regime di cui alla Legge 16/12/1991 n.398 no;143;1;3;2;99;999
100,50ARNO MANETTI ASCENSORI S.R.L.;26/01/2017;Manutenzione ordinaria e riparazioni di impianti e macchinari;100,50;Liquidazione Fattura Nr. 4097  del 28/11/2016 - Manut. imp. ascensore Museo, Casa Natale, Palazzina, Nido, Papasport per il 60% uso extrascolastico;144;1;3;2;9;4
ARNO MANETTI ASCENSORI S.R.L.;26/01/2017;Manutenzione ordinaria e riparazioni di impianti e macchinari;14,74;IVA-Liqu. Fattura Nr. 4096  del 28/11/2016 (di cui Split per euro 14,74) - Manut. imp. ascensore 3� trim. 2016 sedi istituzionali, scuole, Villa Reghini, RSA, Palasport per la parte istituzionale Fattura Nr. 4096 del 28-11-2016;144;1;3;2;9;4
ARNO MANETTI ASCENSORI S.R.L.;26/01/2017;Manutenzione ordinaria e riparazioni di impianti e macchinari;22,11;IVA-Liqu. Fattura Nr. 4097  del 28/11/2016 - Manut. imp. ascensore Museo, Casa Natale, Palazzina, Nido, Papasport per il 60% uso extrascolastico Fattura Nr. 4097 del 28-11-2016;144;1;3;2;9;4
ARNO MANETTI ASCENSORI S.R.L.;26/01/2017;Manutenzione ordinaria e riparazioni di impianti e macchinari;67,00;Liquidazione Fattura Nr. 4096  del 28/11/2016 - Manut. imp. ascensore 3� trim. 2016 sedi istituzionali, scuole, Villa Reghini, RSA, Palasport per la parte istituzionale;144;1;3;2;9;4
R.F. ANTINCENDIO  DI FORCONI GIOVANNI;26/01/2017;Manutenzione ordinaria e riparazioni di impianti e macchinari;40,29;IVA-Liqu. Fattura Nr. 249/PA2016  del 18/11/2016 (di cui Split per euro 40,29) - MANUT. E VERIF.  PRESIDI ANTINC. EDIF. ISTITUZIONALI, ALTRI SERV. GENERALI, SCUOLE, BIBL., TEATRO, UFF. TURIS., RSA, VILLA REGHINI, PALASPORT PARTE ISTITUZ. Fa;144;1;3;2;9;4
R.F. ANTINCENDIO  DI FORCONI GIOVANNI;26/01/2017;Manutenzione ordinaria e riparazioni di impianti e macchinari;66,86;IVA-Liqu.Fattura Nr. 250/PA2016  del 18/11/2016 - VERIF. PRESIDI ANTINCENDIO MUSEO, CASA NATALE, PALAZZINA, NIDO, PALASPORT Fattura Nr. 250/PA2016 del 18-11-2016;144;1;3;2;9;4
R.F. ANTINCENDIO  DI FORCONI GIOVANNI;26/01/2017;Manutenzione ordinaria e riparazioni di impianti e macchinari;6,99;IVA-Liquidazione Fattura Nr. 251/PA2016  del 18/11/2016 (di cui Split per euro 6,99) - MANUTENZIONE EXTRACANOME PRESIDI ANTINCENDIO SU EDIFICI SOGGETTI A SPLIT PAYMENT;144;1;3;2;9;4
R.F. ANTINCENDIO  DI FORCONI GIOVANNI;26/01/2017;Manutenzione ordinaria e riparazioni di impianti e macchinari;10,48;IVA-Liquidazione Fattura Nr. 252/PA2016  del 18/11/2016 - MANUTENZIONE EXTRACANONE PRESIDI ANTINCENDIO SU EDIFICI SOGGETTI A REVERSE CHARGE;144;1;3;2;9;4
R.F. ANTINCENDIO  DI FORCONI GIOVANNI;26/01/2017;Manutenzione ordinaria e riparazioni di impianti e macchinari;183,13;Liquidazione Fattura Nr. 249/PA2016  del 18/11/2016 - MANUT. E VERIF.  PRESIDI ANTINC. EDIF. ISTITUZIONALI, ALTRI SERV. GENERALI, SCUOLE, BIBL., TEATRO, UFF. TURIS., RSA, VILLA REGHINI, PALASPORT PARTE ISTITUZ.   ;144;1;3;2;9;4
R.F. ANTINCENDIO  DI FORCONI GIOVANNI;26/01/2017;Manutenzione ordinaria e riparazioni di impianti e macchinari;303,89;Liquidazione Fattura Nr. 250/PA2016  del 18/11/2016 - VERIF. PRESIDI ANTINCENDIO MUSEO, CASA NATALE, PALAZZINA, NIDO, PALASPORT;144;1;3;2;9;4
R.F. ANTINCENDIO  DI FORCONI GIOVANNI;26/01/2017;Manutenzione ordinaria e riparazioni di impianti e macchinari;31,77;Liquidazione Fattura Nr. 251/PA2016  del 18/11/2016 - MANUTENZIONE EXTRACANOME PRESIDI ANTINCENDIO SU EDIFICI SOGGETTI A SPLIT PAYMENT;144;1;3;2;9;4
R.F. ANTINCENDIO  DI FORCONI GIOVANNI;26/01/2017;Manutenzione ordinaria e riparazioni di impianti e macchinari;47,66;Liquidazione Fattura Nr. 252/PA2016  del 18/11/2016 - MANUTENZIONE EXTRACANONE PRESIDI ANTINCENDIO SU EDIFICI SOGGETTI A REVERSE CHARGE;144;1;3;2;9;4
ACQUE S.P.A.;26/01/2017;Acqua;1,06;IVA - Liquidazione Fattura Nr. 6016012000008116  del 30/12/2016 (di cui Split per euro 1,06) - FORNITURA ACQUA POTABILE FONT.;145;1;3;2;5;5
ACQUE S.P.A.;26/01/2017;Acqua;1,97;IVA - Liquidazione Fattura Nr. 6016012000008131  del 30/12/2016 (di cui Split per euro 1,97) - FORNITURA ACQUA POTABILE FONT. PARCHEGGIO;145;1;3;2;5;5
ACQUE S.P.A.;26/01/2017;Acqua;10,55;Liquidazione Fattura Nr. 6016012000008116  del 30/12/2016 - FORNITURA ACQUA POTABILE FONT.;145;1;3;2;5;5
ACQUE S.P.A.;26/01/2017;Acqua;6,06;Liquidazione Fattura Nr. 6016012000008117  del 30/12/2016 - FORNITURA ACQUA POTABILE FONT.;145;1;3;2;5;5
ACQUE S.P.A.;26/01/2017;Acqua;0,61;Liquidazione Fattura Nr. 6016012000008117  del 30/12/2016 (di cui Split per euro 0,61) - FORNITURA ACQUA POTABILE FONT.;145;1;3;2;5;5
ACQUE S.P.A.;26/01/2017;Acqua;19,67;Liquidazione Fattura Nr. 6016012000008131  del 30/12/2016 - FORNITURA ACQUA POTABILE FONT. PARCHEGGIO;145;1;3;2;5;5
R.F. ANTINCENDIO  DI FORCONI GIOVANNI;26/01/2017;Manutenzione ordinaria e riparazioni di impianti e macchinari;0,53;IVA-Liqu. Fattura Nr. 249/PA2016  del 18/11/2016 (di cui Split per euro 0,53) - MANUT. E VERIF.  PRESIDI ANTINC. EDIF. ISTITUZIONALI, ALTRI SERV. GENERALI, SCUOLE, BIBL., TEATRO, UFF. TURIS., RSA, VILLA REGHINI, PALASPORT PARTE ISTITUZ.  Fa;146;1;3;2;9;4
R.F. ANTINCENDIO  DI FORCONI GIOVANNI;26/01/2017;Manutenzione ordinaria e riparazioni di impianti e macchinari;4,00;IVA-Liquidazione Fattura Nr. 251/PA2016  del 18/11/2016 (di cui Split per euro 4,00) - MANUTENZIONE EXTRACANOME PRESIDI ANTINCENDIO SU EDIFICI SOGGETTI A SPLIT PAYMENT;146;1;3;2;9;4
R.F. ANTINCENDIO  DI FORCONI GIOVANNI;26/01/2017;Manutenzione ordinaria e riparazioni di impianti e macchinari;2,41;Liquidazione Fattura Nr. 249/PA2016  del 18/11/2016 - MANUT. E VERIF.  PRESIDI ANTINC. EDIF. ISTITUZIONALI, ALTRI SERV. GENERALI, SCUOLE, BIBL., TEATRO, UFF. TURIS., RSA, VILLA REGHINI, PALASPORT PARTE ISTITUZ.   ;146;1;3;2;9;4
R.F. ANTINCENDIO  DI FORCONI GIOVANNI;26/01/2017;Manutenzione ordinaria e riparazioni di impianti e macchinari;18,18;Liquidazione Fattura Nr. 251/PA2016  del 18/11/2016 - MANUTENZIONE EXTRACANOME PRESIDI ANTINCENDIO SU EDIFICI SOGGETTI A SPLIT PAYMENT;146;1;3;2;9;4
PAGANELLI GARGANI LECCI  S.A.S.;26/01/2017;Manutenzione ordinaria e riparazioni di beni immobili;421,97;IVA-Liquidazione Fattura Nr. 000004-2016-FAEL  del 14/11/2016 (di cui Split per euro 421,97) - PULIZIA CADITOIE E POZZETTI STRADALI-AFFIDAMENTO DITTA PAGANELLI, GARGANI, LECCI SAS;147;1;3;2;9;8
PAGANELLI GARGANI LECCI  S.A.S.;26/01/2017;Manutenzione ordinaria e riparazioni di beni immobili;4.219,70;Liquidazione Fattura Nr. 000004-2016-FAEL  del 14/11/2016 - PULIZIA CADITOIE E POZZETTI STRADALI-AFFIDAMENTO DITTA PAGANELLI, GARGANI, LECCI SAS;147;1;3;2;9;8
CIONI STEFANO GEOMETRA;26/01/2017;Spese per commissioni e comitati dell'Ente;1.061,55;LIQUIDAZIONE FATTURA NR. 1/E  DEL 25/11/2016 - COMPENSO COMMISSIONI EDILIZIE COMUNALI;148;1;3;2;99;5
NICCOLI GIUDITTA ARCHITETTO;26/01/2017;Spese per commissioni e comitati dell'Ente;658,02;Liquidazione Fattura Nr. 1/A  del 14/12/2016 - COMPENSI PER COMMISSIONE PER IL PAESAGGIO 2014 - 2015 - 2016;148;1;3;2;99;5
PRODURRE PULITO SRL;26/01/2017;Altri servizi diversi n.a.c.;171,31;IVA Liquidazione Fattura Nr. PA-30  del 11/11/2016 - Smaltimento rifiuti speciali;149;1;3;2;99;999
PRODURRE PULITO SRL;26/01/2017;Altri servizi diversi n.a.c.;778,69;Liquidazione Fattura Nr. PA-30 del 11/11/2016 - Smaltimento rifiuti speciali;149;1;3;2;99;999
PRATESI LORENZO S.R.L.;26/01/2017;Altri beni e materiali di consumo n.a.c.;140,80;IVA - Liquidazione Fattura Nr. 9/E  del 24/10/2016 - ACQUISTO FORETTI DIAMANTATI PER FORATURA DI SUPERFICI _ DETERMINA A CONTRARRE E AFFIDAMENTO DITTA PRATESI LORENZO S.R.L.;150;1;3;1;2;999
PRATESI LORENZO S.R.L.;26/01/2017;Altri beni e materiali di consumo n.a.c.;640,00;Liquidazione Fattura Nr. 9/E  del 24/10/2016 - ACQUISTO FORETTI DIAMANTATI PER FORATURA DI SUPERFICI _ DETERMINA A CONTRARRE E AFFIDAMENTO DITTA PRATESI LORENZO S.R.L.;150;1;3;1;2;999
SARBA S.P.A.;26/01/2017;Manutenzione ordinaria e riparazioni di impianti e macchinari;1.452,66;IVA-Liqui. Fattura Nr. 203/PF  del 18/11/2016 (di cui Split per euro 1.452,66) - MANUTENZIONE GIOCHI INSTALLATI NEI GIARDINI COMUNALI - AFFIDAMENTO DITTA SARBA SPA. Fattura Nr. 203/PF del 18-11-2016;151;1;3;2;9;4
SARBA S.P.A.;26/01/2017;Manutenzione ordinaria e riparazioni di impianti e macchinari;6.603,00;Liquidazione Fattura Nr. 203/PF  del 18/11/2016 - MANUTENZIONE GIOCHI INSTALLATI NEI GIARDINI COMUNALI - AFFIDAMENTO DITTA SARBA SPA.;151;1;3;2;9;4
ACQUE S.P.A.;26/01/2017;Acqua;56,52;IVA - Liquidazione Fattura Nr. 6017012000000005  del 02/01/2017 (di cui Split per euro 56,52) - FORNITURA ACQUA POTABILE NIDO;152;1;3;2;5;5
ACQUE S.P.A.;26/01/2017;Acqua;565,16;Liquidazione Fattura Nr. 6017012000000005  del 02/01/2017 - FORNITURA ACQUA POTABILE NIDO;152;1;3;2;5;5
ARNO MANETTI ASCENSORI S.R.L.;26/01/2017;Manutenzione ordinaria e riparazioni di impianti e macchinari;20,35;IVA-Liqu. Fattura Nr. 4097  del 28/11/2016 - Manut. imp. ascensore Museo, Casa Natale, Palazzina, Nido, Papasport per il 60% uso extrascolastico Fattura Nr. 4097 del 28-11-2016;153;1;3;2;9;4
ARNO MANETTI ASCENSORI S.R.L.;26/01/2017;Manutenzione ordinaria e riparazioni di impianti e macchinari;92,50;Liquidazione Fattura Nr. 4097  del 28/11/2016 - Manut. imp. ascensore Museo, Casa Natale, Palazzina, Nido, Papasport per il 60% uso extrascolastico;153;1;3;2;9;4
R.F. ANTINCENDIO  DI FORCONI GIOVANNI;26/01/2017;Manutenzione ordinaria e riparazioni di impianti e macchinari;8,80;IVA-Liq. Fattura Nr. 250/PA2016  del 18/11/2016 - VERIF. PRESIDI ANTINCENDIO MUSEO, CASA NATALE, PALAZZINA, NIDO, PALASPORT Fattura Nr. 250/PA2016 del 18-11-2016;153;1;3;2;9;4
R.F. ANTINCENDIO  DI FORCONI GIOVANNI;26/01/2017;Manutenzione ordinaria e riparazioni di impianti e macchinari;24,52;IVA-Liquidazione Fattura Nr. 252/PA2016  del 18/11/2016 - MANUTENZIONE EXTRACANONE PRESIDI ANTINCENDIO SU EDIFICI SOGGETTI A REVERSE CHARGE;153;1;3;2;9;4
R.F. ANTINCENDIO  DI FORCONI GIOVANNI;26/01/2017;Manutenzione ordinaria e riparazioni di impianti e macchinari;40,00;Liquidazione Fattura Nr. 250/PA2016  del 18/11/2016 - VERIF. PRESIDI ANTINCENDIO MUSEO, CASA NATALE, PALAZZINA, NIDO, PALASPORT;153;1;3;2;9;4
R.F. ANTINCENDIO  DI FORCONI GIOVANNI;26/01/2017;Manutenzione ordinaria e riparazioni di impianti e macchinari;111,48;Liquidazione Fattura Nr. 252/PA2016  del 18/11/2016 - MANUTENZIONE EXTRACANONE PRESIDI ANTINCENDIO SU EDIFICI SOGGETTI A REVERSE CHARGE;153;1;3;2;9;4
ARNO MANETTI ASCENSORI S.R.L.;26/01/2017;Manutenzione ordinaria e riparazioni di impianti e macchinari;20,35;IVA-Liqu. Fattura Nr. 4096  del 28/11/2016 (di cui Split per euro 20,35) - Manut. imp. ascensore 3� trim. 2016 sedi istituzionali, scuole, Villa Reghini, RSA, Palasport per la parte istituzionale Fattura Nr. 4096 del 28-11-2016;154;1;3;2;9;4
ARNO MANETTI ASCENSORI S.R.L.;26/01/2017;Manutenzione ordinaria e riparazioni di impianti e macchinari;92,50;Liquidazione Fattura Nr. 4096  del 28/11/2016 - Manut. imp. ascensore 3� trim. 2016 sedi istituzionali, scuole, Villa Reghini, RSA, Palasport per la parte istituzionale;154;1;3;2;9;4
R.F. ANTINCENDIO  DI FORCONI GIOVANNI;26/01/2017;Manutenzione ordinaria e riparazioni di impianti e macchinari;62,40;IVA-Liqu. Fattura Nr. 249/PA2016  del 18/11/2016 (di cui Split per euro 62,40) - MANUT. E VERIF.  PRESIDI ANTINC. EDIF. ISTITUZIONALI, ALTRI SERV. GENERALI, SCUOLE, BIBL., TEATRO, UFF. TURIS., RSA, VILLA REGHINI, PALASPORT PARTE ISTITUZ. Fa;154;1;3;2;9;4
R.F. ANTINCENDIO  DI FORCONI GIOVANNI;26/01/2017;Manutenzione ordinaria e riparazioni di impianti e macchinari;29,13;IVA-Liquidazione Fattura Nr. 251/PA2016  del 18/11/2016 (di cui Split per euro 29,13) - MANUTENZIONE EXTRACANOME PRESIDI ANTINCENDIO SU EDIFICI SOGGETTI A SPLIT PAYMENT;154;1;3;2;9;4
R.F. ANTINCENDIO  DI FORCONI GIOVANNI;26/01/2017;Manutenzione ordinaria e riparazioni di impianti e macchinari;283,66;Liquidazione Fattura Nr. 249/PA2016  del 18/11/2016 - MANUT. E VERIF.  PRESIDI ANTINC. EDIF. ISTITUZIONALI, ALTRI SERV. GENERALI, SCUOLE, BIBL., TEATRO, UFF. TURIS., RSA, VILLA REGHINI, PALASPORT PARTE ISTITUZ.   ;154;1;3;2;9;4
R.F. ANTINCENDIO  DI FORCONI GIOVANNI;26/01/2017;Manutenzione ordinaria e riparazioni di impianti e macchinari;132,43;Liquidazione Fattura Nr. 251/PA2016  del 18/11/2016 - MANUTENZIONE EXTRACANOME PRESIDI ANTINCENDIO SU EDIFICI SOGGETTI A SPLIT PAYMENT;154;1;3;2;9;4
ARNO MANETTI ASCENSORI S.R.L.;26/01/2017;Manutenzione ordinaria e riparazioni di impianti e macchinari;20,35;IVA-Liqu. Fattura Nr. 4096  del 28/11/2016 (di cui Split per euro 20,35) - Manut. imp. ascensore 3� trim. 2016 sedi istituzionali, scuole, Villa Reghini, RSA, Palasport per la parte istituzionale Fattura Nr. 4096 del 28-11-2016;155;1;3;2;9;4
ARNO MANETTI ASCENSORI S.R.L.;26/01/2017;Manutenzione ordinaria e riparazioni di impianti e macchinari;92,50;Liquidazione Fattura Nr. 4096  del 28/11/2016 - Manut. imp. ascensore 3� trim. 2016 sedi istituzionali, scuole, Villa Reghini, RSA, Palasport per la parte istituzionale;155;1;3;2;9;4
R.F. ANTINCENDIO  DI FORCONI GIOVANNI;26/01/2017;Manutenzione ordinaria e riparazioni di impianti e macchinari;30,06;IVA-Liqu. Fattura Nr. 249/PA2016  del 18/11/2016 (di cui Split per euro 30,06) - MANUT. E VERIF.  PRESIDI ANTINC. EDIF. ISTITUZIONALI, ALTRI SERV. GENERALI, SCUOLE, BIBL., TEATRO, UFF. TURIS., RSA, VILLA REGHINI, PALASPORT PARTE ISTITUZ. Fa;155;1;3;2;9;4
R.F. ANTINCENDIO  DI FORCONI GIOVANNI;26/01/2017;Manutenzione ordinaria e riparazioni di impianti e macchinari;4,00;IVA-Liquidazione Fattura Nr. 251/PA2016  del 18/11/2016 (di cui Split per euro 4,00) - MANUTENZIONE EXTRACANOME PRESIDI ANTINCENDIO SU EDIFICI SOGGETTI A SPLIT PAYMENT;155;1;3;2;9;4
R.F. ANTINCENDIO  DI FORCONI GIOVANNI;26/01/2017;Manutenzione ordinaria e riparazioni di impianti e macchinari;136,64;Liquidazione Fattura Nr. 249/PA2016  del 18/11/2016 - MANUT. E VERIF.  PRESIDI ANTINC. EDIF. ISTITUZIONALI, ALTRI SERV. GENERALI, SCUOLE, BIBL., TEATRO, UFF. TURIS., RSA, VILLA REGHINI, PALASPORT PARTE ISTITUZ.   ;155;1;3;2;9;4
R.F. ANTINCENDIO  DI FORCONI GIOVANNI;26/01/2017;Manutenzione ordinaria e riparazioni di impianti e macchinari;18,18;Liquidazione Fattura Nr. 251/PA2016  del 18/11/2016 - MANUTENZIONE EXTRACANOME PRESIDI ANTINCENDIO SU EDIFICI SOGGETTI A SPLIT PAYMENT;155;1;3;2;9;4
CONSORZIO COLLINE DI VINCI;26/01/2017;Trasferimenti correnti a Istituzioni Sociali Private ;4.700,00;LIQUIDAZIONE DEL CONTRIBUTO CONCESSO PER ORGANIZZAZIOE CONCORSO ENOLOGICO MESSER CHIANTI 2016 E MANIFESTAZIONE COLORI E SAPORI DE;156;1;4;4;1;1
B-KOKKA OUTLIFE;26/01/2017;Attrezzature n.a.c.;172,60;IVA Liquidazione Fattura Nr. 2 EL  del 14/12/2016 - Ft Split Payment ex art.17-ter DPR 633/72;157;2;2;1;5;999
B-KOKKA OUTLIFE;26/01/2017;Attrezzature n.a.c.;784,55;Liquidazione Fattura Nr. 2 EL  del 14/12/2016 - Ft Split Payment ex art.17-ter DPR 633/72;157;2;2;1;5;999
SOCIETA' IMPIANTI TECNOLOGICI SNC DI RUGGIERO C. & C.;27/01/2017;Fabbricati ad uso abitativo;3.223,00;IVA-Liqu. Fattura Nr. 000004-2016-PA  del 19/10/2016 - SOSTITUZIONE CALDAIA A BASAMENTO RESIDENZA ANZIANI Fattura Nr. 000004-2016-PA del 19-10-2016;159;2;2;1;9;1
SOCIETA' IMPIANTI TECNOLOGICI SNC DI RUGGIERO C. & C.;27/01/2017;Fabbricati ad uso abitativo;14.650,00;Liquidazione Fattura Nr. 000004-2016-PA  del 19/10/2016 - SOSTITUZIONE CALDAIA A BASAMENTO RESIDENZA ANZIANI;159;2;2;1;9;1
OASI VERDE SNC DI GIRALDI SONIA & C.;27/01/2017;Beni per attivit� di rappresentanza ;170,02;Liquidazione Fattura Nr. 000007-2016-PA  del 12/11/2016 - Cerimonia 12 novembre 2016 - Acquisto n.2 corone di alloro;160;1;3;1;2;9
STUDIO LEGALE STANCANELLI - CECCHI;27/01/2017;Patrocinio legale;2.080,83;LIQUIDAZIONE FATTURA NR. 43  DEL 11/11/2016 - NOTULA PER GIUDIZIO SVOLTO DI FRONTE A TAR TOSCANA CONTRO COVIM SRL - R.G. 1750/2010 - DECRETO DI PERENZIONE N. 471/2016 - INCARICO G.M. N. 71 DEL 11/10/2010 IMP.: I.00162 DEL 2009;161;1;3;2;11;6
BARTALUCCI SAS DI BARTALUCCI ELENA E BARTALUCCI MONICA;27/01/2017;Altri servizi ausiliari n.a.c.;11,66;IVA Liquidazione Fattura Nr. 391/P  del 10/11/2016 (di cui Split per euro 11,66) - TRASCRIZIONE CONSIGLIO COMUNALE DEL 14/09/2016;162;1;3;2;13;999
BARTALUCCI SAS DI BARTALUCCI ELENA E BARTALUCCI MONICA;27/01/2017;Altri servizi ausiliari n.a.c.;52,99;Liquidazione Fattura Nr. 391/P  del 10/11/2016 - TRASCRIZIONE CONSIGLIO COMUNALE DEL 14/09/2016;162;1;3;2;13;999
MEDICEA  ASSOCIAZIONE CULTURALE;27/01/2017;Altri servizi diversi n.a.c.;329,51;IVA Liquidazione Fattura Nr. 30  del 30/09/2016 (di cui Split per euro 329,51) - servizio di attacchibaggio manifesti CIG ZF217D076E impegno spesa PPAA mesi agosto e settembre 2016;163;1;3;2;99;999
MEDICEA  ASSOCIAZIONE CULTURALE;27/01/2017;Altri servizi diversi n.a.c.;164,76;IVA Liquidazione Fattura Nr. 33  del 31/10/2016 - servizio di attacchibaggio manifesti CIG ZF217D076E impegno spesa PPAA ottobre 2016;163;1;3;2;99;999
MEDICEA  ASSOCIAZIONE CULTURALE;27/01/2017;Altri servizi diversi n.a.c.;1.497,76;Liquidazione Fattura Nr. 30  del 30/09/2016 - servizio di attacchibaggio manifesti CIG ZF217D076E impegno spesa PPAA mesi agosto e settembre 2016;163;1;3;2;99;999
MEDICEA  ASSOCIAZIONE CULTURALE;27/01/2017;Altri servizi diversi n.a.c.;748,87;Liquidazione Fattura Nr. 33  del 31/10/2016 - servizio di attacchibaggio manifesti CIG ZF217D076E impegno spesa PPAA ottobre 2016;163;1;3;2;99;999
CELCOMMERCIALE SRL;27/01/2017;Accesso a banche dati e a pubblicazioni on line;150,59;IVA Liquidazione Fattura Nr. 2198  del 21/11/2016 (di cui Split per euro 150,59) - Fattura Cliente;164;1;3;2;5;3
CELCOMMERCIALE SRL;27/01/2017;Accesso a banche dati e a pubblicazioni on line;684,50;Liquidazione Fattura Nr. 2198  del 21/11/2016 - Fattura Cliente;164;1;3;2;5;3
C.A.T.E. DI BALDI MASSIMO E BUONAMICI GRAZIANO;27/01/2017;Manutenzione ordinaria e riparazioni di altri beni materiali;10,82;IVA - Liquidazione Fattura Nr. 32/PA  del 31/12/2015 - acquisti arredi scolastici;165;1;3;2;9;11
C.A.T.E. DI BALDI MASSIMO E BUONAMICI GRAZIANO;27/01/2017;Manutenzione ordinaria e riparazioni di altri beni materiali;49,18;Liquidazione Fattura Nr. 32/PA  del 31/12/2015 - acquisti arredi scolastici;165;1;3;2;9;11
GEM 2013 DI SANTETTI EVA & C. SAS;27/01/2017;Pubblicazioni;99,39;Liquidazione Fattura Nr. 000004-2016-E  del 15/12/2016 - FORNITURA LIBRI DI TESTO PER CEDOLE LIBRARIE ELEMENTARI;166;1;3;1;1;2
CRISTOFORO SOC.COOP. SOCIALE ONLUS;27/01/2017;Altri servizi diversi n.a.c.;913,05;IVA-Liquid. Fattura Nr. 505  del 11/11/2016 (di cui Split per euro 913,05) - SERVIZIO PRESCUOLA MESE DI OTTOBRE 2016 Fattura Nr. 505 del 11-11-2016;167;1;3;2;99;999
CRISTOFORO SOC.COOP. SOCIALE ONLUS;27/01/2017;Altri servizi diversi n.a.c.;108,62;IVA-Liquid. Fattura Nr. 506  del 11/11/2016 (di cui Split per euro 108,62) - SERVIZIO PRESCUOLA MESE DI OTTOBRE 2016 Fattura Nr. 506 del 11-11-2016;167;1;3;2;99;999
CRISTOFORO SOC.COOP. SOCIALE ONLUS;27/01/2017;Altri servizi diversi n.a.c.;9.130,50;Liquidazione Fattura Nr. 505  del 11/11/2016 - SERVIZIO PRESCUOLA MESE DI OTTOBRE 2016;167;1;3;2;99;999
CRISTOFORO SOC.COOP. SOCIALE ONLUS;27/01/2017;Altri servizi diversi n.a.c.;1.086,24;Liquidazione Fattura Nr. 506  del 11/11/2016 - SERVIZIO PRESCUOLA MESE DI OTTOBRE 2016;167;1;3;2;99;999
SOKOM SRL;27/01/2017;Altri servizi diversi n.a.c.;420,64;IVA Liquidazione Fattura Nr. 000016-2016-FATTPA del 14/12/2016 - REALIZZAZIONE RETE ADSL PER 3 ANNI E ASSISTENZA NELL'AMBITO DEI PIC 2013 - ORDINE MEPA A SOKOM SRL UNIPERSONALE - IMPEGNO DI SPESA E PAGAMENTO;168;1;3;2;99;999
SOKOM SRL;27/01/2017;Altri servizi diversi n.a.c.;1.912,00;Liquidazione Fattura Nr. 000016-2016-FATTPA del 14/12/2016 - REALIZZAZIONE RETE ADSL PER 3 ANNI E ASSISTENZA NELL'AMBITO DEI PIC 2013 - ORDINE MEPA A SOKOM SRL UNIPERSONALE - IMPEGNO DI SPESA E PAGAMENTO;168;1;3;2;99;999
EREDI LEPORATTI S.A.S.;27/01/2017;Contratti di servizio di trasporto pubblico;227,56;IVA Liquidazione Fattura Nr. 000015-2016-E  del 14/11/2016 (di cui Split per euro 227,56) - SERVIZIO DI TRASPORTO PUBBLICO LOCALE A DOMANDA DEBOLE  - OTTOBRE 2016;169;1;3;2;15;1
EREDI LEPORATTI S.A.S.;27/01/2017;Contratti di servizio di trasporto pubblico;2.275,61;Liquidazione Fattura Nr. 000015-2016-E  del 14/11/2016 - SERVIZIO DI TRASPORTO PUBBLICO LOCALE A DOMANDA DEBOLE  - OTTOBRE 2016;169;1;3;2;15;1
EREDI LEPORATTI S.A.S.;27/01/2017;Contratti di servizio di trasporto pubblico;72,73;IVA Liquidazione Fattura Nr. 000016-2016-E  del 14/11/2016 (di cui Split per euro 72,73) - SERVIZIO DI NAVETTA VINCI-ANCHIANO-VINCI E VINCI-EMPOLI STAZIONE-VINCI - OTTOBRE 2016;170;1;3;2;15;1
EREDI LEPORATTI S.A.S.;27/01/2017;Contratti di servizio di trasporto pubblico;727,26;Liquidazione Fattura Nr. 000016-2016-E  del 14/11/2016 - SERVIZIO DI NAVETTA VINCI-ANCHIANO-VINCI E VINCI-EMPOLI STAZIONE-VINCI - OTTOBRE 2016;170;1;3;2;15;1
CO&SO EMPOLI - CONS. DI COOP. SOCIALI - SOCIETA' COOPERATIVA;27/01/2017;Altre spese per contratti di servizio pubblico;2.806,36;Liquidazione Fattura Nr. 001024-2C0  del 31/10/2016 - servizi extra-scolastici presso Villa Reghini mese di ottobre 2016;171;1;3;2;15;999
PACI SRL;27/01/2017;Mobili e arredi n.a.c.;247,82;IVA-Liquid. Fattura Nr. 00171/2016  del 31/10/2016 (di cui Split per euro 247,82) - Acquisto arredi scolastici scuole elementari e medie  Fattura Nr. 00171/2016 del 31-10-2016;172;2;2;1;3;999
PACI SRL;27/01/2017;Mobili e arredi n.a.c.;1.126,44;Liquidazione Fattura Nr. 00171/2016  del 31/10/2016 - Acquisto arredi scolastici scuole elementari e medie ;172;2;2;1;3;999
CITTA' METROPOLITANA DI FIRENZE;27/01/2017;Altri servizi diversi n.a.c.;463,65;PAGAMENTO ALLA CITTA METROPOLITANA DELLA TEFA INCASSATA SU CONTRIBUTO MIUR RICEVUTO ES. 2016 ;173;1;3;2;99;999
R.C.S. MEDIAGROUP SPA  PUBBLICITA';31/01/2017;Pubblicazione bandi di gara;11,00;IVA Liquidazione Fattura Nr. 2016043823  del 11/11/2016 (di cui Split per euro 11,00) - CONCESS. DEL SERVIZIO DI REFEZ. SCOLASTICA DEL COMUNE DI VINCI PER GLI ANNI SCOLASTICI 2016/2017, 2017/2018, 2018/2019 - IMPEGNO DI SPESA PUBBLICAZION;175;1;3;2;16;1
R.C.S. MEDIAGROUP SPA  PUBBLICITA';31/01/2017;Pubblicazione bandi di gara;50,00;Liquidazione Fattura Nr. 2016043823  del 11/11/2016 - CONCESSIONE DEL SERVIZIO DI REFEZIONE SCOLASTICA DEL COMUNE DI VINCI PER GLI ANNI SCOLASTICI 2016/2017, 2017/2018, 2018/2019 - IMPEGNO DI SPESA PUBBLICAZIONE ESITO DI GARA;175;1;3;2;16;1
CENTRO STUDI ENTI LOCALI S.R.L.;31/01/2017;Altre prestazioni professionali e specialistiche n.a.c.;220,00;iva Liquidazione Fattura Nr. 589/AE  del 31/12/2016 - Servizio assistenza fiscale fino al 31/12/2016 a saldo;176;1;3;2;11;999
CENTRO STUDI ENTI LOCALI S.R.L.;31/01/2017;Altre prestazioni professionali e specialistiche n.a.c.;1.000,00;Liquidazione Fattura Nr. 589/AE  del 31/12/2016 (di cui Split per euro 220,00) - Servizio assistenza fiscale fino al 31/12/2016 a saldo;176;1;3;2;11;999
LASER S.N.C. DI MARRUGANTI ALESSIO & C.;31/01/2017;Gestione e manutenzione applicazioni;324,27;IVA Liquidazione Fattura Nr. 13  del 31/10/2016 - COPIE AL 31/10/2016 CIG Z8317D6DE0;177;1;3;2;19;1
LASER S.N.C. DI MARRUGANTI ALESSIO & C.;31/01/2017;Gestione e manutenzione applicazioni;1.473,96;Liquidazione Fattura Nr. 13  del 31/10/2016 - COPIE AL 31/10/2016 CIG Z8317D6DE0;177;1;3;2;19;1
LASER S.N.C. DI MARRUGANTI ALESSIO & C.;31/01/2017;Manutenzione ordinaria e riparazioni di macchine per ufficio ;220,14;IVA Liquidazione Fattura Nr. 13  del 31/10/2016 - COPIE AL 31/10/2016 CIG Z8317D6DE0;178;1;3;2;9;6
LASER S.N.C. DI MARRUGANTI ALESSIO & C.;31/01/2017;Manutenzione ordinaria e riparazioni di macchine per ufficio ;1.000,63;Liquidazione Fattura Nr. 13  del 31/10/2016 - COPIE AL 31/10/2016 CIG Z8317D6DE0;178;1;3;2;9;6
VERDIANI GIOVANNI CARTOLIBRERIA;31/01/2017;Pubblicazioni;44,00;Liquidazione Fattura Nr. 6/PA  del 13/12/2016 - FORNITURA LIBRI DI TESTO PER CEDOLE LIBRARIE ELEMENTARI;179;1;3;1;1;2
SOKOM SRL;31/01/2017;Apparati di telecomunicazione;297,00;IVA Liquidazione Fattura Nr. 000018-2016-FATTPA  del 30/12/2016 (di cui Split per euro 297,00) - FORNIT. E INSTALLAZIONE STARTUP DI UN ACCESS POINT PRESSO LA CASA NATALE DI LEONARDO E  RICONFIGURAZIONE DEI DUE ACCESS POINT ESISTENTI - MEPA;180;2;2;1;7;4
SOKOM SRL;31/01/2017;Apparati di telecomunicazione;1.350,00;Liquidazione Fattura Nr. 000018-2016-FATTPA  del 30/12/2016 - FORNITURA E INSTALLAZIONE STARTUP DI UN ACCESS POINT PRESSO LA CASA NATALE DI LEONARDO E  RICONFIGURAZIONE DEI DUE ACCESS POINT ESISTENTI - MEPA;180;2;2;1;7;4
IL SOLE 24 ORE S.P.A.;31/01/2017;Pubblicazione bandi di gara;74,80;IVA Liquidazione Fattura Nr. 3410003540  del 30/11/2016 (di cui Split per euro 74,80) - CONCESS. DEL SERVIZIO DI REFEZIONE SCOLAST.DEL COMUNE DI VINCI PER GLI ANNI SCOLASTICI 2016/2017, 2017/2018, 2018/2019 - IMPEGNO DI SPESA PUBBLICAZION;181;1;3;2;16;1
IL SOLE 24 ORE S.P.A.;31/01/2017;Pubblicazione bandi di gara;340,00;Liquidazione Fattura Nr. 3410003540  del 30/11/2016 - CONCESSIONE DEL SERVIZIO DI REFEZIONE SCOLASTICA DEL COMUNE DI VINCI PER GLI ANNI SCOLASTICI 2016/2017, 2017/2018, 2018/2019 - IMPEGNO DI SPESA PUBBLICAZIONE ESITO DI GARA;181;1;3;2;16;1
SOCIETA' PUBBLICITA' EDITORIALE S.P.A.;31/01/2017;Pubblicazione bandi di gara;33,00;IVA Liquidazione Fattura Nr. 2016/E44000044731  del 30/11/2016 (di cui Split per euro 33,00) - CONCESS. DEL SERVIZIO DI REFEZ. SCOLAST. DEL COMUNE DI VINCI PER GLI ANNI SCOLASTICI 2016/2017, 2017/2018, 2018/2019 - IMPEGNO DI SPESA PUBBL;181;1;3;2;16;1
SOCIETA' PUBBLICITA' EDITORIALE S.P.A.;31/01/2017;Pubblicazione bandi di gara;150,00;Liquidazione Fattura Nr. 2016/E44000044731  del 30/11/2016 - CONCESSIONE DEL SERVIZIO DI REFEZIONE SCOLASTICA DEL COMUNE DI VINCI PER GLI ANNI SCOLASTICI 2016/2017, 2017/2018, 2018/2019 - IMPEGNO DI SPESA PUBBLICAZIONE ESITO DI GARA;181;1;3;2;16;1
GRAFICHE E. GASPARI S.R.L.;31/01/2017;Beni per consultazioni elettorali;10,71;IVA Liquidazione Fattura Nr. 19073 del 23/11/2016 - REFERENDUM 4 DICEMBRE 2016 - AFFIDAMENTO E IMPEGNO DI SPESA PER ACQUISTO MATERIALE PER UFFICIO ELETTORALE;182;1;3;1;2;10
GRAFICHE E. GASPARI S.R.L.;31/01/2017;Beni per consultazioni elettorali;48,68;Liquidazione Fattura Nr. 19073 del 23/11/2016 - REFERENDUM 4 DICEMBRE 2016 - AFFIDAMENTO E IMPEGNO DI SPESA PER ACQUISTO MATERIALE PER UFFICIO ELETTORALE;182;1;3;1;2;10
DAMAZ S.R.L. - INGROSSO CASALINGHI;31/01/2017;Altri beni e materiali di consumo n.a.c.;62,32;IVA Liquidazione Fattura Nr. 12068P  del 28/11/2016 (di cui Split per euro 62,32) - ORDINE N. 4 PER VINCI GARAGE - SERVIZI MUSEALI  *rilevante iva*;183;1;3;1;2;999
DAMAZ S.R.L. - INGROSSO CASALINGHI;31/01/2017;Altri beni e materiali di consumo n.a.c.;283,26;Liquidazione Fattura Nr. 12068P  del 28/11/2016 - ORDINE N. 4 PER VINCI GARAGE - SERVIZI MUSEALI  *rilevante iva*;183;1;3;1;2;999
CIR FOOD S.C. DIVISIONE EUDANIA;31/01/2017;Contratti di servizio per le mense scolastiche;1.036,13;IVA-Liquid. Fattura Nr. 5200029730  del 15/11/2016 (di cui Split per euro 1.036,13) - Destinatario:0000100288,COMUNE DI VINCI,Piazza Leonardo 29,VINCI,50059,FI Trattenute DPR RIT 0,5 % ART. 4 C.3 DPR 207/2010 di 130,17- RIF2: SER.RIST.SCOL ;184;1;3;2;15;6
CIR FOOD S.C. DIVISIONE EUDANIA;31/01/2017;Contratti di servizio per le mense scolastiche;25.903,15;Liquidazione Fattura Nr. 5200029730  del 15/11/2016 - Destinatario:0000100288,COMUNE DI VINCI,Piazza Leonardo 29,VINCI,50059,FI Trattenute DPR RIT 0,5 % ART. 4 C.3 DPR 207/2010 di 130,17- RIF2: SER.RIST.SCOLASTICA COME DA CONTRATTO MESE DI ;184;1;3;2;15;6
CASA EDITRICE LEO S.OLSCHKI S.R.L.;31/01/2017;Giornali e riviste;108,00;Liquidazione Fattura Nr. VF  003845 del 07/11/2016 - Fornitura periodici per Biblioteca leonardiana;185;1;3;1;1;1
DIAFRAMMA S.R.L.;31/01/2017;Giornali e riviste;3.576,40;Liquidazione Fattura Nr. 10656/P del 16/12/2016 - SERVIZIO GESTIONE ABBONAMENTI QUOTIDIANI E PERIODICI 2016-2017. ;185;1;3;1;1;1
DIAFRAMMA S.R.L.;31/01/2017;Giornali e riviste;140,30;Liquidazione Fattura Nr. 147 del 16/12/2016 - SERVIZIO GESTIONE ABBONAMENTI QUOTIDIANI E PERIODICI 2016-2017.;185;1;3;1;1;1
ESKIMO COOP. SOCIALE ONLUS;31/01/2017;Altre spese per contratti di servizio pubblico;7.184,50;Liquidazione Fattura Nr. FATTPA 154_16  del 30/11/2016 - RICOGNIZIONE IMPEGNI PLURIENNALI SETTORE I - REIMPUTAZIONE DEGLI IMPEGNI PROVVISORI - servizio concessione servizi educativi per l'infanzia ed extra-scolastici Villa Reghini mese di n;186;1;3;2;15;999
SYNTHEMA S.R.L.;31/01/2017;Attrezzature n.a.c.;1.064,00;IVA - Liquidazione Fattura Nr. 33/16/e  del 29/11/2016 (di cui Split per euro 1.064,00) - Realizzazione software di analisi morfologica del corpus leonardiano per e-leo;187;2;2;1;5;999
SYNTHEMA S.R.L.;31/01/2017;Attrezzature n.a.c.;4.836,00;Liquidazione Fattura Nr. 33/16/e  del 29/11/2016 - Realizzazione software di analisi morfologica del corpus leonardiano per e-leo;187;2;2;1;5;999
GIUNTI EDITORE S.P.A.;31/01/2017;Materiale bibliografico;2.000,00;Liquidazione Fattura Nr. 2016141426  del 30/11/2016 - Fornitura di volume raro (collana I cento disegni pi� belli) per Biblioteca leonardiana;188;2;2;1;99;1
MAREMAGNUM.COM.SRL;31/01/2017;Materiale bibliografico;943,57;Liquidazione Fattura Nr. 4436  del 30/11/2016 - Fornitura generica;188;2;2;1;99;1
I.N.P.S. S.A.P. (SEDI AUTONOME DI       PRODUZIONE);09/02/2017;Altre prestazioni professionali e specialistiche n.a.c.;200,00;RIT.PREVIDENZ. A CARICO 2/3 DEL 24% SU FATT. N.266 DEL 02/01/17 PER INCARICO A CATIA GRAZIANI - DETERMINAZIONE N.134/2015 SETTORE II;386;1;3;2;11;999
ERARIO DELLO STATO PER PAGAMENTO I.V.A.;10/02/2017;Versamenti IVA a debito per le gestioni commerciali;1.881,56;"PAGAMENTO IVA A DEBITO SERVIZI COMMERCIALI ANNO 2017
";390;1;10;3;1;1
GALA S.P.A.;13/02/2017;Energia elettrica;4,94;IVA-Liquidazione Fattura Nr. E000022400  del 16/01/2017 (di cui Split per euro 4,94) - FORNITURA ENERGIA ELETTRICA LOCALI EX MACELLI MESE DI DICEMBRE 2016;392;1;3;2;5;4
GALA S.P.A.;13/02/2017;Energia elettrica;261,89;IVA-Liquidazione Fattura Nr. E000022401  del 16/01/2017 (di cui Split per euro 261,89) - FORNITURA ENERGIA ELETTRICA EDIFICIO COMUNALE MESE DI DICEMBRE 2016;392;1;3;2;5;4
GALA S.P.A.;13/02/2017;Energia elettrica;115,32;IVA-Liquidazione Fattura Nr. E000022402  del 16/01/2017 (di cui Split per euro 115,32) - FORNITURA ENERGIA ELETTRICA MAGAZZINO COMUNALE MESE DI DICEMBRE 2016;392;1;3;2;5;4
GALA S.P.A.;13/02/2017;Energia elettrica;9,95;IVA-Liquidazione Fattura Nr. E000022407  del 16/01/2017 (di cui Split per euro 9,95) - FORNITURA ENERGIA ELETTRICA EX SCUOLA ANCHIANO MESE DI DICEMBRE 2016;392;1;3;2;5;4
GALA S.P.A.;13/02/2017;Energia elettrica;11,06;IVA-Liquidazione Fattura Nr. E000022409  del 16/01/2017 (di cui Split per euro 11,06) - FORNITURA ENERGIA ELETTRICA UFFICI COMUNALI VIA TORRE, 9 - MESE DI DICEMBRE 2016;392;1;3;2;5;4
GALA S.P.A.;13/02/2017;Energia elettrica;5,28;IVA-Liquidazione Fattura Nr. E000022410  del 16/01/2017 (di cui Split per euro 5,28) - FORNITURA ENERGIA ELETTRICA UFFICIO DISMESSO MESE DI DICEMBRE 2016;392;1;3;2;5;4
GALA S.P.A.;13/02/2017;Energia elettrica;71,38;IVA-Liquidazione Fattura Nr. E000022413  del 16/01/2017 (di cui Split per euro 71,38) - FORNITURA ENERGIA ELETTRICA UFFICI COMUNALI VIA BATTISTI MESE DI DICEMBRE 2016;392;1;3;2;5;4
GALA S.P.A.;13/02/2017;Energia elettrica;4,94;IVA-Liquidazione Fattura Nr. E000022419  del 16/01/2017 (di cui Split per euro 4,94) - FORNITURA ENERGIA ELETTRICA CASA COMPARINI MESE DI DICEMBRE 2016;392;1;3;2;5;4
GALA S.P.A.;13/02/2017;Energia elettrica;2,92;IVA-Liquidazione Fattura Nr. E000022423  del 16/01/2017 (di cui Split per euro 2,92) - FORNITURA ENERGIA ELETTRICA ALLOGGI PETROIO MESE DI DICEMBRE 2016;392;1;3;2;5;4
GALA S.P.A.;13/02/2017;Energia elettrica;22,47;Liquidazione Fattura Nr. E000022400  del 16/01/2017 - FORNITURA ENERGIA ELETTRICA LOCALI EX MACELLI MESE DI DICEMBRE 2016;392;1;3;2;5;4
GALA S.P.A.;13/02/2017;Energia elettrica;1.190,40;Liquidazione Fattura Nr. E000022401  del 16/01/2017 - FORNITURA ENERGIA ELETTRICA EDIFICIO COMUNALE MESE DI DICEMBRE 2016;392;1;3;2;5;4
GALA S.P.A.;13/02/2017;Energia elettrica;524,20;Liquidazione Fattura Nr. E000022402  del 16/01/2017 - FORNITURA ENERGIA ELETTRICA MAGAZZINO COMUNALE MESE DI DICEMBRE 2016;392;1;3;2;5;4
GALA S.P.A.;13/02/2017;Energia elettrica;45,21;Liquidazione Fattura Nr. E000022407  del 16/01/2017 - FORNITURA ENERGIA ELETTRICA EX SCUOLA ANCHIANO MESE DI DICEMBRE 2016;392;1;3;2;5;4
GALA S.P.A.;13/02/2017;Energia elettrica;50,26;Liquidazione Fattura Nr. E000022409  del 16/01/2017 - FORNITURA ENERGIA ELETTRICA UFFICI COMUNALI VIA TORRE, 9 - MESE DI DICEMBRE 2016;392;1;3;2;5;4
GALA S.P.A.;13/02/2017;Energia elettrica;23,98;Liquidazione Fattura Nr. E000022410  del 16/01/2017 - FORNITURA ENERGIA ELETTRICA UFFICIO DISMESSO MESE DI DICEMBRE 2016;392;1;3;2;5;4
GALA S.P.A.;13/02/2017;Energia elettrica;324,45;Liquidazione Fattura Nr. E000022413  del 16/01/2017 - FORNITURA ENERGIA ELETTRICA UFFICI COMUNALI VIA BATTISTI MESE DI DICEMBRE 2016;392;1;3;2;5;4
GALA S.P.A.;13/02/2017;Energia elettrica;22,47;Liquidazione Fattura Nr. E000022419  del 16/01/2017 - FORNITURA ENERGIA ELETTRICA CASA COMPARINI MESE DI DICEMBRE 2016;392;1;3;2;5;4
GALA S.P.A.;13/02/2017;Energia elettrica;29,23;Liquidazione Fattura Nr. E000022423  del 16/01/2017 - FORNITURA ENERGIA ELETTRICA ALLOGGI PETROIO MESE DI DICEMBRE 2016;392;1;3;2;5;4
GALA S.P.A.;13/02/2017;Energia elettrica;56,72;IVA-Liquidazione Fattura Nr. E000022397  del 16/01/2017 (di cui Split per euro 56,72) - FORNITURA DI ENERGIA ELETTRICA URP VIA FUCINI MESE DI DICEMBRE 2016;393;1;3;2;5;4
GALA S.P.A.;13/02/2017;Energia elettrica;17,24;IVA-Liquidazione Fattura Nr. E000022404  del 16/01/2017 (di cui Split per euro 17,24) - FORNITURA DI ENERGIA ELETTRICA ARCHIVIO COMUNALE MESE DI DICEMBRE 2016;393;1;3;2;5;4
GALA S.P.A.;13/02/2017;Energia elettrica;257,83;Liquidazione Fattura Nr. E000022397  del 16/01/2017 - FORNITURA DI ENERGIA ELETTRICA URP VIA FUCINI MESE DI DICEMBRE 2016;393;1;3;2;5;4
GALA S.P.A.;13/02/2017;Energia elettrica;78,36;Liquidazione Fattura Nr. E000022404  del 16/01/2017 - FORNITURA DI ENERGIA ELETTRICA ARCHIVIO COMUNALE MESE DI DICEMBRE 2016;393;1;3;2;5;4
GALA S.P.A.;13/02/2017;Energia elettrica;19,32;IVA-Liquidazione Fattura Nr. E000022393  del 16/01/2017 (di cui Split per euro 19,32) - FORNITURA DI ENERGIA ELETTRICA SCUOLA INFANZIA SPICCHIO MESE DI DICEMBRE 2016;394;1;3;2;5;4
GALA S.P.A.;13/02/2017;Energia elettrica;37,10;IVA-Liquidazione Fattura Nr. E000022412  del 16/01/2017 (di cui Split per euro 37,10) - FORNITURA DI ENERGIA ELETTRICA SCUOLA INFANZIA VINCI MESE DI DICEMBRE 2016;394;1;3;2;5;4
GALA S.P.A.;13/02/2017;Energia elettrica;58,67;IVA-Liquidazione Fattura Nr. E000022414  del 16/01/2017 (di cui Split per euro 58,67) - FORNITURA DI ENERGIA ELETTRICA SCUOLA INFANZIA DI SOVIGLIANA MESE DI DICEMBRE 2016;394;1;3;2;5;4
GALA S.P.A.;13/02/2017;Energia elettrica;193,24;Liquidazione Fattura Nr. E000022393  del 16/01/2017 - FORNITURA DI ENERGIA ELETTRICA SCUOLA INFANZIA SPICCHIO MESE DI DICEMBRE 2016;394;1;3;2;5;4
GALA S.P.A.;13/02/2017;Energia elettrica;370,99;Liquidazione Fattura Nr. E000022412  del 16/01/2017 - FORNITURA DI ENERGIA ELETTRICA SCUOLA INFANZIA VINCI MESE DI DICEMBRE 2016;394;1;3;2;5;4
GALA S.P.A.;13/02/2017;Energia elettrica;586,68;Liquidazione Fattura Nr. E000022414  del 16/01/2017 - FORNITURA DI ENERGIA ELETTRICA SCUOLA INFANZIA DI SOVIGLIANA MESE DI DICEMBRE 2016;394;1;3;2;5;4
GALA S.P.A.;13/02/2017;Energia elettrica;69,84;IVA-Liquidazione Fattura Nr. E000022394  del 16/01/2017 (di cui Split per euro 69,84) - FORNITURA DI ENERGIA ELETTRICA PER SCUOLA PRIMARIA DI SPICCHIO MESE DI DICEMBRE 2016;395;1;3;2;5;4
GALA S.P.A.;13/02/2017;Energia elettrica;40,57;IVA-Liquidazione Fattura Nr. E000022398  del 16/01/2017 - FORNITURA DI ENERGIA ELETTRICA SCUOLA PRIMARIA E SECONDARIA DI 1� GRADO DI VINCI MESE DI DICEMBRE 2016;395;1;3;2;5;4
GALA S.P.A.;13/02/2017;Energia elettrica;698,44;Liquidazione Fattura Nr. E000022394  del 16/01/2017 - FORNITURA DI ENERGIA ELETTRICA PER SCUOLA PRIMARIA DI SPICCHIO MESE DI DICEMBRE 2016;395;1;3;2;5;4
GALA S.P.A.;13/02/2017;Energia elettrica;405,72;Liquidazione Fattura Nr. E000022398  del 16/01/2017 - FORNITURA DI ENERGIA ELETTRICA SCUOLA PRIMARIA E SECONDARIA DI 1� GRADO DI VINCI MESE DI DICEMBRE 2016;395;1;3;2;5;4
GALA S.P.A.;13/02/2017;Energia elettrica;40,57;IVA-Liquidazione Fattura Nr. E000022398  del 16/01/2017 - FORNITURA DI ENERGIA ELETTRICA SCUOLA PRIMARIA E SECONDARIA DI 1� GRADO DI VINCI MESE DI DICEMBRE 2016;396;1;3;2;5;4
GALA S.P.A.;13/02/2017;Energia elettrica;92,57;IVA-Liquidazione Fattura Nr. E000022418  del 16/01/2017 (di cui Split per euro 92,57) - FORNITURA DI ENERGIA ELETTRICA SCUOLA SECONDARIA DI 1� GRADO DI SOVIGLIANA MESE DI DICEMBRE 2016;396;1;3;2;5;4
GALA S.P.A.;13/02/2017;Energia elettrica;405,71;Liquidazione Fattura Nr. E000022398  del 16/01/2017 - FORNITURA DI ENERGIA ELETTRICA SCUOLA PRIMARIA E SECONDARIA DI 1� GRADO DI VINCI MESE DI DICEMBRE 2016;396;1;3;2;5;4
GALA S.P.A.;13/02/2017;Energia elettrica;925,66;Liquidazione Fattura Nr. E000022418  del 16/01/2017 - FORNITURA DI ENERGIA ELETTRICA SCUOLA SECONDARIA DI 1� GRADO DI SOVIGLIANA MESE DI DICEMBRE 2016;396;1;3;2;5;4
GALA S.P.A.;13/02/2017;Energia elettrica;124,60;IVA-Liquidazione Fattura Nr. E000022399  del 16/01/2017 (di cui Split per euro 124,60) - FORNITURA ENERGIA ELETTRICA BIBLIOTECA MESE DI DICEMBRE 2016;397;1;3;2;5;4
GALA S.P.A.;13/02/2017;Energia elettrica;566,36;Liquidazione Fattura Nr. E000022399  del 16/01/2017 - FORNITURA ENERGIA ELETTRICA BIBLIOTECA MESE DI DICEMBRE 2016;397;1;3;2;5;4
GALA S.P.A.;13/02/2017;Energia elettrica;372,57;IVA-Liquidazione Fattura Nr. E000022405  del 16/01/2017 (di cui Split per euro 372,57) - FORNITURA DI ENERGIA ELETTRICA PALAZZINA UZIELLI MESE DI DICEMBRE 2016;398;1;3;2;5;4
GALA S.P.A.;13/02/2017;Energia elettrica;125,76;IVA-Liquidazione Fattura Nr. E000022406  del 16/01/2017 (di cui Split per euro 125,76) - FORNITURA DI ENERGIA ELETTRICA CASA NATALE LEONARDO MESE DI DICEMBRE 2016;398;1;3;2;5;4
GALA S.P.A.;13/02/2017;Energia elettrica;294,32;IVA-Liquidazione Fattura Nr. E000022408  del 16/01/2017 (di cui Split per euro 294,32) - FORNITURA DI ENERGIA ELETTRICA MUSEO LEONARDIANO MESE DI DICEMBRE 2016;398;1;3;2;5;4
GALA S.P.A.;13/02/2017;Energia elettrica;1.693,49;Liquidazione Fattura Nr. E000022405  del 16/01/2017 - FORNITURA DI ENERGIA ELETTRICA PALAZZINA UZIELLI MESE DI DICEMBRE 2016;398;1;3;2;5;4
GALA S.P.A.;13/02/2017;Energia elettrica;571,65;Liquidazione Fattura Nr. E000022406  del 16/01/2017 - FORNITURA DI ENERGIA ELETTRICA CASA NATALE LEONARDO MESE DI DICEMBRE 2016;398;1;3;2;5;4
GALA S.P.A.;13/02/2017;Energia elettrica;1.337,84;Liquidazione Fattura Nr. E000022408  del 16/01/2017 - FORNITURA DI ENERGIA ELETTRICA MUSEO LEONARDIANO MESE DI DICEMBRE 2016;398;1;3;2;5;4
GALA S.P.A.;13/02/2017;Energia elettrica;98,73;IVA-Liquidazione Fattura Nr. E000022420  del 16/01/2017 (di cui Split per euro 98,73) - FORNITURA DI ENERGIA ELETTRICA PER TEATRO MISERICORDIA MESE DI DICEMBRE 2016;399;1;3;2;5;4
GALA S.P.A.;13/02/2017;Energia elettrica;448,79;Liquidazione Fattura Nr. E000022420  del 16/01/2017 - FORNITURA DI ENERGIA ELETTRICA PER TEATRO MISERICORDIA MESE DI DICEMBRE 2016;399;1;3;2;5;4
GALA S.P.A.;13/02/2017;Energia elettrica;21,12;IVA-Liquidazione Fattura Nr. E000022395  del 16/01/2017 (di cui Split per euro 21,12) - FORNITURA ENERGIA ELETTRICA CASSA ESPANSIONE PICCARATICO MESE DI DICEMBRE 2016;400;1;3;2;5;4
GALA S.P.A.;13/02/2017;Energia elettrica;6,88;IVA-Liquidazione Fattura Nr. E000022396  del 16/01/2017 (di cui Split per euro 6,88) - FORNITURA ENERGIA ELETTRICA PILOMAT MESE DI DICEMBRE 2016;400;1;3;2;5;4
GALA S.P.A.;13/02/2017;Energia elettrica;12,76;IVA-Liquidazione Fattura Nr. E000022416  del 16/01/2017 (di cui Split per euro 12,76) - FORNITURA ENERGIA ELETTRICA MERCATO SETTIMANALE E IMPIANTO IRRIGAZIONE MESE DI DICEMBRE 2016;400;1;3;2;5;4
GALA S.P.A.;13/02/2017;Energia elettrica;96,02;Liquidazione Fattura Nr. E000022395  del 16/01/2017 - FORNITURA ENERGIA ELETTRICA CASSA ESPANSIONE PICCARATICO MESE DI DICEMBRE 2016;400;1;3;2;5;4
GALA S.P.A.;13/02/2017;Energia elettrica;31,28;Liquidazione Fattura Nr. E000022396  del 16/01/2017 - FORNITURA ENERGIA ELETTRICA PILOMAT MESE DI DICEMBRE 2016;400;1;3;2;5;4
GALA S.P.A.;13/02/2017;Energia elettrica;58,01;Liquidazione Fattura Nr. E000022416  del 16/01/2017 - FORNITURA ENERGIA ELETTRICA MERCATO SETTIMANALE E IMPIANTO IRRIGAZIONE MESE DI DICEMBRE 2016;400;1;3;2;5;4
GALA S.P.A.;13/02/2017;Energia elettrica;61,83;IVA-Liquidazione Fattura Nr. E000022403  del 16/01/2017 (di cui Split per euro 61,83) - FORNITURA ENERGIA ELETTRICA UFF. TURISTICO NUOVO VIA MONTALBANO, 1 - MESE DI DICEMBRE 2016;401;1;3;2;5;4
GALA S.P.A.;13/02/2017;Energia elettrica;281,06;Liquidazione Fattura Nr. E000022403  del 16/01/2017 - FORNITURA ENERGIA ELETTRICA UFF. TURISTICO NUOVO VIA MONTALBANO, 1 - MESE DI DICEMBRE 2016;401;1;3;2;5;4
GALA S.P.A.;13/02/2017;Energia elettrica;11,96;IVA-Liquidazione Fattura Nr. E000022421  del 16/01/2017 (di cui Split per euro 11,96) - FORNITURA ENERGIA ELETTRICA FONTANELLO PARCO MILLE MESE DI DICEMBRE 2016;402;1;3;2;5;4
GALA S.P.A.;13/02/2017;Energia elettrica;54,36;Liquidazione Fattura Nr. E000022421  del 16/01/2017 - FORNITURA ENERGIA ELETTRICA FONTANELLO PARCO MILLE MESE DI DICEMBRE 2016;402;1;3;2;5;4
GALA S.P.A.;13/02/2017;Energia elettrica;35,71;IVA-Liquidazione Fattura Nr. E000022417  del 16/01/2017 (di cui Split per euro 35,71) - FORNITURA DI ENERGIA ELETTRICA NIDO COMUNALE DICEMBRE 2016 ;403;1;3;2;5;4
GALA S.P.A.;13/02/2017;Energia elettrica;357,13;Liquidazione Fattura Nr. E000022417  del 16/01/2017 - FORNITURA DI ENERGIA ELETTRICA NIDO COMUNALE DICEMBRE 2016 ;403;1;3;2;5;4
GALA S.P.A.;13/02/2017;Energia elettrica;49,17;IVA-Liquidazione Fattura Nr. E000022415  del 16/01/2017 (di cui Split per euro 49,17) - FORNITURA ENERGIA ELETTRICA VILLA REGHIN MESE DI DICEMBRE 2016;404;1;3;2;5;4
GALA S.P.A.;13/02/2017;Energia elettrica;223,52;LIQUIDAZIONE FATTURA NR. E000022415  DEL 16/01/2017 - FORNITURA ENERGIA ELETTRICA VILLA REGHIN MESE DI DICEMBRE 2016;404;1;3;2;5;4
GALA S.P.A.;13/02/2017;Energia elettrica;43,68;IVA-Liquidazione Fattura Nr. E000022411  del 16/01/2017 (di cui Split per euro 43,68) - FORNITURA ENERGIA ELETTRICA MESE DI DICEMBRE 2016 RESIDENZA PER ANZIANI ;405;1;3;2;5;4
GALA S.P.A.;13/02/2017;Energia elettrica;436,77;Liquidazione Fattura Nr. E000022411  del 16/01/2017 - FORNITURA ENERGIA ELETTRICA MESE DI DICEMBRE 2016 RESIDENZA PER ANZIANI ;405;1;3;2;5;4
ETRURIA P.A. SRL;20/02/2017;Carta, cancelleria e stampati;59,00;PAGAMENTO BUONO ECONOMALE NR. 200002 - ASS. PER ACQUISTI URGENTI CANCELLERIA-ACQUISTO ROTOLINI ZEBRA PER ETICHETTATRICE DEL PROTOCOLLO;460;1;3;1;2;1
BAZAR CINELLI DI CINELLI ILARIA E PAOLO;20/02/2017;Carta, cancelleria e stampati;28,00;PAGAMENTO BUONO ECONOMALE NR. 200003 - ASSEGNAZIONE ECONOMALE SETTORE II ACQUISTO FERMAGLI, BLOCCHII ED ELASTICI VARIE MISURE;461;1;3;1;2;1
D'AFI EXPRESS SNC MAIL BOXES ETC;20/02/2017;Carta, cancelleria e stampati;20,40;PAGAMENTO BUONO ECONOMALE NR. 200004 - ASSEGNAZIONE ECONOMALE SETTORE II - SPEDIZIONE BUSTA PER REO BUONI PASTO SCADUTI TRAMITE ASSICURATA;461;1;3;1;2;1
MAGGIOLI S.P.A.;20/02/2017;Giornali e riviste;48,00;PAGAMENTO BUONO ECONOMALE NR. 200001 - ACQUISTI URGENTI DI PUBBLICAZIONI NORMATIVE PER GLI UFFICI PERSONALE E RAGIONERIA-ACQUISTO LE VARIAZIONI DI BILANCIO DEGLI ENTI LOCALI;462;1;3;1;1;1
COMUNE DI VINCI PROVINCIA DI FIRENZE;20/02/2017;Spese postali;1,32;SPESE PER AFFRANCATURA - VERSAMENTO SU CONTO POSTALE E VERSAMENTO IVA PER AFFRANCATURA RACCOMANDATA1 - relativo a  MAND.N. 464DEL 20/02/17  - VEDI REV.285 del 20/02/17;463;1;3;2;16;2
NEOPOST ITALIA - AFFRANCAPOSTA;20/02/2017;Spese postali;2.598,68;SPESE PER AFFRANCATURA - VERSAMENTO SU CONTO POSTALE E VERSAMENTO IVA PER AFFRANCATURA RACCOMANDATA1 - IMPEGNO DI SPESA;464;1;3;2;16;2
ELMAS S.R.L.;20/02/2017;Manutenzione ordinaria e riparazioni di impianti e macchinari;46,04;IVA - Liquidazione Fattura Nr. 43  del 22/11/2016 (di cui Split per euro 46,04) - INTERVENTI DI MANUTENZIONE AI SISTEMI DI ALLARME PALAZZINA UZIELLI, MUSEO E PALAZZO COMUNALE _ DET. A CONT. E AFFI. DITTA ELMAS SRL;465;1;3;2;9;4
ELMAS S.R.L.;20/02/2017;Manutenzione ordinaria e riparazioni di impianti e macchinari;209,25;Liquidazione Fattura Nr. 43  del 22/11/2016 - INTERVENTI DI MANUTENZIONE AI SISTEMI DI ALLARME PALAZZINA UZIELLI, MUSEO  E  PALAZZO COMUNALE _ DETERMINA A CONTRARRE E AFFIDAMENTO DITTA ELMAS SRL;465;1;3;2;9;4
MORLANDI  DAVID;20/02/2017;Altre prestazioni professionali e specialistiche n.a.c.;6.497,40;Liquidazione Fattura Nr. 24  del 22/11/2016 - Incarico Accatastamento Fabbricati;466;1;3;2;11;999
TOTALERG SPA;20/02/2017;Carburanti, combustibili e lubrificanti ;69,03;IVA-Liquidazione Fattura Nr. I6359436  del 30/09/2016 - Fornitura CARBURANTI SETTEMBRE 2016;467;1;3;1;2;2
TOTALERG SPA;20/02/2017;Carburanti, combustibili e lubrificanti ;73,26;IVA-LIQUIDAZIONE FATTURA NR. I6404021  DEL 31/10/2016 - FORNITURA CARBURANTI MESE OTTOBRE;467;1;3;1;2;2
TOTALERG SPA;20/02/2017;Carburanti, combustibili e lubrificanti ;66,99;IVA-Liquidazione Fattura Nr. I6435764  del 30/11/2016 - Fornitura CARBURANTI MESE NOVEMBRE;467;1;3;1;2;2
TOTALERG SPA;20/02/2017;Carburanti, combustibili e lubrificanti ;72,46;IVA-Liquidazione Fattura Nr. I7018669  del 31/12/2016 - Fornitura CARBURANTI MESE DICEMBRE;467;1;3;1;2;2
TOTALERG SPA;20/02/2017;Carburanti, combustibili e lubrificanti ;313,77;Liquidazione Fattura Nr. I6359436  del 30/09/2016 - Fornitura CARBURANTI SETTEMBRE 2016;467;1;3;1;2;2
TOTALERG SPA;20/02/2017;Carburanti, combustibili e lubrificanti ;332,99;Liquidazione Fattura Nr. I6404021  del 31/10/2016 - Fornitura CARBURANTI MESE OTTOBRE;467;1;3;1;2;2
TOTALERG SPA;20/02/2017;Carburanti, combustibili e lubrificanti ;304,46;Liquidazione Fattura Nr. I6435764  del 30/11/2016 - Fornitura CARBURANTI MESE NOVEMBRE;467;1;3;1;2;2
TOTALERG SPA;20/02/2017;Carburanti, combustibili e lubrificanti ;329,37;Liquidazione Fattura Nr. I7018669  del 31/12/2016 - Fornitura CARBURANTI MESE DICEMBRE;467;1;3;1;2;2
TOTALERG SPA;20/02/2017;Carburanti, combustibili e lubrificanti ;83,78;IVA-Liquidazione Fattura Nr. I6359436  del 30/09/2016 - Fornitura CARBURANTI SETTEMBRE 2016;468;1;3;1;2;2
TOTALERG SPA;20/02/2017;Carburanti, combustibili e lubrificanti ;59,80;IVA-Liquidazione Fattura Nr. I6404021  del 31/10/2016 - Fornitura CARBURANTI MESE OTTOBRE;468;1;3;1;2;2
TOTALERG SPA;20/02/2017;Carburanti, combustibili e lubrificanti ;60,39;IVA-Liquidazione Fattura Nr. I6435764  del 30/11/2016 - Fornitura CARBURANTI MESE NOVEMBRE;468;1;3;1;2;2
TOTALERG SPA;20/02/2017;Carburanti, combustibili e lubrificanti ;58,82;IVA-Liquidazione Fattura Nr. I7018669  del 31/12/2016 - Fornitura CARBURANTI MESE DICEMBRE;468;1;3;1;2;2
TOTALERG SPA;20/02/2017;Carburanti, combustibili e lubrificanti ;380,82;Liquidazione Fattura Nr. I6359436  del 30/09/2016 - Fornitura CARBURANTI SETTEMBRE 2016;468;1;3;1;2;2
TOTALERG SPA;20/02/2017;Carburanti, combustibili e lubrificanti ;271,84;Liquidazione Fattura Nr. I6404021  del 31/10/2016 - Fornitura CARBURANTI MESE OTTOBRE;468;1;3;1;2;2
TOTALERG SPA;20/02/2017;Carburanti, combustibili e lubrificanti ;274,50;Liquidazione Fattura Nr. I6435764  del 30/11/2016 - Fornitura CARBURANTI MESE NOVEMBRE;468;1;3;1;2;2
TOTALERG SPA;20/02/2017;Carburanti, combustibili e lubrificanti ;267,36;Liquidazione Fattura Nr. I7018669  del 31/12/2016 - Fornitura CARBURANTI MESE DICEMBRE;468;1;3;1;2;2
TOTALERG SPA;20/02/2017;Carburanti, combustibili e lubrificanti ;97,07;IVA-Liquidazione Fattura Nr. I6359436  del 30/09/2016 - Fornitura CARBURANTI SETTEMBRE 2016;469;1;3;1;2;2
TOTALERG SPA;20/02/2017;Carburanti, combustibili e lubrificanti ;132,67;IVA-Liquidazione Fattura Nr. I6404021  del 31/10/2016 - Fornitura CARBURANTI MESE OTTOBRE;469;1;3;1;2;2
TOTALERG SPA;20/02/2017;Carburanti, combustibili e lubrificanti ;162,58;IVA-Liquidazione Fattura Nr. I6435764  del 30/11/2016 - Fornitura CARBURANTI MESE NOVEMBRE;469;1;3;1;2;2
TOTALERG SPA;20/02/2017;Carburanti, combustibili e lubrificanti ;174,84;IVA-Liquidazione Fattura Nr. I7018669  del 31/12/2016 - Fornitura CARBURANTI MESE DICEMBRE;469;1;3;1;2;2
TOTALERG SPA;20/02/2017;Carburanti, combustibili e lubrificanti ;441,25;Liquidazione Fattura Nr. I6359436  del 30/09/2016 - Fornitura CARBURANTI SETTEMBRE 2016;469;1;3;1;2;2
TOTALERG SPA;20/02/2017;Carburanti, combustibili e lubrificanti ;603,03;Liquidazione Fattura Nr. I6404021  del 31/10/2016 - Fornitura CARBURANTI MESE OTTOBRE;469;1;3;1;2;2
TOTALERG SPA;20/02/2017;Carburanti, combustibili e lubrificanti ;739,02;Liquidazione Fattura Nr. I6435764  del 30/11/2016 - Fornitura CARBURANTI MESE NOVEMBRE;469;1;3;1;2;2
TOTALERG SPA;20/02/2017;Carburanti, combustibili e lubrificanti ;794,74;Liquidazione Fattura Nr. I7018669  del 31/12/2016 - Fornitura CARBURANTI MESE DICEMBRE;469;1;3;1;2;2
TOSCANA ENERGIA GREEN S.P.A.;20/02/2017;Trasferimenti correnti a altre imprese;765,59;iVA - Liquidazione Fattura Nr. VP0000030  del 08/08/2016 - Fornitura generica;470;1;4;3;99;999
TOSCANA ENERGIA GREEN S.P.A.;20/02/2017;Trasferimenti correnti a altre imprese;6.583,85;Liquidazione Fattura Nr. VP0000030  del 08/08/2016 - Fornitura generica;470;1;4;3;99;999
MATERIALI EDILI BALDACCI DI BALDACCI RENATO E C. SNC;20/02/2017;Altri beni e materiali di consumo n.a.c.;16,73;IVA - Liquidazione Fattura Nr. 1520  del 30/11/2016 - FONITURA MATERIALE EDILE CIMITERO VINCI- DET. A CONT. 246/2016 - AFFID. MATERIALI EDILI BALDACCI SNC;471;1;3;1;2;999
MATERIALI EDILI BALDACCI DI BALDACCI RENATO E C. SNC;20/02/2017;Altri beni e materiali di consumo n.a.c.;76,05;Liquidazione Fattura Nr. 1520  del 30/11/2016 - FONITURA MATERIALE EDILE CIMITERO VINCI- DET. A CONT. 246/2016 - AFFID. MATERIALI EDILI BALDACCI SNC;471;1;3;1;2;999
EDIFIR EDIZIONI FIRENZE SRL;20/02/2017;Altri servizi diversi n.a.c.;432,69;"IVA Liquidazione Fattura Nr. 43 del 09/12/2016 - ""GUIDA AI MUSEI DELL'EMPOLESE VALDELSA"" N. 1650 COPIE ITALIANO E N. 550 IN INGLESE";472;1;3;2;99;999
EDIFIR EDIZIONI FIRENZE SRL;20/02/2017;Altri servizi diversi n.a.c.;10.817,31;"Liquidazione Fattura Nr. 43 del 09/12/2016 - ""GUIDA AI MUSEI DELL'EMPOLESE VALDELSA"" N. 1650 COPIE ITALIANO E N. 550 IN INGLESE";472;1;3;2;99;999
EDIFIR EDIZIONI FIRENZE SRL;20/02/2017;Altri servizi diversi n.a.c.;22,69;"IVA Liquidazione Fattura Nr. 43 del 09/12/2016 - ""GUIDA AI MUSEI DELL'EMPOLESE VALDELSA"" N. 1650 COPIE ITALIANO E N. 550 IN INGLESE";473;1;3;2;99;999
EDIFIR EDIZIONI FIRENZE SRL;20/02/2017;Altri servizi diversi n.a.c.;567,31;"Liquidazione Fattura Nr. 43 del 09/12/2016 - ""GUIDA AI MUSEI DELL'EMPOLESE VALDELSA"" N. 1650 COPIE ITALIANO E N. 550 IN INGLESE";473;1;3;2;99;999
SIGMA COOPERATIVA SERVIZI CULTURALI;20/02/2017;Altri servizi diversi n.a.c.;2.722,70;IVA Liquidazione Fattura Nr. FATTPA 41_16 del 14/12/2016 - PIC 2014 - PROGETTAZIONE E REALIZZAZIONE INTERVENTI DI VALORIZZAZIONE OFFERTA MUSEALE EMPOLESE VALDELSA RIVOLTI A FAMIGLIE CON BAMBINI E SCUOLE. IMPEGNO DI SPESA;473;1;3;2;99;999
SIGMA COOPERATIVA SERVIZI CULTURALI;20/02/2017;Altri servizi diversi n.a.c.;12.375,91;Liquidazione Fattura Nr. FATTPA 41_16 del 14/12/2016 - PIC 2014 - PROGETTAZIONE E REALIZZAZIONE INTERVENTI DI VALORIZZAZIONE OFFERTA MUSEALE EMPOLESE VALDELSA RIVOLTI A FAMIGLIE CON BAMBINI E SCUOLE. IMPEGNO DI SPESA;473;1;3;2;99;999
SIGMA COOPERATIVA SERVIZI CULTURALI;20/02/2017;Altri servizi diversi n.a.c.;450,82;IVA Liquidazione Fattura Nr. FATTPA 41_16 del 14/12/2016 - PIC 2014 - PROGETTAZIONE E REALIZZAZIONE INTERVENTI DI VALORIZZAZIONE OFFERTA MUSEALE EMPOLESE VALDELSA RIVOLTI A FAMIGLIE CON BAMBINI E SCUOLE. IMPEGNO DI SPESA;474;1;3;2;99;999
SIGMA COOPERATIVA SERVIZI CULTURALI;20/02/2017;Altri servizi diversi n.a.c.;2.049,18;Liquidazione Fattura Nr. FATTPA 41_16 del 14/12/2016 - PIC 2014 - PROGETTAZIONE E REALIZZAZIONE INTERVENTI DI VALORIZZAZIONE OFFERTA MUSEALE EMPOLESE VALDELSA RIVOLTI A FAMIGLIE CON BAMBINI E SCUOLE. IMPEGNO DI SPESA;474;1;3;2;99;999
IMPARA IL WEB - F.V. ELITE DI FRANGIONI;20/02/2017;Altri servizi diversi n.a.c.;439,78;IVA Liquidazione Fattura Nr. FATTPA 3_16  del 30/11/2016 (di cui Split per euro 439,78) - SERVIZIO DI MODIFICA E AGGIORNAMENTO ALLA PAGINA INTERNET WWW.VINCITURISMO.IT. AFFIDAMENTO DEL SERVIZIO E IMPEGNO DI SPESA.;475;1;3;2;99;999
IMPARA IL WEB - F.V. ELITE DI FRANGIONI;20/02/2017;Altri servizi diversi n.a.c.;1.999,00;Liquidazione Fattura Nr. FATTPA 3_16  del 30/11/2016 - SERVIZIO DI MODIFICA E AGGIORNAMENTO ALLA PAGINA INTERNET WWW.VINCITURISMO.IT. AFFIDAMENTO DEL SERVIZIO E IMPEGNO DI SPESA.;475;1;3;2;99;999
EDISON ENERGIA S.P.A.;20/02/2017;Energia elettrica;4.539,68;IVA Liquidazione Fattura Nr. 5750372341  del 12/01/2017 (di cui Split per euro 4.539,68) - PRESA D'ATTO ESITO GARA FORN. DI ENERGIA ELETTRICA PER L'ANNO 2016 E IMPEGNO DELLE SOMME PER IL RELATIVO PAGAMENTO ALLE DITTE AGGIUDICATARIE GALA SPA;476;1;3;2;5;4
EDISON ENERGIA S.P.A.;20/02/2017;Energia elettrica;3,12;IVA Liquidazione Fattura Nr. 5750376737  del 12/01/2017 - Fornitura generica;476;1;3;2;5;4
EDISON ENERGIA S.P.A.;20/02/2017;Energia elettrica;20.634,89;Liquidazione Fattura Nr. 5750372341  del 12/01/2017 - PRESA D'ATTO ESITO GARA FORNITURA DI ENERGIA ELETTRICA PER L'ANNO 2016 E IMPEGNO DELLE SOMME PER IL RELATIVO PAGAMENTO ALLE DITTE AGGIUDICATARIE GALA SPA PER IL LOTTO 2 (ALTRI USI IN BAS;476;1;3;2;5;4
EDISON ENERGIA S.P.A.;20/02/2017;Energia elettrica;14,16;Liquidazione Fattura Nr. 5750376737  del 12/01/2017 - Fornitura generica;476;1;3;2;5;4
SELF S.R.L.;20/02/2017;Altre prestazioni professionali e specialistiche n.a.c.;855,00;Liquidazione Fattura Nr. FATTPA 1_17  del 09/01/2017 - ACCOMPAGNAMENTO FORMATIVO NELLA FORMA DEL TUTORING PER LA GESTIONE DEL PERSONALE;477;1;3;2;11;999
STUDIO PICCHI ASSOCIATO;20/02/2017;Altre prestazioni professionali e specialistiche n.a.c.;2.385,01;LIQUIDAZIONE FATTURA NR. 000032-2016-FATTURE  DEL 09/12/2016 - INTEGRAZIONE DETERMINAZIONE N.127 DEL 29/12/2015 PER GESTIONE PREVIDENZIALE DEI DIPENDENTI DEL COMUNE DI VINCI;477;1;3;2;11;999
BNP PARIBAS LEASE GROUP SA;20/02/2017;Noleggi di hardware;24,76;IVA - Liquidazione Fattura Nr. BIE12344  del 23/12/2016 (di cui Split per euro 24,76) - REIMPUTAZIONE IMPEGNI E VARIAZIONE FORNITORE PER NOLEGGIO STAMPANTE MULTIFUNZIONE PER SPORTELLO LAVORO SOVIGLIANA;478;1;3;2;7;4
BNP PARIBAS LEASE GROUP SA;20/02/2017;Noleggi di hardware;112,56;Liquidazione Fattura Nr. BIE12344  del 23/12/2016 - REIMPUTAZIONE IMPEGNI E VARIAZIONE FORNITORE PER NOLEGGIO STAMPANTE MULTIFUNZIONE PER SPORTELLO LAVORO SOVIGLIANA;478;1;3;2;7;4
FAGGIONATO ROBERTO;20/02/2017;Altri beni e materiali di consumo n.a.c.;19,54;IVA Liquidazione Fattura Nr. 895/2016  del 01/12/2016 (di cui Split per euro 19,54) - Fornitura n. 12 bandiere (6 IT e 6 EU) - Imp. DS11080 del 2016;479;1;3;1;2;999
FAGGIONATO ROBERTO;20/02/2017;Altri beni e materiali di consumo n.a.c.;88,80;Liquidazione Fattura Nr. 895/2016  del 01/12/2016 - Fornitura n. 12 bandiere (6 IT e 6 EU) - Imp. DS11080 del 2016;479;1;3;1;2;999
MA.ECO S.N.C.;20/02/2017;Altri beni e materiali di consumo n.a.c.;44,00;IVA Liquidazione Fattura Nr. 145/PA  del 19/12/2016 (di cui Split per euro 44,00) - TARGA CON PALINA PER GIARDINO COPPI-BARTALI - Codice impegno n. DS11046 - CIG: Z5F1AFE4A2;479;1;3;1;2;999
MA.ECO S.N.C.;20/02/2017;Altri beni e materiali di consumo n.a.c.;200,00;Liquidazione Fattura Nr. 145/PA  del 19/12/2016 - TARGA CON PALINA PER GIARDINO COPPI-BARTALI - Codice impegno n. DS11046 - CIG: Z5F1AFE4A2;479;1;3;1;2;999
2 F PUBBLICITA' S.R.L.;20/02/2017;Pubblicazioni;23,10;IVA Liquidazione Fattura Nr. 2  del 21/12/2016 (di cui Split per euro 23,10) - LOCANDINA E VOLANTINI PER INIZIATIVA DELLA CONSULTA IN OCCASIONE DELLA GIORNATA INTERNAZIONALE CONTRO LA VIOLENZA SULLE DONNE;480;1;3;1;1;2
2 F PUBBLICITA' S.R.L.;20/02/2017;Pubblicazioni;105,00;Liquidazione Fattura Nr. 2  del 21/12/2016 - LOCANDINA E VOLANTINI PER INIZIATIVA DELLA CONSULTA IN OCCASIONE DELLA GIORNATA INTERNAZIONALE CONTRO LA VIOLENZA SULLE DONNE;480;1;3;1;1;2
STUDIO LEGALE ASSOCIATO NARESE-FALORNI-DE MEO SOCIETA' SEMPLICE;20/02/2017;Patrocinio legale;21.571,50;LIQUIDAZIONE FATTURA NR. 74/PA  DEL 06/12/2016 - RICORSO TAR SIGG. RI BROGI;481;1;3;2;11;6
ETRURIA P.A. SRL;20/02/2017;Carta, cancelleria e stampati;20,77;IVA - LIQUIDAZIONE FATTURA NR. 2311/00000 DEL 15/11/2016 - FORNITURA MATERIALE VARIO PER UFFICI DEMOGRAFICI;482;1;3;1;2;1
ETRURIA P.A. SRL;20/02/2017;Carta, cancelleria e stampati;94,40;Liquidazione Fattura Nr. 2311/00000 del 15/11/2016 - FORNITURA MATERIALE VARIO PER UFFICI DEMOGRAFICI;482;1;3;1;2;1
NOLCAR SRL - AUTONOLEGGIO;20/02/2017;Noleggi di mezzi di trasporto;88,00;IVA - Liquidazione Fattura Nr. 5 del 05/12/2016 - NOLEGGIO FURGONE TRASPORTO MATERIALE ELETTORALE REFERENDUM 04/12/20126 DETERMINA N. 190 DEL 18/11/2016 COD IMPEGNO DS01190/1;483;1;3;2;7;2
NOLCAR SRL - AUTONOLEGGIO;20/02/2017;Noleggi di mezzi di trasporto;400,00;Liquidazione Fattura Nr. 5 del 05/12/2016 - NOLEGGIO FURGONE TRASPORTO MATERIALE ELETTORALE REFERENDUM 4 dicembre 2016;483;1;3;2;7;2
DAMAZ S.R.L. - INGROSSO CASALINGHI;20/02/2017;Altri beni e materiali di consumo n.a.c.;10,03;IVA Liquidazione Fattura Nr. 12235P  del 15/12/2016 (di cui Split per euro 10,03) - ORDINE PER EDIFICI COMUNALI ;484;1;3;1;2;999
DAMAZ S.R.L. - INGROSSO CASALINGHI;20/02/2017;Altri beni e materiali di consumo n.a.c.;45,57;Liquidazione Fattura Nr. 12235P  del 15/12/2016 - ORDINE PER EDIFICI COMUNALI ;484;1;3;1;2;999
COOPERATIVA SOCIALE ZOE S.C.A.R.L.;20/02/2017;Servizi di pulizia e lavanderia;222,06;IVA Liquidazione Fattura Nr. FATTPA 257_16  del 30/11/2016 (di cui Split per euro 222,06) - PULIZIA EDIFICI COMUNALI (Generale) NOVEMBRE 2016;485;1;3;2;13;2
COOPERATIVA SOCIALE ZOE S.C.A.R.L.;20/02/2017;Servizi di pulizia e lavanderia;1.009,36;Liquidazione Fattura Nr. FATTPA 257_16  del 30/11/2016 - PULIZIA EDIFICI COMUNALI (Generale) NOVEMBRE 2016;485;1;3;2;13;2
COOPERATIVA SOCIALE ZOE S.C.A.R.L.;20/02/2017;Servizi di pulizia e lavanderia;28,65;IVA Liquidazione Fattura Nr. FATTPA 258_16  del 30/11/2016 (di cui Split per euro 28,65) - PULIZIA BIBLIOTECHE NOVEMBRE 2016;486;1;3;2;13;2
COOPERATIVA SOCIALE ZOE S.C.A.R.L.;20/02/2017;Servizi di pulizia e lavanderia;130,24;Liquidazione Fattura Nr. FATTPA 258_16  del 30/11/2016 - PULIZIA BIBLIOTECHE NOVEMBRE 2016;486;1;3;2;13;2
COOPERATIVA SOCIALE ZOE S.C.A.R.L.;20/02/2017;Servizi di pulizia e lavanderia;272,20;IVA Liquidazione Fattura Nr. FATTPA 259_16  del 30/11/2016 (di cui Split per euro 272,20) - PULIZIA PALESTRE NOVEMBRE 2016;487;1;3;2;13;2
COOPERATIVA SOCIALE ZOE S.C.A.R.L.;20/02/2017;Servizi di pulizia e lavanderia;1.237,28;Liquidazione Fattura Nr. FATTPA 259_16  del 30/11/2016 - PULIZIA PALESTRE NOVEMBRE 2016;487;1;3;2;13;2
COOPERATIVA SOCIALE ZOE S.C.A.R.L.;20/02/2017;Servizi di pulizia e lavanderia;30,27;IVA Liquidazione Fattura Nr. FATTPA 260_16  del 30/11/2016 (di cui Split per euro 30,27) - PULIZIA NUOVO UTU NOVEMBRE 2016;488;1;3;2;13;2
COOPERATIVA SOCIALE ZOE S.C.A.R.L.;20/02/2017;Servizi di pulizia e lavanderia;137,60;Liquidazione Fattura Nr. FATTPA 260_16  del 30/11/2016 - PULIZIA NUOVO UTU NOVEMBRE 2016;488;1;3;2;13;2
POSTE ITALIANE SPA SOCIETA' CON SOCIO UNICO;20/02/2017;Spese postali;6,27;Liquidazione Fattura Nr. 8717005134  del 18/01/2017 - Rimborso CAN e CAD mese di NOVEMBRE 2016;489;1;3;2;16;2
NEOPOST ITALIA S.R.L .;20/02/2017;Noleggi di impianti e macchinari;5,28;IVA 1% Liquidazione Fattura Nr. 16002815  del 29/04/2016 - NOLEGGIO AFFRANCATRICE 2016 - I� RATA;490;1;3;2;7;8
NEOPOST ITALIA S.R.L .;20/02/2017;Noleggi di impianti e macchinari;110,88;IVA 21% Liquidazione Fattura Nr. 16002815  del 29/04/2016 - NOLEGGIO AFFRANCATRICE 2016 - I� RATA;490;1;3;2;7;8
NEOPOST ITALIA S.R.L .;20/02/2017;Noleggi di impianti e macchinari;528,00;Liquidazione Fattura Nr. 16002815  del 29/04/2016 - NOLEGGIO AFFRANCATRICE 2016 - I� RATA;490;1;3;2;7;8
BAZAR CINELLI DI CINELLI ILARIA E PAOLO;20/02/2017;Pubblicazioni;4.927,27;Liquidazione Fattura Nr. 010FE  del 06/01/2017 - FORNITURA LIBRI DI TESTO PER CEDOLE LIBRARIE ELEMENTARI;491;1;3;1;1;2
TXT S.P.A.;20/02/2017;Pubblicazioni;30,17;Liquidazione Fattura Nr. PA67  del 15/12/2016 - FORNITURA LIBRI DI TESTO PER CEDOLE LIBRARIE ELEMENTARI - CODICE UFFICIO UF8E82;491;1;3;1;1;2
CRISTOFORO SOC.COOP. SOCIALE ONLUS;20/02/2017;Altri servizi diversi n.a.c.;865,02;IVA-Liquidazione Fattura Nr. 552  del 14/12/2016 (di cui Split per euro 865,02) - SERVIZIO ACCOMPAGNAMENTO SCUOLABUS MESE DI NOVEMBRE 2016;492;1;3;2;99;999
CRISTOFORO SOC.COOP. SOCIALE ONLUS;20/02/2017;Altri servizi diversi n.a.c.;103,45;IVA-Liquidazione Fattura Nr. 553  del 14/12/2016 (di cui Split per euro 103,45) - SERVIZIO PRESCUOLA MESE DI NOVEMBRE 2016;492;1;3;2;99;999
CRISTOFORO SOC.COOP. SOCIALE ONLUS;20/02/2017;Altri servizi diversi n.a.c.;8.650,17;Liquidazione Fattura Nr. 552  del 14/12/2016 - SERVIZIO ACCOMPAGNAMENTO SCUOLABUS MESE DI NOVEMBRE 2016;492;1;3;2;99;999
CRISTOFORO SOC.COOP. SOCIALE ONLUS;20/02/2017;Altri servizi diversi n.a.c.;1.034,51;Liquidazione Fattura Nr. 553  del 14/12/2016 - SERVIZIO PRESCUOLA MESE DI NOVEMBRE 2016;492;1;3;2;99;999
CENTRO  FORMAZIONE E CULTURA MUSICALE;20/02/2017;Altri servizi diversi n.a.c.;3.960,00;Liquidazione Fattura Nr. 2/01  del 16/12/2016 - AFFIDAMENTO DEL SERVIZIO DI LABORATORIO MUSICALE NELLE SCUOLE PRIMARIE DAL 15/9/2016 AL 31/12/2017;493;1;3;2;99;999
CIR FOOD S.C. DIVISIONE EUDANIA;20/02/2017;Contratti di servizio per le mense scolastiche;1.038,39;IVA-Liquid.Fattura Nr. 5200033007  del 30/11/2016 (di cui Split per euro 1.038,39) - Destinatario:0000100288,COMUNE DI VINCI,Piazza Leonardo 29,VINCI,50059,FI Trattenute DPR RIT 0,5 % ART. 4 C.3 DPR 207/2010 di 130,45- RIF2: SER.RIST.SCOL F;494;1;3;2;15;6
CIR FOOD S.C. DIVISIONE EUDANIA;20/02/2017;Contratti di servizio per le mense scolastiche;25.959,77;Liquidazione Fattura Nr. 5200033007  del 30/11/2016 - Destinatario:0000100288,COMUNE DI VINCI,Piazza Leonardo 29,VINCI,50059,FI Trattenute DPR RIT 0,5 % ART. 4 C.3 DPR 207/2010 di 130,45- RIF2: SER.RIST.SCOLASTICA COME DA CONTRATTO MESE DI ;494;1;3;2;15;6
EREDI LEPORATTI S.A.S.;20/02/2017;Contratti di servizio di trasporto pubblico;227,56;IVA Liquidazione Fattura Nr. 000017-2016-E  del 30/11/2016 (di cui Split per euro 227,56) - TPL NOVEMBRE 2016;495;1;3;2;15;1
EREDI LEPORATTI S.A.S.;20/02/2017;Contratti di servizio di trasporto pubblico;2.275,61;Liquidazione Fattura Nr. 000017-2016-E  del 30/11/2016 - TPL NOVEMBRE 2016;495;1;3;2;15;1
ARCA - COOPERATIVA SOCIALE A R.L.;20/02/2017;Contratti di servizio di asilo nido;1.403,39;IVA-Liquid. Fattura Nr. E-1339  del 06/12/2016 (di cui Split per euro 1.403,39) - GESTIONE NIDO COMUNALE ES. 2016 -- SERVIZIO EDUCATIVO MESE DI NOVEMBRE 2016 Fattura Nr. E-1339 del 06-12-2016;496;1;3;2;15;10
ARCA - COOPERATIVA SOCIALE A R.L.;20/02/2017;Contratti di servizio di asilo nido;202,50;IVA-Liquid. Fattura Nr. E-1340  del 06/12/2016 (di cui Split per euro 202,50) - GESTIONE NIDO COMUNALE ES. 2016 -- SERVIZIO REFEZIONE MESE DI NOVEMBRE 2016 Fattura Nr. E-1340 del 06-12-2016;496;1;3;2;15;10
ARCA - COOPERATIVA SOCIALE A R.L.;20/02/2017;Contratti di servizio di asilo nido;35.084,67;Liquidazione Fattura Nr. E-1339  del 06/12/2016 - GESTIONE NIDO COMUNALE ES. 2016 -- SERVIZIO EDUCATIVO MESE DI NOVEMBRE 2016;496;1;3;2;15;10
ARCA - COOPERATIVA SOCIALE A R.L.;20/02/2017;Contratti di servizio di asilo nido;5.062,57;Liquidazione Fattura Nr. E-1340  del 06/12/2016 - GESTIONE NIDO COMUNALE ES. 2016 -- SERVIZIO REFEZIONE MESE DI NOVEMBRE 2016;496;1;3;2;15;10
CO&SO EMPOLI - CONS. DI COOP. SOCIALI - SOCIETA' COOPERATIVA;20/02/2017;Altre spese per contratti di servizio pubblico;901,60;IVA - Liquidazione Fattura Nr. 001025-2C0  del 31/10/2016 - Servizio sostegno handicap in ambito scolastico -- OTTOBRE 2016;497;1;3;2;15;999
CO&SO EMPOLI - CONS. DI COOP. SOCIALI - SOCIETA' COOPERATIVA;20/02/2017;Altre spese per contratti di servizio pubblico;895,15;IVA-Liquidazione Fattura Nr. 001131-2C0  del 30/11/2016 - SERVIZIO SOSTEGNO HANDICAP NELL'AMBITO SCOLASTICO MESE DI NOVEMBRE 2016;497;1;3;2;15;999
CO&SO EMPOLI - CONS. DI COOP. SOCIALI - SOCIETA' COOPERATIVA;20/02/2017;Altre spese per contratti di servizio pubblico;22.539,89;Liquidazione Fattura Nr. 001025-2C0  del 31/10/2016 - Servizio sostegno handicap in ambito scolastico -- OTTOBRE 2016;497;1;3;2;15;999
CO&SO EMPOLI - CONS. DI COOP. SOCIALI - SOCIETA' COOPERATIVA;20/02/2017;Altre spese per contratti di servizio pubblico;22.378,63;Liquidazione Fattura Nr. 001131-2C0  del 30/11/2016 - SERVIZIO SOSTEGNO HANDICAP NELL'AMBITO SCOLASTICO MESE DI NOVEMBRE 2016;497;1;3;2;15;999
ASSOCIAZIONE CULTURALE IL PONTE;20/02/2017;Altre spese per contratti di servizio pubblico;7.886,79;Liquidazione Fattura Nr. 37  del 14/11/2016 - SERVIZIO CONCESSIONE SERVIZI EDUCATIVI PER L'INFANZIA E SERVIZI EXTRA-SCOLASTICI MESI DI SETTEMBRE E OTTOBRE 2016 - IMPEGNO DI SPESA REGHINI15B;498;1;3;2;15;999
CO&SO EMPOLI - CONS. DI COOP. SOCIALI - SOCIETA' COOPERATIVA;20/02/2017;Altre spese per contratti di servizio pubblico;2.806,36;Liquidazione Fattura Nr. 001160-2C0  del 30/11/2016 - SERVIZI EXTRA-SCOLASTICI PRESSO VILLA REGHINI MESE DI NOVEMBRE 2016;498;1;3;2;15;999
BLITZ DISINFESTAZIONI SRL;21/02/2017;Altri acquisti di servizi sanitari n.a.c.;944,90;IVA liquidazione Fattura Nr. 27  del 30/11/2016 (di cui Split per euro 944,90) - SERVIZIO DI DISINFESTAZIONE CIG - ZA01BF7DF4 DET. N 139 DEL 15/11/2016;499;1;3;2;18;999
BLITZ DISINFESTAZIONI SRL;21/02/2017;Altri acquisti di servizi sanitari n.a.c.;4.295,00;Liquidazione Fattura Nr. 27  del 30/11/2016 - SERVIZIO DI DISINFESTAZIONE CIG - ZA01BF7DF4 DET. N 139 DEL 15/11/2016;499;1;3;2;18;999
AZIENDA UNITA' SANITARIA LOCALE N. 11 - ZONA EMPOLESE E VALDARNO INFERIORE;21/02/2017;Manutenzione ordinaria e riparazioni di beni immobili;62,56;IVA-Liquidazione Fattura Nr. P32/2015/66  del 31/12/2015 - VERIFICHE ASCENSORI;500;1;3;2;9;8
AZIENDA UNITA' SANITARIA LOCALE N. 11 - ZONA EMPOLESE E VALDARNO INFERIORE;21/02/2017;Manutenzione ordinaria e riparazioni di beni immobili;559,41;IVA-Liquidazione Fattura Nr. P32/2015/67  del 31/12/2015 (di cui Split per euro 559,41) - VERIFICHE IMPIANTISTICHE ANNO 2015 ;500;1;3;2;9;8
AZIENDA UNITA' SANITARIA LOCALE N. 11 - ZONA EMPOLESE E VALDARNO INFERIORE;21/02/2017;Manutenzione ordinaria e riparazioni di beni immobili;284,35;Liquidazione Fattura Nr. P32/2015/66  del 31/12/2015 - VERIFICHE ASCENSORI;500;1;3;2;9;8
AZIENDA UNITA' SANITARIA LOCALE N. 11 - ZONA EMPOLESE E VALDARNO INFERIORE;21/02/2017;Manutenzione ordinaria e riparazioni di beni immobili;2.542,73;Liquidazione Fattura Nr. P32/2015/67  del 31/12/2015 - VERIFICHE IMPIANTISTICHE ANNO 2015 ;500;1;3;2;9;8
AZIENDA UNITA' SANITARIA LOCALE N. 11 - ZONA EMPOLESE E VALDARNO INFERIORE;21/02/2017;Manutenzione ordinaria e riparazioni di beni immobili;810,55;Liquidazione Fattura Nr. P32/2015/68  del 31/12/2015 - VERIFICHE IMPIANTISTICHE ANNO 2015;500;1;3;2;9;8
AZIENDA USL TOSCANA CENTRO;21/02/2017;Manutenzione ordinaria e riparazioni di beni immobili;62,56;IVA-Liquidazione Fattura Nr. P32/2016/39  del 23/11/2016 (di cui Split per euro 62,56) - VISITE PERIODICHE ASCENSORI;500;1;3;2;9;8
AZIENDA USL TOSCANA CENTRO;21/02/2017;Manutenzione ordinaria e riparazioni di beni immobili;284,35;Liquidazione Fattura Nr. P32/2016/39  del 23/11/2016 - VISITE PERIODICHE ASCENSORI;500;1;3;2;9;8
ROCA'S IMPIANTI ELETTRICI DI GRANIERO   ROCCO E C.;21/02/2017;Manutenzione ordinaria e riparazioni di impianti e macchinari;52,80;IVA _ Liquidazione Fattura Nr. 000003-2016-PA  del 20/12/2016 (di cui Split per euro 52,80) - RIPRISTINO FUNZIONALITA' E SOSTITUZIONE BATTERIE ALLARME DEL MAGAZZINO _ DET. N. 176/2016 A CONTRARRE E AFFIDAMENTO DITTA ROCA'S SAS;501;1;3;2;9;4
ROCA'S IMPIANTI ELETTRICI DI GRANIERO   ROCCO E C.;21/02/2017;Manutenzione ordinaria e riparazioni di impianti e macchinari;240,00;Liquidazione Fattura Nr. 000003-2016-PA  del 20/12/2016 - RIPRISTINO FUNZIONALITA' E SOSTITUZIONE BATTERIE ALLARME DEL MAGAZZINO _ DET. N. 176/2016 A CONTRARRE E AFFIDAMENTO DITTA ROCA'S SAS;501;1;3;2;9;4
AZIENDA USL TOSCANA CENTRO;21/02/2017;Manutenzione ordinaria e riparazioni di mezzi di trasporto ad uso civile, di sicurezza e ordine pubblico;61,71;IVA-Liquidazione Fattura Nr. P32/2016/32  del 04/11/2016 (di cui Split per euro 61,71) - NEL BONIFICO INDICARE EX ASL 11 E NUMEROFATTURA - VERIFICHE IMPIANT.2016;502;1;3;2;9;1
AZIENDA USL TOSCANA CENTRO;21/02/2017;Manutenzione ordinaria e riparazioni di mezzi di trasporto ad uso civile, di sicurezza e ordine pubblico;47,73;IVA-Liquidazione Fattura Nr. P32/2016/37  del 23/11/2016 (di cui Split per euro 47,73) - NEL BONIFICO INDICARE EX ASL 11 E NUMEROFATTURA - VERIFICHE IMPIANT.2016;502;1;3;2;9;1
AZIENDA USL TOSCANA CENTRO;21/02/2017;Manutenzione ordinaria e riparazioni di mezzi di trasporto ad uso civile, di sicurezza e ordine pubblico;280,50;Liquidazione Fattura Nr. P32/2016/32  del 04/11/2016 - NEL BONIFICO INDICARE EX ASL 11 E NUMEROFATTURA - VERIFICHE IMPIANT.2016;502;1;3;2;9;1
AZIENDA USL TOSCANA CENTRO;21/02/2017;Manutenzione ordinaria e riparazioni di mezzi di trasporto ad uso civile, di sicurezza e ordine pubblico;216,94;Liquidazione Fattura Nr. P32/2016/37  del 23/11/2016 - NEL BONIFICO INDICARE EX ASL 11 E NUMEROFATTURA - VERIFICHE IMPIANT.2016;502;1;3;2;9;1
RAME LUCA DI MIGLIORINI LUCA;21/02/2017;Manutenzione ordinaria e riparazioni di beni immobili;80,20;IVA _ Liquidazione Fattura Nr. 161  del 30/11/2016 (di cui Split per euro 80,20) - INTERVENTO DI COPERTURA PER RIPRISTINO INFILTRAZIONI SCUOLA D'INFANZIA _ DET. N. 269/2016 A CONTRARRE E AFFIDAMENTO DITTA RAME LUCA DI MIGLIORINI LUCA;503;1;3;2;9;8
RAME LUCA DI MIGLIORINI LUCA;21/02/2017;Manutenzione ordinaria e riparazioni di beni immobili;364,50;Liquidazione Fattura Nr. 161  del 30/11/2016 - INTERVENTO DI COPERTURA PER RIPRISTINO INFILTRAZIONI SCUOLA D'INFANZIA _ DET. N. 269/2016 A CONTRARRE E AFFIDAMENTO DITTA RAME LUCA DI MIGLIORINI LUCA;503;1;3;2;9;8
TERMOCONTROL SRL MANUTENZIONE IMPIANTI;21/02/2017;Manutenzione ordinaria e riparazioni di impianti e macchinari;135,92;IVA-Liquidazione Fattura Nr. 000108PA  del 15/11/2016 - MANUTENZIONE IMPIANTI TERMOIDRAULICI E DI CONDIZIONAMENTO ANNO 2015-2016 - INTERVENTI MANUTENZIONE EXTRACANONE EDIFICI SOGGETTI A REVERSE CHARGE;504;1;3;2;9;4
TERMOCONTROL SRL MANUTENZIONE IMPIANTI;21/02/2017;Manutenzione ordinaria e riparazioni di impianti e macchinari;617,83;Liquidazione Fattura Nr. 000108PA  del 15/11/2016 - MANUTENZIONE IMPIANTI TERMOIDRAULICI E DI CONDIZIONAMENTO ANNO 2015-2016 - INTERVENTI MANUTENZIONE EXTRACANONE EDIFICI SOGGETTI A REVERSE CHARGE;504;1;3;2;9;4
RAME LUCA DI MIGLIORINI LUCA;21/02/2017;Manutenzione ordinaria e riparazioni di beni immobili;160,70;IVA _ Liquidazione Fattura Nr. 159  del 30/11/2016 (di cui Split per euro 160,70) - LAVORI DI LATTONERIA AL TEATRO DELLA MISERICORDIA DI VINCI _ DET. N. 160/2016 A CONTRARRE E AFFIDAMENTO DITTA RAME LUCA DI MIGLIORINI LUCA;505;1;3;2;9;8
RAME LUCA DI MIGLIORINI LUCA;21/02/2017;Manutenzione ordinaria e riparazioni di beni immobili;187,00;IVA _ Liquidazione Fattura Nr. 160  del 30/11/2016 (di cui Split per euro 187,00) - INTERVENTO DI RIFINITURA E COMPLETAMENTO ALL'IRSOO _ DET. N. 275/2016 A CONTRARRE E AFFIDAMENTO DITTA RAME LUCA DI MIGLIORINI LUCA;505;1;3;2;9;8
RAME LUCA DI MIGLIORINI LUCA;21/02/2017;Manutenzione ordinaria e riparazioni di beni immobili;730,50;Liquidazione Fattura Nr. 159  del 30/11/2016 - LAVORI DI LATTONERIA AL TEATRO DELLA MISERICORDIA DI VINCI _ DET. N. 160/2016 A CONTRARRE E AFFIDAMENTO DITTA RAME LUCA DI MIGLIORINI LUCA;505;1;3;2;9;8
RAME LUCA DI MIGLIORINI LUCA;21/02/2017;Manutenzione ordinaria e riparazioni di beni immobili;850,00;Liquidazione Fattura Nr. 160  del 30/11/2016 - INTERVENTO DI RIFINITURA E COMPLETAMENTO ALL'IRSOO _ DET. N. 275/2016 A CONTRARRE E AFFIDAMENTO DITTA RAME LUCA DI MIGLIORINI LUCA;505;1;3;2;9;8
RPS S.P.A. RIELLO POWER SOLUTIONS;21/02/2017;Manutenzione ordinaria e riparazioni di impianti e macchinari;71,50;IVA - Liquidazione Fattura Nr. 116009  del 16/12/2016 - SOPRALLUOGO PER MANUTENZIONE GRUPPO SOCCORRITORE DI VIA CADUTI SUL LAVORO N. 8 A SOVIGLIANA _ DET. A CONT. E AFFIDA. RIELLO POWER SOLUTIONS SPA;506;1;3;2;9;4
RPS S.P.A. RIELLO POWER SOLUTIONS;21/02/2017;Manutenzione ordinaria e riparazioni di impianti e macchinari;325,00;Liquidazione Fattura Nr. 116009  del 16/12/2016 - SOPRALLUOGO PER MANUTENZIONE GRUPPO SOCCORRITORE DI VIA CADUTI SUL LAVORO N. 8 A SOVIGLIANA _ DET. A CONT. E AFFIDA. RIELLO POWER SOLUTIONS SPA;506;1;3;2;9;4
TERMOCONTROL SRL MANUTENZIONE IMPIANTI;21/02/2017;Manutenzione ordinaria e riparazioni di impianti e macchinari;28,80;IVA-Liquidazione Fattura Nr. 000108PA  del 15/11/2016 - MANUTENZIONE IMPIANTI TERMOIDRAULICI E DI CONDIZIONAMENTO ANNO 2015-2016 - INTERVENTI MANUTENZIONE EXTRACANONE EDIFICI SOGGETTI A REVERSE CHARGE;506;1;3;2;9;4
PUCCI EDILIZIA E STRADE DI ALESSANDRO PUCCI;21/02/2017;Altri beni e materiali di consumo n.a.c.;175,89;IVA-Liquidazione Fattura Nr. 2/PA  del 11/01/2017 (di cui Split per euro 175,89) - FORNITURA MATERIALI INERTI PER MANUTENZIONE STRADE COMUNALI ;507;1;3;1;2;999
PUCCI EDILIZIA E STRADE DI ALESSANDRO PUCCI;21/02/2017;Altri beni e materiali di consumo n.a.c.;67,37;IVA-Liquidazione Fattura Nr. 8/PA  del 30/11/2016 (di cui Split per euro 67,37) - FORNITURA MATERIALI INERTI PER MANUTENZIONE STRADE COMUNALI ;507;1;3;1;2;999
PUCCI EDILIZIA E STRADE DI ALESSANDRO PUCCI;21/02/2017;Altri beni e materiali di consumo n.a.c.;799,51;Liquidazione Fattura Nr. 2/PA  del 11/01/2017 - FORNITURA MATERIALI INERTI PER MANUTENZIONE STRADE COMUNALI ;507;1;3;1;2;999
PUCCI EDILIZIA E STRADE DI ALESSANDRO PUCCI;21/02/2017;Altri beni e materiali di consumo n.a.c.;306,21;Liquidazione Fattura Nr. 8/PA  del 30/11/2016 - FORNITURA MATERIALI INERTI PER MANUTENZIONE STRADE COMUNALI ;507;1;3;1;2;999
PUCCI EDILIZIA E STRADE DI ALESSANDRO PUCCI;21/02/2017;Altri beni e materiali di consumo n.a.c.;293,49;IVA-Liquidazione Fattura Nr. 3/PA  del 17/01/2017 (di cui Split per euro 293,49) - FORNITURA STABILIZZATO PER STRADE VICINALI;508;1;3;1;2;999
PUCCI EDILIZIA E STRADE DI ALESSANDRO PUCCI;21/02/2017;Altri beni e materiali di consumo n.a.c.;17,72;IVA-Liquidazione Fattura Nr. 9/PA  del 30/11/2016 (di cui Split per euro 17,72) - FORNITURA STABILIZZATO PER STRADE VICINALI;508;1;3;1;2;999
PUCCI EDILIZIA E STRADE DI ALESSANDRO PUCCI;21/02/2017;Altri beni e materiali di consumo n.a.c.;1.334,05;Liquidazione Fattura Nr. 3/PA  del 17/01/2017 - FORNITURA STABILIZZATO PER STRADE VICINALI;508;1;3;1;2;999
PUCCI EDILIZIA E STRADE DI ALESSANDRO PUCCI;21/02/2017;Altri beni e materiali di consumo n.a.c.;80,53;Liquidazione Fattura Nr. 9/PA  del 30/11/2016 - FORNITURA STABILIZZATO PER STRADE VICINALI;508;1;3;1;2;999
TERMOCONTROL SRL MANUTENZIONE IMPIANTI;21/02/2017;Manutenzione ordinaria e riparazioni di impianti e macchinari;101,92;IVA-Liquidazione Fattura Nr. 000108PA  del 15/11/2016 - MANUTENZIONE IMPIANTI TERMOIDRAULICI E DI CONDIZIONAMENTO ANNO 2015-2016 - INTERVENTI MANUTENZIONE EXTRACANONE EDIFICI SOGGETTI A REVERSE CHARGE;509;1;3;2;9;4
TERMOCONTROL SRL MANUTENZIONE IMPIANTI;21/02/2017;Manutenzione ordinaria e riparazioni di impianti e macchinari;463,26;Liquidazione Fattura Nr. 000108PA  del 15/11/2016 - MANUTENZIONE IMPIANTI TERMOIDRAULICI E DI CONDIZIONAMENTO ANNO 2015-2016 - INTERVENTI MANUTENZIONE EXTRACANONE EDIFICI SOGGETTI A REVERSE CHARGE;509;1;3;2;9;4
SOCIETA' IMPIANTI TECNOLOGICI SNC DI RUGGIERO C. & C.;21/02/2017;Manutenzione ordinaria e riparazioni di impianti e macchinari;215,60;IVA - Liq. FT Nr. 000006-2016-PA  del 09/12/2016 (di cui Split per euro 215,60) - REALIZ. ALLACCIO PROVVISORIO RESIDENZA ANZIANI _ DET 299/2016 AFFID. SIT SNC Fattura Nr. 000006-2016-PA del 09-12-2016;510;1;3;2;9;4
SOCIETA' IMPIANTI TECNOLOGICI SNC DI RUGGIERO C. & C.;21/02/2017;Manutenzione ordinaria e riparazioni di impianti e macchinari;980,00;Liq. FT Nr. 000006-2016-PA  del 09/12/2016 (di cui Split per euro 215,60) - REALIZ. ALLACCIO PROVVISORIO RESIDENZA ANZIANI _ DET 299/2016 AFFID. SIT SNC Fattura Nr. 000006-2016-PA del 09-12-2016;510;1;3;2;9;4
2 F PUBBLICITA' S.R.L.;21/02/2017;Carta, cancelleria e stampati;77,00;"IVA - Liquidazione Fattura Nr. 3 del 21/12/2016 - FORNITURA MATERIALE PER CAMPAGNA INFORMATIVA ""UNA SCELTA IN COMUNE""";511;1;3;1;2;1
2 F PUBBLICITA' S.R.L.;21/02/2017;Carta, cancelleria e stampati;350,00;"Liquidazione Fattura Nr. 3 del 21/12/2016 - FORNITURA MATERIALE PER CAMPAGNA INFORMATIVA ""UNA SCELTA IN COMUNE""";511;1;3;1;2;1
PROMOCULTURA SOCIETA' COOPERATIVA A.R.L..;21/02/2017;Altre spese per contratti di servizio pubblico;231,00;IVA  REVERSE CHARGE - LIQUIDAZIONE FATTURA NR. 168-E-2016  DEL 04/12/2016 - SERVIZI DI PULIZIE PRESSO I MUSEI DEL COMUNE DI VINCI. 60 ORE;512;1;3;2;15;999
PROMOCULTURA SOCIETA' COOPERATIVA A.R.L..;21/02/2017;Altre spese per contratti di servizio pubblico;2.695,00;LIQUIDAZIONE FATTURA NR. 167-E-2016  DEL 04/12/2016 - SERVIZI MUSEALI CASA NATALE ANCHIANO. MESE DI NOVEMBRE 2016. 154 ORE;512;1;3;2;15;999
PROMOCULTURA SOCIETA' COOPERATIVA A.R.L..;21/02/2017;Altre spese per contratti di servizio pubblico;1.050,00;Liquidazione Fattura Nr. 168-E-2016  del 04/12/2016 - Servizi di pulizie presso i musei del Comune di Vinci. 60 ore;512;1;3;2;15;999
PROMOCULTURA SOCIETA' COOPERATIVA A.R.L..;21/02/2017;Altre spese per contratti di servizio pubblico;3.115,00;LIQUIDAZIONE FATTURA NR. 169-E-2016  DEL 04/12/2016 - SERVIZI DI DIDATTICA MUSEALE NOVEMBRE 2016 2016. 187 ORE;512;1;3;2;15;999
CO&SO EMPOLI - CONS. DI COOP. SOCIALI - SOCIETA' COOPERATIVA;21/02/2017;Altre spese per contratti di servizio pubblico;5.672,26;Liquidazione Fattura Nr. 001154-2C0 del 30/11/2016 - Fattura per Servizio al pubblico, front-office didattica presso Biblioteca Leonardiana e sedi distaccate;513;1;3;2;15;999
S.I.A.E. SOCIET� ITALIANA DEGLI AUTORI ED EDITORI;21/02/2017;Altre prestazioni professionali e specialistiche n.a.c.;28,88;IVA - LIQUIDAZIONE FATTURA NR. 1616040351  DEL 16/12/2016 - FORNITURA GENERICA;514;1;3;2;11;999
S.I.A.E. SOCIET� ITALIANA DEGLI AUTORI ED EDITORI;21/02/2017;Altre prestazioni professionali e specialistiche n.a.c.;131,27;LIQUIDAZIONE FATTURA NR. 1616040351  DEL 16/12/2016 - FORNITURA GENERICA;514;1;3;2;11;999
PROMOCULTURA SOCIETA' COOPERATIVA A.R.L..;21/02/2017;Altre spese per contratti di servizio pubblico;577,50;IVA - Liquidazione Fattura Nr. 170-E-2016  del 04/12/2016 (di cui Split per euro 577,50) - Servizi  ufficio turistico mese di novembre 2016 150 ore;515;1;3;2;15;999
PROMOCULTURA SOCIETA' COOPERATIVA A.R.L..;21/02/2017;Altre spese per contratti di servizio pubblico;2.625,00;Liquidazione Fattura Nr. 170-E-2016  del 04/12/2016 - Servizi  ufficio turistico mese di novembre 2016 150 ore;515;1;3;2;15;999
OPERA LABORATORI FIORENTINI S.P.A.;21/02/2017;Attrezzature n.a.c.;8.107,00; IVA Liquidazione Fattura Nr. 91/0P del 31/12/2016 - Fattura vendita Split Paym. PA;516;2;2;1;5;999
OPERA LABORATORI FIORENTINI S.P.A.;21/02/2017;Attrezzature n.a.c.;36.850,00;Liquidazione Fattura Nr. 91/0P del 31/12/2016 - Fattura vendita Split Paym. PA;516;2;2;1;5;999
PUBLICASA S.P.A.;21/02/2017;Organi istituzionali dell'amministrazione - Rimborsi ;2.706,94;RIMBORSO PERMESSI RETRIBUITI  FRUITI NEI MESI DA APRILE A SETTEMBRE 2016 DALL'ASSESSORE SARA IALLORENZI;521;1;3;2;1;2
STUDIO GRAZZINI;21/02/2017;Organi istituzionali dell'amministrazione - Rimborsi ;1.761,30;RIMBORSO PERMESSI RETRIBUITI  FRUITI NEI MESI DA APRILE A SETTEMBRE 2016 DALL'ASSESSORE DANIELE VANNI;521;1;3;2;1;2
SCUOLA MATERNA PARROCCHIALE DON SERGIO CIONI;21/02/2017;Trasferimenti correnti a Istituzioni Sociali Private ;5.425,94;FINANZIAMENTI PER CONTRIBUTI ALLE SCUOLE PARITARIE PRIVATE ANNO SCOLASTICO  2015- 2016 - IMPEGNO DI SPESA E LIQUIDAZIONE;524;1;4;4;1;1
SCUOLA MATERNA -SUOR GEMMA GALGANI- SUORE ORSOLINE DELLA SACRA FAMIGLIA;21/02/2017;Trasferimenti correnti a Istituzioni Sociali Private ;5.425,94;FINANZIAMENTI PER CONTRIBUTI ALLE SCUOLE PARITARIE PRIVATE ANNO SCOLASTICO  2015- 2016 - IMPEGNO DI SPESA E LIQUIDAZIONE;524;1;4;4;1;1
CIRCOLO RICREATIVO O. RISTORI;23/02/2017;Trasferimenti correnti a Istituzioni Sociali Private ;4.000,00;"CIRCOLO RICREATIVO ""O.RISTORI"" - RICHIESTA PATROCINIO PER LA SAGRA DELLA CHIOCCIOLA  E CONTRIBUTO PER L'ORGANIZZAZIONE DEGLI EVENTI COLLATERALI - CONCESSIONE";525;1;4;4;1;1
POSTE ITALIANE SPA SOCIETA' CON SOCIO UNICO;23/02/2017;Spese postali;5,18;Liquidazione Fattura Nr. 8717030215  del 06/02/2017 - Rimborso per CAN e CAD mese di dicembre 2016 - Rendiconto 2090867063;526;1;3;2;16;2
GIURATI TERESA;23/02/2017;Altri trasferimenti a famiglie n.a.c.;53,10;LIQUIDAZIONE UTENZE ANNO 2014 RELATIVE AD ALLACCIAMENTI LAMPADE PUBBLICHE SU CONTATORI PRIVATI.;527;1;4;2;5;999
ASSOCIAZIONE MONTALBANO DOMANI NO PROFIT;23/02/2017;Trasferimenti correnti a Istituzioni Sociali Private ;1.000,00;ASSOCIAZIONE MONTALBANO DOMANI - CONCESSIONE DEL CONTRIBUTO PER ATTIVIT� DI RIPULITURA SENTIERI ANNO 2016 - IMPEGNO DI SPESA;528;1;4;4;1;1
NARDIELLO GIUSEPPE;23/02/2017;Altri trasferimenti a famiglie n.a.c.;210,00;CONTRIBUTI PER RECUPERI AMBIENTALI DEL TERRITORIO - CONCESSIONE DEL CONTRIBUTO PER RIPRISTINO MURI A SECCO IN LOCALIT� TIGLIANO;529;1;4;2;5;999
FOTOCLUB VINCI;23/02/2017;Trasferimenti correnti a Istituzioni Sociali Private ;600,00;FOTOCLUB VINCI - CONCESSIONE DEL CONTRIBUTO PER ORGANIZZAZIONE CONCORSO FOTOGRAFICO;530;1;4;4;1;1
LABATE CARMELO;23/02/2017;Altri trasferimenti in conto capitale n.a.c. a Famiglie;672,67;RIMBORSO ONERI DI URBANIZZAZIONE PRIMARIA, SECONDARIA RELATIVI ALLA CONCESSIONE EDILIZIA IN SANATORIA N 10 DEL 28/07/2016  (PRATICA N 309/C/1986) - SIG. LABATE CARMELO;531;2;4;22;1;1
AMMINISTRATORI COMUNALI;24/02/2017;Organi istituzionali dell'amministrazione - indennit�;8.330,37;stipendio 02;532;1;3;2;1;1
PERSONALE DIPENDENTE SEDE;24/02/2017;Rimborso per viaggio e trasloco;130,21;stipendio 02;541;1;3;2;2;1
PREFETTURA DI FIRENZE;27/02/2017;Stampati specialistici;440,00;IMPEGNO DI SPESA PER ACQUISTO N. 1000 CARTE DI IDENTITA';651;1;3;1;2;14
ASSOCIAZIONE CULTURALE MUSICARTE;27/02/2017;Trasferimenti correnti a Istituzioni Sociali Private ;350,00;EROGAZIONE CONTRIBUTO  CONCERTO DEL 18/12/2016. DET.169 DEL 21/12/16 SETTORE V;652;1;4;4;1;1
GIALLOMARE MINIMAL TEATRO;27/02/2017;Trasferimenti correnti a Istituzioni Sociali Private ;20.000,00;"""MULTISCENA 2016"" - IMPEGNO DI SPESA PER VERSAMENTO QUOTA DI COFINANZIAMENTO ALL'ASSOCIAZIONE GIALLO MARE MINIMAL TEATRO, SOGGETTO ATTUATORE DEL PROGETTO-LIQUIDAZIONE DET.176 DEL 27/12/16 SETTORE V";652;1;4;4;1;1
A.N.A.C. - AUTORITA' NAZIONALE ANTICORRUZIONE;28/02/2017;Trasferimenti correnti a altre Amministrazioni Centrali n.a.c.;405,00;VERSAMENTO CONTRIBUTO A FAVORE DELL'ANAC (AUTORIT� NAZIONALE ANTICORRUZIONE) RELATIVO AL QUADRIMESTRE SETTEMBRE - DICEMBRE 2016;654;1;4;1;1;999
F.A.C.E.  SRL;01/03/2017;Altre prestazioni professionali e specialistiche n.a.c.;1.180,08;IVA - Liquidazione Fattura Nr. FatPAM 3  del 20/02/2017 - Rif. fase A det. 346 21-12-2016 cap. 1350 i. DS03346/1;656;1;3;2;11;999
F.A.C.E.  SRL;01/03/2017;Altre prestazioni professionali e specialistiche n.a.c.;5.363,98;Liquidazione Fattura Nr. FatPAM 3  del 20/02/2017 - Rif. fase A det. 346 21-12-2016 cap. 1350 i. DS03346/1;656;1;3;2;11;999
TAMBURINI  GIONNI;01/03/2017;Altre prestazioni professionali e specialistiche n.a.c.;300,00;"LIQUIDAZIONE FATTURA NR. FATTPA 22_16  DEL 15/11/2016 - AFFIDAMENTO DEL SERVIZIO PER LO SVOLGIMENTO DELLE ATTIVITA' DI ""MEDICO COMPETENTE"" AI SENSI DEL D.LGS. 81/2008 - ANNI 2015-2016.2017.";657;1;3;2;11;999
COMANDO PROVINCIALE VIGILI DEL FUOCO;01/03/2017;Altre spese per servizi amministrativi;200,00;CENTRO OPERATIVO COMUNALE - RINNOVO C.P.I. - VERSAMENTO VV.F.   ATTIVIT� N.37 CATEGORIA C  E  ATTIVIT� N.74 CATEGORIA  A;658;1;3;2;16;999
REGIONE TOSCANA CONTRIBUTI SISMICA - SERVIZIO TESORERIA;01/03/2017;Altre spese per servizi amministrativi;32,00;ADEGUAMENTO STRUTTURALE DELLA SCUOLA SIBILLA ALERAMO DI SPICCHIO _ PAGAMENTO BOLLI PER IL DEPOSITO DELLA  FINE DEI LAVORI AL GENIO CIVILE;658;1;3;2;16;999
CENTRO RIPARAZIONI AGRICOLE E GIARDINAGGIO DI PERUZZI FABIO;01/03/2017;Manutenzione ordinaria e riparazioni di mezzi di trasporto ad uso civile, di sicurezza e ordine pubblico;572,40;Liquidazione Fattura Nr. 000002-2016-PA  del 21/12/2016 - TAGLIANDO JOHN DEERE 6010 _ DET. N. 243/2016 A CONTRARRE E AFFIDAMENTO DITTA PERUZZI;659;1;3;2;9;1
CENTRO RIPARAZIONI AGRICOLE E GIARDINAGGIO DI PERUZZI FABIO;01/03/2017;Manutenzione ordinaria e riparazioni di mezzi di trasporto ad uso civile, di sicurezza e ordine pubblico;999,45;Liquidazione Fattura Nr. 000003-2016-PA  del 21/12/2016 - TAGLIANDO TERNA FAI SYNTH TER 892 _ DET. N. 325/2016 A CONTRARRE E AFFIDAMENTO DITTA PERUZZI;659;1;3;2;9;1
TOSCANA ENERGIA GREEN S.P.A.;01/03/2017;Trasferimenti correnti a altre imprese;332,95;IVA - Liquidazione Fattura Nr. VP0000062  del 31/12/2016 - Fornitura generica;660;1;4;3;99;999
TOSCANA ENERGIA GREEN S.P.A.;01/03/2017;Trasferimenti correnti a altre imprese;2.863,25;Liquidazione Fattura Nr. VP0000062  del 31/12/2016 - Fornitura generica;660;1;4;3;99;999
ARNO MANETTI ASCENSORI S.R.L.;02/03/2017;Manutenzione ordinaria e riparazioni di impianti e macchinari;62,70;IVA-Liquidazione Fattura Nr. 4169  del 14/12/2016 (di cui Split per euro 62,70) - Manut. imp. ascensore 4� trim. 2016 sedi istituzionali, scuole, Villa Reghini, RSA, Palasport per la parte istituzionale;723;1;3;2;9;4
ARNO MANETTI ASCENSORI S.R.L.;02/03/2017;Manutenzione ordinaria e riparazioni di impianti e macchinari;285,00;Liquidazione Fattura Nr. 4169  del 14/12/2016 - Manut. imp. ascensore 4� trim. 2016 sedi istituzionali, scuole, Villa Reghini, RSA, Palasport per la parte istituzionale;723;1;3;2;9;4
TAMBURINI  GIONNI;02/03/2017;Altre prestazioni professionali e specialistiche n.a.c.;982,00;"LIQUIDAZIONE FATTURA NR. FATTPA 33_16  DEL 16/12/2016 - AFFIDAMENTO DEL SERVIZIO PER LO SVOLGIMENTO DELLE ATTIVITA' DI ""MEDICO COMPETENTE"" AI SENSI DEL D.LGS. 81/2008 - ANNI 2015-2016.2017.";724;1;3;2;11;999
SCOTTI S.P.A.;02/03/2017;Manutenzione ordinaria e riparazioni di mezzi di trasporto ad uso civile, di sicurezza e ordine pubblico;104,72;IVA - Liquidazione Fattura Nr. 111/1  del 30/12/2016 - TAGLIANDO E RIPARAZIONE FIAT DOBLO' TARGATO DJ303DC _ DET. N. 306/2016 A CONTRARRE E AFFIDAMENTO DITTA SCOTTI S.P.A.;725;1;3;2;9;1
SCOTTI S.P.A.;02/03/2017;Manutenzione ordinaria e riparazioni di mezzi di trasporto ad uso civile, di sicurezza e ordine pubblico;476,01;Liquidazione Fattura Nr. 111/1  del 30/12/2016 - TAGLIANDO E RIPARAZIONE FIAT DOBLO' TARGATO DJ303DC _ DET. N. 306/2016 A CONTRARRE E AFFIDAMENTO DITTA SCOTTI S.P.A.;725;1;3;2;9;1
CENTRO RIPARAZIONI AGRICOLE E GIARDINAGGIO DI PERUZZI FABIO;02/03/2017;Manutenzione ordinaria e riparazioni di mezzi di trasporto ad uso civile, di sicurezza e ordine pubblico;497,57;Liquidazione Fattura Nr. 000001-2016-PA  del 21/12/2016 - Controllo e tagliando trattore Lamborghini;726;1;3;2;9;1
ARNO MANETTI ASCENSORI S.R.L.;02/03/2017;Manutenzione ordinaria e riparazioni di impianti e macchinari;20,35;IVA-Liquidazione Fattura Nr. 4169  del 14/12/2016 (di cui Split per euro 20,35) - Manut. imp. ascensore 4� trim. 2016 sedi istituzionali, scuole, Villa Reghini, RSA, Palasport per la parte istituzionale;727;1;3;2;9;4
ARNO MANETTI ASCENSORI S.R.L.;02/03/2017;Manutenzione ordinaria e riparazioni di impianti e macchinari;92,50;Liquidazione Fattura Nr. 4169  del 14/12/2016 - Manut. imp. ascensore 4� trim. 2016 sedi istituzionali, scuole, Villa Reghini, RSA, Palasport per la parte istituzionale;727;1;3;2;9;4
ARNO MANETTI ASCENSORI S.R.L.;02/03/2017;Manutenzione ordinaria e riparazioni di impianti e macchinari;30,53;IVA-Liquidazione Fattura Nr. 4169  del 14/12/2016 (di cui Split per euro 30,53) - Manut. imp. ascensore 4� trim. 2016 sedi istituzionali, scuole, Villa Reghini, RSA, Palasport per la parte istituzionale;728;1;3;2;9;4
ARNO MANETTI ASCENSORI S.R.L.;02/03/2017;Manutenzione ordinaria e riparazioni di impianti e macchinari;138,76;Liquidazione Fattura Nr. 4169  del 14/12/2016 - Manut. imp. ascensore 4� trim. 2016 sedi istituzionali, scuole, Villa Reghini, RSA, Palasport per la parte istituzionale;728;1;3;2;9;4
VETRERIA POLI FABRIZIO;02/03/2017;Manutenzione ordinaria e riparazioni di beni immobili;61,60;IVA - Liquidazione Fattura Nr. 11/PA  del 22/12/2016 (di cui Split per euro 61,60) - SOSTITUZIONE VETRI PRESSO LA SCUOLA SIBILLA ALERAMO DI SOVIGLIANA-VINCI _ DET. N. 255/2016 A CONTRARRE E AFFIDAMENTO DITTA VETRERIA POLI FABRIZIO;729;1;3;2;9;8
VETRERIA POLI FABRIZIO;02/03/2017;Manutenzione ordinaria e riparazioni di beni immobili;280,00;Liquidazione Fattura Nr. 11/PA  del 22/12/2016 - SOSTITUZIONE VETRI PRESSO LA SCUOLA SIBILLA ALERAMO DI SOVIGLIANA-VINCI _ DET. N. 255/2016 A CONTRARRE E AFFIDAMENTO DITTA VETRERIA POLI FABRIZIO;729;1;3;2;9;8
ARNO MANETTI ASCENSORI S.R.L.;02/03/2017;Manutenzione ordinaria e riparazioni di impianti e macchinari;30,52;IVA-Liquidazione Fattura Nr. 4169  del 14/12/2016 (di cui Split per euro 30,52) - Manut. imp. ascensore 4� trim. 2016 sedi istituzionali, scuole, Villa Reghini, RSA, Palasport per la parte istituzionale;730;1;3;2;9;4
ARNO MANETTI ASCENSORI S.R.L.;02/03/2017;Manutenzione ordinaria e riparazioni di impianti e macchinari;138,74;Liquidazione Fattura Nr. 4169  del 14/12/2016 - Manut. imp. ascensore 4� trim. 2016 sedi istituzionali, scuole, Villa Reghini, RSA, Palasport per la parte istituzionale;730;1;3;2;9;4
ARNO MANETTI ASCENSORI S.R.L.;02/03/2017;Manutenzione ordinaria e riparazioni di impianti e macchinari;61,05;IVA-Liquidazione Fattura Nr. 4170  del 14/12/2016 - Manut. imp. ascensore Museo, Casa Natale, Palazzina, Nido, Palasport per il 60% uso extrascolastico;731;1;3;2;9;4
ARNO MANETTI ASCENSORI S.R.L.;02/03/2017;Manutenzione ordinaria e riparazioni di impianti e macchinari;277,50;Liquidazione Fattura Nr. 4170  del 14/12/2016 - Manut. imp. ascensore Museo, Casa Natale, Palazzina, Nido, Palasport per il 60% uso extrascolastico;731;1;3;2;9;4
ARNO MANETTI ASCENSORI S.R.L.;02/03/2017;Manutenzione ordinaria e riparazioni di impianti e macchinari;14,74;IVA-Liquidazione Fattura Nr. 4169  del 14/12/2016 (di cui Split per euro 14,74) - Manut. imp. ascensore 4� trim. 2016 sedi istituzionali, scuole, Villa Reghini, RSA, Palasport per la parte istituzionale;732;1;3;2;9;4
ARNO MANETTI ASCENSORI S.R.L.;02/03/2017;Manutenzione ordinaria e riparazioni di impianti e macchinari;22,11;IVA-Liquidazione Fattura Nr. 4170  del 14/12/2016 - Manut. imp. ascensore Museo, Casa Natale, Palazzina, Nido, Palasport per il 60% uso extrascolastico;732;1;3;2;9;4
ARNO MANETTI ASCENSORI S.R.L.;02/03/2017;Manutenzione ordinaria e riparazioni di impianti e macchinari;67,00;Liquidazione Fattura Nr. 4169  del 14/12/2016 - Manut. imp. ascensore 4� trim. 2016 sedi istituzionali, scuole, Villa Reghini, RSA, Palasport per la parte istituzionale;732;1;3;2;9;4
ARNO MANETTI ASCENSORI S.R.L.;02/03/2017;Manutenzione ordinaria e riparazioni di impianti e macchinari;100,50;Liquidazione Fattura Nr. 4170  del 14/12/2016 - Manut. imp. ascensore Museo, Casa Natale, Palazzina, Nido, Palasport per il 60% uso extrascolastico;732;1;3;2;9;4
PAGANELLI GARGANI LECCI  S.A.S.;02/03/2017;Manutenzione ordinaria e riparazioni di beni immobili;188,75;IVA-Liquidazione Fattura Nr. 000005-2016-FAEL  del 12/12/2016 (di cui Split per euro 188,75) - PULIZIA CADITOIE E POZZETTI STRADALI-AFFIDAMENTO DITTA PAGANELLI, GARGANI, LECCI SAS;733;1;3;2;9;8
PAGANELLI GARGANI LECCI  S.A.S.;02/03/2017;Manutenzione ordinaria e riparazioni di beni immobili;1.887,50;Liquidazione Fattura Nr. 000005-2016-FAEL  del 12/12/2016 - PULIZIA CADITOIE E POZZETTI STRADALI-AFFIDAMENTO DITTA PAGANELLI, GARGANI, LECCI SAS;733;1;3;2;9;8
V.A.B. VIGILANZA ANTINCENDI BOSCHIVI    A FAVORE SEZIONE DI CAPRAIA E LIMITE;02/03/2017;Altri servizi diversi n.a.c.;6.000,00;LIQUIDAZ. FAT. NR. FATTPA 16_16  DEL 21/12/2016 - SERVIZIO DI ATTIVIT� INTEGRATIVE E DI SUPPORTO A SERVIZI DI PUBBLICO INTERESSE. AFFIDAMENTO. NB: il codice fornitore � errato, quello corretto � il  5369 VAB Sez. di Vinci - l'IBAN � giusto.;734;1;3;2;99;999
COOPERATIVA SOCIALE MIMOSA ONLUS;02/03/2017;Manutenzione ordinaria e riparazioni di beni immobili;589,78;IVA Liquidazione Fattura Nr. 000020-2016-FE  del 30/11/2016 (di cui Split per euro 589,78) - AFFIDAMENTO DIRETTO AI SENSI DELL'ART. 36 D.LGS. 50/2011 IN APPALTO DEL SERVIZIO DI PULIZIA DEL VERDE PUBBLICO  DAL 12/09/2016 AL 12/03/2017;735;1;3;2;9;8
COOPERATIVA SOCIALE MIMOSA ONLUS;02/03/2017;Manutenzione ordinaria e riparazioni di beni immobili;353,87;IVA Liquidazione Fattura Nr. 000022-2016-FE  del 31/12/2016 - MANUTENZIONE ORDINARIA E PULIZIA AREE VERDI NELLE FRAZIONI DI SOVIGLIANA E SPICCHIO;735;1;3;2;9;8
COOPERATIVA SOCIALE MIMOSA ONLUS;02/03/2017;Manutenzione ordinaria e riparazioni di beni immobili;2.680,84;Liquidazione Fattura Nr. 000020-2016-FE  del 30/11/2016 - AFFIDAMENTO DIRETTO AI SENSI DELL'ART. 36 D.LGS. 50/2011 IN APPALTO DEL SERVIZIO DI PULIZIA DEL VERDE PUBBLICO  DAL 12/09/2016 AL 12/03/2017;735;1;3;2;9;8
COOPERATIVA SOCIALE MIMOSA ONLUS;02/03/2017;Manutenzione ordinaria e riparazioni di beni immobili;1.608,51;Liquidazione Fattura Nr. 000022-2016-FE  del 31/12/2016 - MANUTENZIONE ORDINARIA E PULIZIA AREE VERDI NELLE FRAZIONI DI SOVIGLIANA E SPICCHIO;735;1;3;2;9;8
COOPERATIVA SOCIALE MIMOSA ONLUS;02/03/2017;Manutenzione ordinaria e riparazioni di beni immobili;589,78;IVA Liquidazione Fattura Nr. 000001-2017-FE  del 31/01/2017 - SERVIZI MANUTENZIONE ORDINARIA E PULIZIA AREE A VERDE SOVIGLIANA E SPICCHIO;736;1;3;2;9;8
COOPERATIVA SOCIALE MIMOSA ONLUS;02/03/2017;Manutenzione ordinaria e riparazioni di beni immobili;235,91;IVA Liquidazione Fattura Nr. 000022-2016-FE  del 31/12/2016 - MANUTENZIONE ORDINARIA E PULIZIA AREE VERDI NELLE FRAZIONI DI SOVIGLIANA E SPICCHIO;736;1;3;2;9;8
COOPERATIVA SOCIALE MIMOSA ONLUS;02/03/2017;Manutenzione ordinaria e riparazioni di beni immobili;2.680,84;Liquidazione Fattura Nr. 000001-2017-FE  del 31/01/2017 - SERVIZI MANUTENZIONE ORDINARIA E PULIZIA AREE A VERDE SOVIGLIANA E SPICCHIO;736;1;3;2;9;8
COOPERATIVA SOCIALE MIMOSA ONLUS;02/03/2017;Manutenzione ordinaria e riparazioni di beni immobili;1.072,33;Liquidazione Fattura Nr. 000022-2016-FE  del 31/12/2016 - MANUTENZIONE ORDINARIA E PULIZIA AREE VERDI NELLE FRAZIONI DI SOVIGLIANA E SPICCHIO;736;1;3;2;9;8
ARNO MANETTI ASCENSORI S.R.L.;02/03/2017;Manutenzione ordinaria e riparazioni di impianti e macchinari;20,35;IVA-Liquidazione Fattura Nr. 4170  del 14/12/2016 - Manut. imp. ascensore Museo, Casa Natale, Palazzina, Nido, Palasport per il 60% uso extrascolastico;737;1;3;2;9;4
ARNO MANETTI ASCENSORI S.R.L.;02/03/2017;Manutenzione ordinaria e riparazioni di impianti e macchinari;92,50;Liquidazione Fattura Nr. 4170  del 14/12/2016 - Manut. imp. ascensore Museo, Casa Natale, Palazzina, Nido, Palasport per il 60% uso extrascolastico;737;1;3;2;9;4
ARNO MANETTI ASCENSORI S.R.L.;02/03/2017;Manutenzione ordinaria e riparazioni di impianti e macchinari;20,35;IVA-Liquidazione Fattura Nr. 4169  del 14/12/2016 (di cui Split per euro 20,35) - Manut. imp. ascensore 4� trim. 2016 sedi istituzionali, scuole, Villa Reghini, RSA, Palasport per la parte istituzionale;738;1;3;2;9;4
ARNO MANETTI ASCENSORI S.R.L.;02/03/2017;Manutenzione ordinaria e riparazioni di impianti e macchinari;92,50;Liquidazione Fattura Nr. 4169  del 14/12/2016 - Manut. imp. ascensore 4� trim. 2016 sedi istituzionali, scuole, Villa Reghini, RSA, Palasport per la parte istituzionale;738;1;3;2;9;4
ARNO MANETTI ASCENSORI S.R.L.;02/03/2017;Manutenzione ordinaria e riparazioni di impianti e macchinari;20,35;IVA-Liquidazione Fattura Nr. 4169  del 14/12/2016 (di cui Split per euro 20,35) - Manut. imp. ascensore 4� trim. 2016 sedi istituzionali, scuole, Villa Reghini, RSA, Palasport per la parte istituzionale;739;1;3;2;9;4
ARNO MANETTI ASCENSORI S.R.L.;02/03/2017;Manutenzione ordinaria e riparazioni di impianti e macchinari;92,50;Liquidazione Fattura Nr. 4169  del 14/12/2016 - Manut. imp. ascensore 4� trim. 2016 sedi istituzionali, scuole, Villa Reghini, RSA, Palasport per la parte istituzionale;739;1;3;2;9;4
GERARDO MANCINI LAVORAZIONE IN FERRO;02/03/2017;Fabbricati ad uso scolastico;209,00;IVA - Liquidazione Fattura Nr. 06  del 28/12/2016 - FORNITURA CANCELLO E PROFILI TUBOLARI _ DET. N.159/2016 A CONTRARRE E AFFIDAMENTO DITTA MANCINI GERARDO ;740;2;2;1;9;3
GERARDO MANCINI LAVORAZIONE IN FERRO;02/03/2017;Fabbricati ad uso scolastico;950,00;Liquidazione Fattura Nr. 06  del 28/12/2016 - FORNITURA CANCELLO E PROFILI TUBOLARI _ DET. N.159/2016 A CONTRARRE E AFFIDAMENTO DITTA MANCINI GERARDO ;740;2;2;1;9;3
COOPERATIVA SOCIALE ZOE S.C.A.R.L.;02/03/2017;Musei, teatri e biblioteche di valore culturale, storico ed artistico;1.191,70;Liquidazione Fattura Nr. FATTPA 270_16  del 30/12/2016 - INTERVENTO DI PULIZIA AL MUSEO LEONARDIANO _ DET. N. 326/2016 A CONTRARRE E AFFIDAMENTO COOP. SOC. ZOE S.C.R.L.;741;2;2;1;10;8
VESCOVI RENZO S.P.A.;02/03/2017;Infrastrutture stradali;3.606,56;IVA - Liquidazione Fattura Nr. 1/10  del 13/01/2017 (di cui Split per euro 3.606,56) - MANUTENZIONE STRADE 2016;742;2;2;1;9;12
VESCOVI RENZO S.P.A.;02/03/2017;Infrastrutture stradali;16.393,44;Liquidazione Fattura Nr. 1/10  del 13/01/2017 - PROCEDURA NEGOZIATA SENZA PREVIA PUBBLICAZIONE DI BANDO DI GARA AI SENSI DELL'ART. 122 COMMA 7 D.LGS. 163/2006  SVOLTA CON MODALIT� TELEMATICA PER L'APPALTO DEI LAVORI DI MANUTENZIONE STRAORDI;742;2;2;1;9;12
VESCOVI RENZO S.P.A.;02/03/2017;Infrastrutture stradali;7.182,90;IVA - Liquidazione Fattura Nr. 1/10  del 13/01/2017 (di cui Split per euro 7.182,90) MANUTENZIONE STRADE 2016;743;2;2;1;9;12
VESCOVI RENZO S.P.A.;02/03/2017;Infrastrutture stradali;32.649,56;Liquidazione Fattura Nr. 1/10  del 13/01/2017 - MANUTENZIONE STRADE 2016;743;2;2;1;9;12
AGBEZOUHLON GNAMIEN PELAGIE;03/03/2017;Altri trasferimenti a famiglie n.a.c.;36,00;PACCHETTO SCUOLA A.S. 2015/2016 (N'GUESSAN KONAN WLEHNQBI);744;1;4;2;5;999
AGBEZOUHLON GNAMIEN PELAGIE;03/03/2017;Altri trasferimenti a famiglie n.a.c.;51,00;PACCHETTO SCUOLA A.S. 2015/2016 (N'GUESSAN KOUAKOU HOKA);745;1;4;2;5;999
AGBEZOUHLON GNAMIEN PELAGIE;03/03/2017;Altri trasferimenti a famiglie n.a.c.;45,00;PACCHETTO SCUOLA A.S. 2015/2016 (N'GUESSAN YAO VYHA);746;1;4;2;5;999
AGBEZOUHLON GNAMIEN PELAGIE;03/03/2017;Altri trasferimenti a famiglie n.a.c.;45,00;PACCHETTO SCUOLA A.S. 2015/2016 (N'GUESSAN KOUASSI SAHNIAN);747;1;4;2;5;999
ALLUSHI FLUTRA;03/03/2017;Altri trasferimenti a famiglie n.a.c.;36,00;PACCHETTO SCUOLA A.S. 2015/2016 (ALLUSHI KJARA);748;1;4;2;5;999
ALLUSHI FLUTRA;03/03/2017;Altri trasferimenti a famiglie n.a.c.;36,00;PACCHETTO SCUOLA A.S. 2015/2016 (ALLUSHI ENGLI;749;1;4;2;5;999
ANTOCI IOSIF;03/03/2017;Altri trasferimenti a famiglie n.a.c.;57,00;PACCHETTO SCUOLA A.S. 2015/2016 (ANTOCI LORIN ANDREI);750;1;4;2;5;999
ANTOCI IOSIF;03/03/2017;Altri trasferimenti a famiglie n.a.c.;51,00;PACCHETTO SCUOLA A.S. 2015/2016 (ANTOCI ADINA CATALINA);751;1;4;2;5;999
ANTOCI IOSIF;03/03/2017;Altri trasferimenti a famiglie n.a.c.;45,00;PACCHETTO SCUOLA A.S. 2015/2016 (ANTOCI ELIZA ANDREIA);752;1;4;2;5;999
APRILE GAETANO;03/03/2017;Altri trasferimenti a famiglie n.a.c.;36,00;PACCHETTO SCUOLA A.S. 2015/2016 (APRILE LUIGI);753;1;4;2;5;999
APRILE GAETANO;03/03/2017;Altri trasferimenti a famiglie n.a.c.;36,00;PACCHETTO SCUOLA A.S. 2015/2016 (APRILE AURORA);754;1;4;2;5;999
BADULESCU GHEORGHE;03/03/2017;Altri trasferimenti a famiglie n.a.c.;36,00;PACCHETTO SCUOLA A.S. 2015/2016 (BADULESCU ALEXIA MARIA);755;1;4;2;5;999
BADULESCU GHEORGHE;03/03/2017;Altri trasferimenti a famiglie n.a.c.;51,00;PACCHETTO SCUOLA A.S. 2015/2016 (BADULESCU FLORIN LUIS);756;1;4;2;5;999
BARBIERI JESSICA;03/03/2017;Altri trasferimenti a famiglie n.a.c.;63,00;PACCHETTO SCUOLA A.S. 2015/2016 (NANNETTI MIRKO);757;1;4;2;5;999
BARBIERI JESSICA;03/03/2017;Altri trasferimenti a famiglie n.a.c.;36,00;PACCHETTO SCUOLA A.S. 2015/2016 (NANNETTI EVA);758;1;4;2;5;999
BELAZIZ ABDELFATAH;03/03/2017;Altri trasferimenti a famiglie n.a.c.;36,00;PACCHETTO SCUOLA A.S. 2015/2016 (BELAZIZ RAYAN);759;1;4;2;5;999
BELLASALMA ANNAMARIA;03/03/2017;Altri trasferimenti a famiglie n.a.c.;36,00;PACCHETTO SCUOLA A.S. 2015/2016 (BELLASALMA GABRIELE);760;1;4;2;5;999
BENJEM PHILO;03/03/2017;Altri trasferimenti a famiglie n.a.c.;36,00;PACCHETTO SCUOLA A.S. 2015/2016 (BENJEM SUCCESS OSAWESE);761;1;4;2;5;999
BENJEM PHILO;03/03/2017;Altri trasferimenti a famiglie n.a.c.;36,00;PACCHETTO SCUOLA A.S. 2015/2016 (BENJEM PRECIOUS OSAHENBUMWEN);762;1;4;2;5;999
BERCHIELLI ALBA;03/03/2017;Altri trasferimenti a famiglie n.a.c.;84,00;PACCHETTO SCUOLA A.S. 2015/2016 (BERTELLI REBECCA);763;1;4;2;5;999
BERCHIELLI ALBA;03/03/2017;Altri trasferimenti a famiglie n.a.c.;196,00;PACCHETTO SCUOLA A.S. 2015/2016 (BERTELLI STEFANO);764;1;4;2;5;999
BONI PAMELA;03/03/2017;Altri trasferimenti a famiglie n.a.c.;36,00;PACCHETTO SCUOLA A.S. 2015/2016 (STEFANACCI CHIARA);765;1;4;2;5;999
BONI PAMELA;03/03/2017;Altri trasferimenti a famiglie n.a.c.;63,00;PACCHETTO SCUOLA A.S. 2015/2016 (STEFANACCI SARA);766;1;4;2;5;999
BONUCCI VALENTINA;03/03/2017;Altri trasferimenti a famiglie n.a.c.;84,00;PACCHETTO SCUOLA A.S. 2015/2016 (MIGLIORINI UGO);767;1;4;2;5;999
BONUCCI VALENTINA;03/03/2017;Altri trasferimenti a famiglie n.a.c.;46,00;PACCHETTO SCUOLA A.S. 2015/2016 (MIGLIORINI BIANCA);768;1;4;2;5;999
CACCAVALE TOMMASINA;03/03/2017;Altri trasferimenti a famiglie n.a.c.;36,00;PACCHETTO SCUOLA A.S. 2015/2016 (GIALONE CAROLINA PIA);769;1;4;2;5;999
CAMPONE ROSA;03/03/2017;Altri trasferimenti a famiglie n.a.c.;84,00;PACCHETTO SCUOLA A.S. 2015/2016 (DIOP AMISSA);770;1;4;2;5;999
CAPOANO MARGHERITA;03/03/2017;Altri trasferimenti a famiglie n.a.c.;45,00;PACCHETTO SCUOLA A.S. 2015/2016 (FIORE GIOVANNI);771;1;4;2;5;999
CAPOANO MARGHERITA;03/03/2017;Altri trasferimenti a famiglie n.a.c.;36,00;PACCHETTO SCUOLA A.S. 2015/2016 (FIORE LUDOVICA);772;1;4;2;5;999
COLABELLA VALENTINA;03/03/2017;Altri trasferimenti a famiglie n.a.c.;36,00;PACCHETTO SCUOLA A.S. 2015/2016 (GRECO MARISOL);773;1;4;2;5;999
COLABELLA VALENTINA;03/03/2017;Altri trasferimenti a famiglie n.a.c.;36,00;PACCHETTO SCUOLA A.S. 2015/2016 (GRECO DENIS HELEN);774;1;4;2;5;999
CORASCO QUINO HILDA CIRILA;03/03/2017;Altri trasferimenti a famiglie n.a.c.;45,00;PACCHETTO SCUOLA A.S. 2015/2016 (PONCE CORASCO GUILLERMO MIGUEL);775;1;4;2;5;999
CRUZ ZALDY MENDOZA;03/03/2017;Altri trasferimenti a famiglie n.a.c.;36,00;PACCHETTO SCUOLA A.S. 2015/2016 (CRUZ BRANDON MAMINTA);776;1;4;2;5;999
CULLAJ ROZETA;03/03/2017;Altri trasferimenti a famiglie n.a.c.;36,00;PACCHETTO SCUOLA A.S. 2015/2016 (CULLHAJ KLEA);777;1;4;2;5;999
CULLHAJ MARJANA;03/03/2017;Altri trasferimenti a famiglie n.a.c.;72,00;PAGAMENTO PACCHETTO SCUOLA A.S.2015/2016 (CULLAHAJ KLEDIAN- LORENZO);778;1;4;2;5;999
CULLHAJ ROZETA;03/03/2017;Altri trasferimenti a famiglie n.a.c.;36,00;PACCHETTO SCUOLA A.S. 2015/2016 (CULLHAJ JESSICA);779;1;4;2;5;999
CULLHAJ ROZETA;03/03/2017;Altri trasferimenti a famiglie n.a.c.;45,00;PACCHETTO SCUOLA A.S. 2015/2016 (CULLHAJ ERIS);780;1;4;2;5;999
DI DONNA ANNUNZIATA;03/03/2017;Altri trasferimenti a famiglie n.a.c.;63,00;PACCHETTO SCUOLA A.S. 2015/2016 (ASCIONE DIANA);781;1;4;2;5;999
DI DONNA ANNUNZIATA;03/03/2017;Altri trasferimenti a famiglie n.a.c.;51,00;PACCHETTO SCUOLA A.S. 2015/2016 (ASCIONE ANNAMARIA);782;1;4;2;5;999
DI DONNA ANNUNZIATA;03/03/2017;Altri trasferimenti a famiglie n.a.c.;36,00;PACCHETTO SCUOLA A.S. 2015/2016 (ASCIONE EMANUELA);783;1;4;2;5;999
DI MICHELE PAOLA;03/03/2017;Altri trasferimenti a famiglie n.a.c.;36,00;PACCHETTO SCUOLA A.S. 2015/2016 (BONGIOVANNI CHIARAA);784;1;4;2;5;999
DINU VALENTINA;03/03/2017;Altri trasferimenti a famiglie n.a.c.;36,00;PACCHETTO SCUOLA A.S. 2015/2016 (DINU LUCA GABRIEL);785;1;4;2;5;999
EZZAHIDY  ZOHRA;03/03/2017;Altri trasferimenti a famiglie n.a.c.;57,00;PACCHETTO SCUOLA A.S. 2015/2016 (TABET ZAKARIA);786;1;4;2;5;999
EZZAHIDY  ZOHRA;03/03/2017;Altri trasferimenti a famiglie n.a.c.;57,00;PACCHETTO SCUOLA A.S. 2015/2016 (TABET MERIEM;787;1;4;2;5;999
FALCO GIUSEPPE;03/03/2017;Altri trasferimenti a famiglie n.a.c.;57,00;PACCHETTO SCUOLA A.S. 2015/2016 (FALCO FEDERICA);788;1;4;2;5;999
FALCO GIUSEPPE;03/03/2017;Altri trasferimenti a famiglie n.a.c.;57,00;PACCHETTO SCUOLA A.S. 2015/2016 (FALCO CAMILLA);789;1;4;2;5;999
FOGHI NATASCIA;03/03/2017;Altri trasferimenti a famiglie n.a.c.;84,00;PACCHETTO SCUOLA A.S. 2015/2016 (MAZZEI GIOELE LIBERO);790;1;4;2;5;999
GAGGIOLI ROBERTO;03/03/2017;Altri trasferimenti a famiglie n.a.c.;36,00;PACCHETTO SCUOLA A.S. 2015/2016 (GAGGIOLI LUCIANO);791;1;4;2;5;999
GANA SULTANA;03/03/2017;Altri trasferimenti a famiglie n.a.c.;57,00;PACCHETTO SCUOLA A.S. 2015/2016 (BENANI AHMED);792;1;4;2;5;999
GELLI SONIA;03/03/2017;Altri trasferimenti a famiglie n.a.c.;84,00;PACCHETTO SCUOLA A.S. 2015/2016 (CAUCCI ALESSIO);793;1;4;2;5;999
GIOVANNONI PATRIZIA;03/03/2017;Altri trasferimenti a famiglie n.a.c.;45,00;PACCHETTO SCUOLA A.S. 2015/2016 (VIGNOZZI SARA);794;1;4;2;5;999
GJONI PJETER;03/03/2017;Altri trasferimenti a famiglie n.a.c.;36,00;PACCHETTO SCUOLA A.S. 2015/2016 (GJONI KEVIN);795;1;4;2;5;999
GUO SUGUANG;03/03/2017;Altri trasferimenti a famiglie n.a.c.;45,00;PACCHETTO SCUOLA A.S. 2015/2016 (GUO MICHELA);796;1;4;2;5;999
INNOCENTI FABRIZIO;03/03/2017;Altri trasferimenti a famiglie n.a.c.;84,00;PACCHETTO SCUOLA A.S. 2015/2016 (INNOENTI DANIELE);797;1;4;2;5;999
KADIJA PRANDVERA;03/03/2017;Altri trasferimenti a famiglie n.a.c.;36,00;PACCHETTO SCUOLA A.S. 2015/2016 (KADIJA JURGEN);798;1;4;2;5;999
KADRIA BURHAN;03/03/2017;Altri trasferimenti a famiglie n.a.c.;36,00;PACCHETTO SCUOLA A.S. 2015/2016 (KADRIA LEANDRO );799;1;4;2;5;999
KADRIA BURHAN;03/03/2017;Altri trasferimenti a famiglie n.a.c.;63,00;PACCHETTO SCUOLA A.S. 2015/2016 (KADRIA ERGISA);800;1;4;2;5;999
KARAFILI BLERINA;03/03/2017;Altri trasferimenti a famiglie n.a.c.;36,00;PACCHETTO SCUOLA A.S. 2015/2016 (KARAFILI KLARA);801;1;4;2;5;999
KAZAZI NASIPE;03/03/2017;Altri trasferimenti a famiglie n.a.c.;36,00;PACCHETTO SCUOLA A.S. 2015/2016 (KAZAZI MELISA);802;1;4;2;5;999
LOCONTE IRENE;03/03/2017;Altri trasferimenti a famiglie n.a.c.;36,00;PACCHETTO SCUOLA A.S. 2015/2016 (LOCONTE FRIDA);803;1;4;2;5;999
LOPARDO RAFFAELLA;03/03/2017;Altri trasferimenti a famiglie n.a.c.;84,00;PACCHETTO SCUOLA A.S. 2015/2016 (DA NAZARET ALESSANDRO);804;1;4;2;5;999
LUCCHESI GIULIA;03/03/2017;Altri trasferimenti a famiglie n.a.c.;84,00;PACCHETTO SCUOLA A.S. 2015/2016 (MELINO MARTINA);805;1;4;2;5;999
LUSCHI ANDREA;03/03/2017;Altri trasferimenti a famiglie n.a.c.;84,00;PACCHETTO SCUOLA A.S. 2015/2016 (LUSCHI ELENA);806;1;4;2;5;999
LUSCHI ANDREA;03/03/2017;Altri trasferimenti a famiglie n.a.c.;84,00;PACCHETTO SCUOLA A.S. 2015/2016 (LUSCHI CRISTINA);807;1;4;2;5;999
MANZARI IMMACOLATA;03/03/2017;Altri trasferimenti a famiglie n.a.c.;84,00;PACCHETTO SCUOLA A.S. 2015/2016 (MORI LEONARDO);808;1;4;2;5;999
MARFIA BENEDETTA MARIA CARMELINA;03/03/2017;Altri trasferimenti a famiglie n.a.c.;84,00;PACCHETTO SCUOLA A.S. 2015/2016 (LA BARBERA GIOELE);809;1;4;2;5;999
MARKJA MERIBANE;03/03/2017;Altri trasferimenti a famiglie n.a.c.;57,00;PACCHETTO SCUOLA A.S. 2015/2016 (MARKJA ORGES);810;1;4;2;5;999
MASCIOPINTO ANNA;03/03/2017;Altri trasferimenti a famiglie n.a.c.;84,00;PACCHETTO SCUOLA A.S. 2015/2016 (GIULIANI VALENTINA);811;1;4;2;5;999
MASTROMATTEI MARIA ASSUNTA;03/03/2017;Altri trasferimenti a famiglie n.a.c.;84,00;PACCHETTO SCUOLA A.S. 2015/2016 (CHIAPPINIELLO GENNARO);812;1;4;2;5;999
MAZZONI VITTORIO;03/03/2017;Altri trasferimenti a famiglie n.a.c.;147,00;PACCHETTO SCUOLA A.S. 2015/2016 (MAZZONI MATTIA);813;1;4;2;5;999
MAZZONI VITTORIO;03/03/2017;Altri trasferimenti a famiglie n.a.c.;84,00;PACCHETTO SCUOLA A.S. 2015/2016 (MAZZONI SOFIA);814;1;4;2;5;999
MECACCI KATIA;03/03/2017;Altri trasferimenti a famiglie n.a.c.;105,00;PACCHETTO SCUOLA A.S. 2015/2016 (BERNARDI DENISE);815;1;4;2;5;999
MEZGUI HOUDA;03/03/2017;Altri trasferimenti a famiglie n.a.c.;51,00;PACCHETTO SCUOLA A.S. 2015/2016 (KAMAL ILYASS);816;1;4;2;5;999
MEZGUI HOUDA;03/03/2017;Altri trasferimenti a famiglie n.a.c.;36,00;PACCHETTO SCUOLA A.S. 2015/2016 (KAMAL DOHA;817;1;4;2;5;999
MEZLINI TAHAR;03/03/2017;Altri trasferimenti a famiglie n.a.c.;84,00;PACCHETTO SCUOLA A.S. 2015/2016 (MEZLINI NADIA);818;1;4;2;5;999
MONTELEONE GIOVANNA;03/03/2017;Altri trasferimenti a famiglie n.a.c.;63,00;PACCHETTO SCUOLA A.S. 2015/2016 (GUGINO MANUEL);819;1;4;2;5;999
MONTELEONE GIOVANNA;03/03/2017;Altri trasferimenti a famiglie n.a.c.;36,00;PACCHETTO SCUOLA A.S. 2015/2016 (GUGINO IVONNE);820;1;4;2;5;999
MUGRI LAURA;03/03/2017;Altri trasferimenti a famiglie n.a.c.;57,00;PACCHETTO SCUOLA A.S. 2015/2016 (FALCIATI AMANDA);821;1;4;2;5;999
MUGRI LAURA;03/03/2017;Altri trasferimenti a famiglie n.a.c.;36,00;PACCHETTO SCUOLA A.S. 2015/2016 (GIORDANO TOMMASO);822;1;4;2;5;999
NACUCCHIO ANNA;03/03/2017;Altri trasferimenti a famiglie n.a.c.;84,00;PACCHETTO SCUOLA A.S. 2015/2016 (NOVELLINO PANCRAZIO);823;1;4;2;5;999
NACUCCHIO ANNA;03/03/2017;Altri trasferimenti a famiglie n.a.c.;36,00;PACCHETTO SCUOLA A.S. 2015/2016 (NOVELLINO MARTINA);824;1;4;2;5;999
NEZI LUCIANA;03/03/2017;Altri trasferimenti a famiglie n.a.c.;84,00;PACCHETTO SCUOLA A.S. 2015/2016 (VEGLIA ILARIA);825;1;4;2;5;999
NEZI LUCIANA;03/03/2017;Altri trasferimenti a famiglie n.a.c.;57,00;PACCHETTO SCUOLA A.S. 2015/2016 (VEGLIA MARIA TERESA);826;1;4;2;5;999
NEZI LUCIANA;03/03/2017;Altri trasferimenti a famiglie n.a.c.;57,00;PACCHETTO SCUOLA A.S. 2015/2016 (VEGLIA CARLO);827;1;4;2;5;999
NGUEMEZI KENGUE FRANCOISE;03/03/2017;Altri trasferimenti a famiglie n.a.c.;84,00;PACCHETTO SCUOLA A.S. 2015/2016 (TAMEZE KENGNI ROONEY);828;1;4;2;5;999
NGUEMEZI KENGUE FRANCOISE;03/03/2017;Altri trasferimenti a famiglie n.a.c.;133,00;PACCHETTO SCUOLA A.S. 2015/2016 (TAMEZE KENGNI CLARISSE);829;1;4;2;5;999
OSA RIVERA NELTIS;03/03/2017;Altri trasferimenti a famiglie n.a.c.;45,00;PACCHETTO SCUOLA A.S. 2015/2016 (MICHELI ALESSANDRO);830;1;4;2;5;999
OUAZINE SAMIRA;03/03/2017;Altri trasferimenti a famiglie n.a.c.;36,00;PACCHETTO SCUOLA A.S. 2015/2016 (MIFTAH MEHDI);831;1;4;2;5;999
OUAZINE SAMIRA;03/03/2017;Altri trasferimenti a famiglie n.a.c.;63,00;PACCHETTO SCUOLA A.S. 2015/2016 (MIFTAH RIHAB);832;1;4;2;5;999
PAOLINI CATIA;03/03/2017;Altri trasferimenti a famiglie n.a.c.;63,00;PAGAMENTO PACCHETTO SCUOLA A.S.2015/2016.(ARETINI TOMMASO);833;1;4;2;5;999
PAOLINI CATIA;03/03/2017;Altri trasferimenti a famiglie n.a.c.;45,00;PAGAMENTO PACCHETTO SCUOLA A.S.2015/2016. (ARETINI ASIA);834;1;4;2;5;999
PASQUINUCCI SIMONA;03/03/2017;Altri trasferimenti a famiglie n.a.c.;45,00;PACCHETTO SCUOLA A.S. 2015/2016 (MAGAGNINO ELIA);835;1;4;2;5;999
PASQUINUCCI SIMONA;03/03/2017;Altri trasferimenti a famiglie n.a.c.;36,00;PACCHETTO SCUOLA A.S. 2015/2016 (MAGAGNINO SUSANNA);836;1;4;2;5;999
RAFIE EL HASSANE;03/03/2017;Altri trasferimenti a famiglie n.a.c.;45,00;PACCHETTO SCUOLA A.S. 2015/2016 (RAFIE HASNAA);837;1;4;2;5;999
RAFIE EL HASSANE;03/03/2017;Altri trasferimenti a famiglie n.a.c.;36,00;PACCHETTO SCUOLA A.S. 2015/2016 (RAFIE ABDELILAH);838;1;4;2;5;999
RAFIE EL HASSANE;03/03/2017;Altri trasferimenti a famiglie n.a.c.;63,00;PACCHETTO SCUOLA A.S. 2015/2016 (RAFIE MOHAMED);839;1;4;2;5;999
RAHULIA ANGELA;03/03/2017;Altri trasferimenti a famiglie n.a.c.;105,00;PACCHETTO SCUOLA A.S. 2015/2016 (SPITALETTA LOMBARDI ANGELO);840;1;4;2;5;999
RAI LAKHPAT;03/03/2017;Altri trasferimenti a famiglie n.a.c.;63,00;PACCHETTO SCUOLA A.S. 2015/2016 (RAI RAHUL);841;1;4;2;5;999
RAI LAKHPAT;03/03/2017;Altri trasferimenti a famiglie n.a.c.;51,00;PACCHETTO SCUOLA A.S. 2015/2016 (RAI DIVYA);842;1;4;2;5;999
SADIK HAKIMA;03/03/2017;Altri trasferimenti a famiglie n.a.c.;45,00;PACCHETTO SCUOLA A.S. 2015/2016 (SAAI ASIIA);843;1;4;2;5;999
SADIK HAKIMA;03/03/2017;Altri trasferimenti a famiglie n.a.c.;57,00;PACCHETTO SCUOLA A.S. 2015/2016 (SAADI YOUSSEF);844;1;4;2;5;999
SANCEBUCHE MACALINTAL EDLYN;03/03/2017;Altri trasferimenti a famiglie n.a.c.;45,00;PACCHETTO SCUOLA A.S. 2015/2016 (PINEDA SANCEBUCHE AIZEL JEDLYN);845;1;4;2;5;999
SAVIO MARIA;03/03/2017;Altri trasferimenti a famiglie n.a.c.;51,00;PACCHETTO SCUOLA A.S. 2015/2016 (VALLIFUOCO ANNA);846;1;4;2;5;999
SCOGNAMIGLIO ANGELA;03/03/2017;Altri trasferimenti a famiglie n.a.c.;51,00;PACCHETTO SCUOLA A.S. 2015/2016 (PARRINI ANDREA);847;1;4;2;5;999
SCOGNAMIGLIO ANGELA;03/03/2017;Altri trasferimenti a famiglie n.a.c.;63,00;PACCHETTO SCUOLA A.S. 2015/2016 (PARRINI ALESSANDRO);848;1;4;2;5;999
SHABA ERMIRA;03/03/2017;Altri trasferimenti a famiglie n.a.c.;36,00;PACCHETTO SCUOLA A.S. 2015/2016 (SHABA HAMDI);849;1;4;2;5;999
SUSANU MARINA MANUELA;03/03/2017;Altri trasferimenti a famiglie n.a.c.;45,00;PACCHETTO SCUOLA A.S. 2015/2016 (SUSANU MARINA ROBERTA);850;1;4;2;5;999
SUSANU MARINA MANUELA;03/03/2017;Altri trasferimenti a famiglie n.a.c.;36,00;PACCHETTO SCUOLA A.S. 2015/2016 (SUSANU IULIAN ALESSIO);851;1;4;2;5;999
TAFA SHAHE;03/03/2017;Altri trasferimenti a famiglie n.a.c.;45,00;PACCHETTO SCUOLA A.S. 2015/2016 (TAFA CATERINA;852;1;4;2;5;999
TAFA SHAHE;03/03/2017;Altri trasferimenti a famiglie n.a.c.;36,00;PACCHETTO SCUOLA A.S. 2015/2016 (TAFA ROBERTO;853;1;4;2;5;999
TAFA SHAHE;03/03/2017;Altri trasferimenti a famiglie n.a.c.;57,00;PACCHETTO SCUOLA A.S. 2015/2016 (TAFA MELISSA);854;1;4;2;5;999
VITAGLIANO GINA;03/03/2017;Altri trasferimenti a famiglie n.a.c.;84,00;PACCHETTO SCUOLA A.S. 2015/2016 (DIENG AIDA);855;1;4;2;5;999
ARCOGAS ITALIA S.R.L.;03/03/2017;Manutenzione ordinaria e riparazioni di impianti e macchinari;76,23;IVA - Liquidazione Fattura Nr. 2162  del 29/12/2016 al netto di Nota: N. 12 del 24/02/2017 di 0,02 - DET 158/2016_NOLEGGIO E RIEMPIMENTO BOMBOLE OSSIGENO E ACETILENE_AFFIDAMENTO DITTA ARCOGAS;856;1;3;2;9;4
ARCOGAS ITALIA S.R.L.;03/03/2017;Manutenzione ordinaria e riparazioni di impianti e macchinari;346,48;Liquidazione Fattura Nr. 2162  del 29/12/2016 al netto di Nota: N. 12 del 24/02/2017 di 0,02 - DET 158/2016_NOLEGGIO E RIEMPIMENTO BOMBOLE OSSIGENO E ACETILENE_AFFIDAMENTO DITTA ARCOGAS;856;1;3;2;9;4
EDILCURTO S.R.L.;03/03/2017;Fabbricati ad uso scolastico;385,08;IVA - Liquidazione Fattura Nr. 1  del 30/12/2016 -  REALIZZAZIONE OPERE MURARIE PALESTRA _ DET. N. 292/2016 A CONTRARRE E AFFIDAMENTO DITTA EDILCURTO SRL;857;2;2;1;9;3
EDILCURTO S.R.L.;03/03/2017;Fabbricati ad uso scolastico;1.750,36;Liquidazione Fattura Nr. 1  del 30/12/2016 -  REALIZZAZIONE OPERE MURARIE PALESTRA _ DET. N. 292/2016 A CONTRARRE E AFFIDAMENTO DITTA EDILCURTO SRL;857;2;2;1;9;3
PANTANELLI PIERPAOLO;03/03/2017;Patrocinio legale;2.536,70;LIQUIDAZIONE FATTURA NR. 00004/01  DEL 09/12/2016 - PROCEDURA DI MEDIAZIONE 2016/1887 - ACCONTO;858;1;3;2;11;6
ETRURIA P.A. SRL;03/03/2017;Carta, cancelleria e stampati;18,70;IVA Liquidazione Fattura Nr. 177/00000  del 31/01/2017 - FORNITURA N. 1000 CARTELLINI PER CARTE IDENTITA'DETERMINA N. 159 DEL 11/10/2016;859;1;3;1;2;1
ETRURIA P.A. SRL;03/03/2017;Carta, cancelleria e stampati;85,00;Liquidazione Fattura Nr. 177/00000  del 31/01/2017 - FORNITURA N. 1000 CARTELLINI PER CARTE IDENTITA'DETERMINA N. 159 DEL 11/10/2016;859;1;3;1;2;1
DAMAZ S.R.L. - INGROSSO CASALINGHI;03/03/2017;Altri beni e materiali di consumo n.a.c.;4,12;IVA Liquidazione Fattura Nr. 12234P  del 15/12/2016 (di cui Split per euro 4,12) - Ordine n. 4 per Vinci garage 2� consegna ;860;1;3;1;2;999
DAMAZ S.R.L. - INGROSSO CASALINGHI;03/03/2017;Altri beni e materiali di consumo n.a.c.;18,74;Liquidazione Fattura Nr. 12234P  del 15/12/2016 - Ordine n. 4 per Vinci garage 2� consegna ;860;1;3;1;2;999
ISTITUTO COMPRENSIVO DI VINCI;03/03/2017;Trasferimenti correnti a Ministero dell'Istruzione - Istituzioni scolastiche;2.837,46;CONTRIBUTI REGIONALI E COMUNALI PEZ A.S.2016/17 E CONTRIBUTO COMUNALE PER SPESE DI FUNZIONAMENTO DELL'ISTITUTO COMPRENSIVO -  IMPEGNO DI SPESA E LIQUIDAZIONE CONTRIBUTO REGIONALE PEZ E PRIMO ACCONTO DEL CONTRIBUTO COMUNALE PER IL FUNZIONAME;861;1;4;1;1;2
ISTITUTO COMPRENSIVO DI VINCI;03/03/2017;Trasferimenti correnti a Ministero dell'Istruzione - Istituzioni scolastiche;8.431,37;CONTRIBUTI REGIONALI E COMUNALI PEZ A.S.2016/17 E CONTRIBUTO COMUNALE PER SPESE DI FUNZIONAMENTO DELL'ISTITUTO COMPRENSIVO -  IMPEGNO DI SPESA E LIQUIDAZIONE CONTRIBUTO REGIONALE PEZ E PRIMO ACCONTO DEL CONTRIBUTO COMUNALE PER IL FUNZIONAME;862;1;4;1;1;2
CIR FOOD S.C. DIVISIONE EUDANIA;03/03/2017;Contratti di servizio per le mense scolastiche;76,11;IVA-Liquidazione Fattura Nr. 5200033490  del 15/12/2016 (di cui Split per euro 76,11) - Restituzione ritenute dello 0,50 anni 2015 e 2016;863;1;3;2;15;6
CIR FOOD S.C. DIVISIONE EUDANIA;03/03/2017;Contratti di servizio per le mense scolastiche;1.902,66;Liquidazione Fattura Nr. 5200033490  del 15/12/2016 - Restituzione ritenute dello 0,50 anni 2015 e 2016;863;1;3;2;15;6
FRATERNITA MISERICORDIA DI VINCI;03/03/2017;Altri servizi ausiliari n.a.c.;4.072,00;Liquidazione Fattura Nr. FATTPA 21_16  del 22/12/2016 - convenzione custodia Teatro mesi sett- nov 2016;864;1;3;2;13;999
FRATERNITA MISERICORDIA DI VINCI;03/03/2017;Altri servizi ausiliari n.a.c.;1.357,00;Liquidazione Fattura Nr. FATTPA 22_16  del 22/12/2016 - convenzione custodia Teatro Misericordia mese dicembre 2016;864;1;3;2;13;999
PROMOCULTURA SOCIETA' COOPERATIVA A.R.L..;03/03/2017;Altre spese per contratti di servizio pubblico;170,28;IVA - Liquidazione Fattura Nr. 172-E-2016  del 21/12/2016 - Oneri per la sicurezza servizi Museo Leonardiano mesi di ottobre e novembre 2016 CIG ZF41B6394F CAPITOLO 3300/11 Det. 109-2016;865;1;3;2;15;999
PROMOCULTURA SOCIETA' COOPERATIVA A.R.L..;03/03/2017;Altre spese per contratti di servizio pubblico;774,00;LIQUIDAZIONE FATTURA NR. 172-E-2016  DEL 21/12/2016 - ONERI PER LA SICUREZZA SERVIZI MUSEO LEONARDIANO MESI DI OTTOBRE E NOVEMBRE 2016 CIG ZF41B6394F CAPITOLO 3300/11 DET. 109-2016;865;1;3;2;15;999
MAESTRELLI ANDREA;03/03/2017;Altre prestazioni professionali e specialistiche n.a.c.;990,00;"Liquidazione Fattura Nr. 5  del 09/12/2016 - DETERMINA DI SPESE DEL COMUNE DI VINCI N.153 DEL 7/12/2016 E NUMERO CIG Z4C1C1D007
PRESTAZIONE ARTISTICA DEL 09/12/2016";866;1;3;2;11;999
CENTRO  FORMAZIONE E CULTURA MUSICALE;03/03/2017;Trasferimenti correnti a Istituzioni Sociali Private ;9.600,00;SALDO VERSAMENTO CONTRIBUTO AL CENTRO DI FORMAZIONE E CULTURA MUSICALE DI SOVIGLIANA  DET.10 DEL 21/02/17 SETT. 5;867;1;4;4;1;1
L'AVVENIRE 1921 S.C. IMPRESA GENERALE COSTRUZIONI;03/03/2017;Mobili e arredi n.a.c.;72,13;IVA Liquidazione Fattura Nr. 14 /9  del 22/12/2016 (di cui Split per euro 72,13) - FATTURA DI VENDITA PA SPLIT PAYMENT;868;2;2;1;3;999
L'AVVENIRE 1921 S.C. IMPRESA GENERALE COSTRUZIONI;03/03/2017;Mobili e arredi n.a.c.;327,87;Liquidazione Fattura Nr. 14 /9  del 22/12/2016 - FATTURA DI VENDITA PA SPLIT PAYMENT;868;2;2;1;3;999
BALDANZI LUIGI & FIGLI  S.R.L.;03/03/2017;Attrezzature n.a.c.;127,60;IVA Liquidazione Fattura Nr. 22 del 29/12/2016 - ACQUISTO ELEMENTI DI SEGNALETICA PER WIFI A SOVIGLIANA;869;2;2;1;5;999
BALDANZI LUIGI & FIGLI  S.R.L.;03/03/2017;Attrezzature n.a.c.;580,00;Liquidazione Fattura Nr. 22 del 29/12/2016 - ACQUISTO ELEMENTI DI SEGNALETICA PER WIFI A SOVIGLIANA;869;2;2;1;5;999
AGBEZOUHLON GNAMIEN PELAGIE;06/03/2017;Altri trasferimenti a famiglie n.a.c.;210,00;PACCHETTO SCUOLA A.S. 2016/2017 (N'GUESSAN KONAN WLEHNQBI);871;1;4;2;5;999
AGBEZOUHLON GNAMIEN PELAGIE;06/03/2017;Altri trasferimenti a famiglie n.a.c.;150,00;PACCHETTO SCUOLA A.S. 2016/2017 (N'GUESSAN KOUASSI SAHNIAN);872;1;4;2;5;999
AGBEZOUHLON GNAMIEN PELAGIE;06/03/2017;Altri trasferimenti a famiglie n.a.c.;280,00;PACCHETTO SCUOLA A.S. 2016/2017 (N'GUESSAN YAO VYHA);873;1;4;2;5;999
ANTOCI IOSIF;06/03/2017;Altri trasferimenti a famiglie n.a.c.;190,00;PACCHETTO SCUOLA A.S. 2016/2017 (ANTOCI ADINA CATALINA);874;1;4;2;5;999
ANTOCI IOSIF;06/03/2017;Altri trasferimenti a famiglie n.a.c.;150,00;PACCHETTO SCUOLA A.S. 2016/2017 (ANTOCI ELIZA ANDREIA);875;1;4;2;5;999
BERCHIELLI ALBA;06/03/2017;Altri trasferimenti a famiglie n.a.c.;170,00;PACCHETTO SCUOLA A.S. 2016/2017 (BERTELLI STEFANO);876;1;4;2;5;999
BILANGO CESAR;06/03/2017;Altri trasferimenti a famiglie n.a.c.;190,00;PACCHETTO SCUOLA A.S. 2016/2017 (BILANGO MAUREEN JENN);877;1;4;2;5;999
BILANGO CESAR;06/03/2017;Altri trasferimenti a famiglie n.a.c.;280,00;PACCHETTO SCUOLA A.S. 2016/2017 (BILANGO ANGELINA);878;1;4;2;5;999
BONI PAMELA;06/03/2017;Altri trasferimenti a famiglie n.a.c.;150,00;PACCHETTO SCUOLA  A.S. 2016/2017 (STEFANACCI SARA);879;1;4;2;5;999
BORGIOLI MARIA GRAZIA;06/03/2017;Altri trasferimenti a famiglie n.a.c.;190,00;PACCHETTO SCUOLA A.S. 2016/2017 (POLICICCHIO DOMENICO);880;1;4;2;5;999
BORGIOLI MARIA GRAZIA;06/03/2017;Altri trasferimenti a famiglie n.a.c.;190,00;PACCHETTO SCUOLA A.S. 2016/2017 (POLICICCHIO NICOLETTA);881;1;4;2;5;999
CAPOANO MARGHERITA;06/03/2017;Altri trasferimenti a famiglie n.a.c.;150,00;PACCHETTO SCUOLA A.S. 2016/2017 (FIORE GIOVANNI);882;1;4;2;5;999
CAPPELLINI CATIUSCIA;06/03/2017;Altri trasferimenti a famiglie n.a.c.;170,00;PACCHETTO SCUOLA A.S. 2016/2017 (GUARGUALINI NICCOLO');883;1;4;2;5;999
CECCONI STEFANO;06/03/2017;Altri trasferimenti a famiglie n.a.c.;190,00;PACCHETTO SCUOLA A.S. 2016/2017 (CECCONI LISA);884;1;4;2;5;999
CULLHAJ ROZETA;06/03/2017;Altri trasferimenti a famiglie n.a.c.;150,00;PACCHETTO SCUOLA A.S. 2016/2017 (CULLHAJ ERIS);885;1;4;2;5;999
CULLHAJ ROZETA;06/03/2017;Altri trasferimenti a famiglie n.a.c.;210,00;PACCHETTO SCUOLA A.S. 2016/2017 (CULLHAJ JESSICA);886;1;4;2;5;999
EZZAHIDY  ZOHRA;06/03/2017;Altri trasferimenti a famiglie n.a.c.;190,00;PACCHETTO SCUOLA A.S. 2016/2017 (TABET ZAKARIA);887;1;4;2;5;999
FALCO GIUSEPPE;06/03/2017;Altri trasferimenti a famiglie n.a.c.;190,00;PACCHETTO SCUOLA  A.S. 2016/2017 (FALCO CAMILLA);888;1;4;2;5;999
FALCO GIUSEPPE;06/03/2017;Altri trasferimenti a famiglie n.a.c.;190,00;PACCHETTO SCUOLA  A.S. 2016/2017 (FALCO FEDERICA);889;1;4;2;5;999
FERRARA ANDREA;06/03/2017;Altri trasferimenti a famiglie n.a.c.;150,00;PACCHETTO SCUOLA A.S. 2016/2017 (FERRARA MATTIA);890;1;4;2;5;999
GANA SULTANA;06/03/2017;Altri trasferimenti a famiglie n.a.c.;190,00;PACCHETTO SCUOLA A.S. 2016/2017 (BENANI AHMED);891;1;4;2;5;999
GIOIA MASSIMO;06/03/2017;Altri trasferimenti a famiglie n.a.c.;190,00;PACCHETTO SCUOLA A.S. 2016/2017 (GIOIA FEDERICA);892;1;4;2;5;999
GIOIA MASSIMO;06/03/2017;Altri trasferimenti a famiglie n.a.c.;150,00;PACCHETTO SCUOLA A.S. 2016/2017 (GIOIA LUCIA);893;1;4;2;5;999
GIUNTINI ELISA;06/03/2017;Altri trasferimenti a famiglie n.a.c.;170,00;PACCHETTO SCUOLA A.S. 2016/2017 (ARAMINI ASIA);894;1;4;2;5;999
KADIJA PRANDVERA;06/03/2017;Altri trasferimenti a famiglie n.a.c.;210,00;PACCHETTO SCUOLA  A.S. 2016/2017 (KADIJA JURGEN);895;1;4;2;5;999
KADRIA BURHAN;06/03/2017;Altri trasferimenti a famiglie n.a.c.;150,00;PACCHETTO SCUOLA A.S. 2016/2017 (KADRIA ERGISA);896;1;4;2;5;999
KAMARI ZINEB;06/03/2017;Altri trasferimenti a famiglie n.a.c.;280,00;PACCHETTO SCUOLA A.S. 2016/2017 (MANAR IMAD);897;1;4;2;5;999
LAMSSAKHER RAHHAL;06/03/2017;Altri trasferimenti a famiglie n.a.c.;150,00;PACCHETTO SCUOLA A.S. 2016/2017 (LAMMSSAKHER IKRAM);898;1;4;2;5;999
LOPARDO RAFFAELLA;06/03/2017;Altri trasferimenti a famiglie n.a.c.;190,00;PACCHETTO SCUOLA A.S. 2016/2017 (DA NAZARET FABIO);899;1;4;2;5;999
LUPICA TONDO  SALVATORE;06/03/2017;Altri trasferimenti a famiglie n.a.c.;150,00;PACCHETTO SCUOLA A.S. 2016/2017 (LUPICA TONDO ALESSIO);900;1;4;2;5;999
LUPICA TONDO  SALVATORE;06/03/2017;Altri trasferimenti a famiglie n.a.c.;150,00;PACCHETTO SCUOLA A.S. 2016/2017 (LUPICA TONDO MARTINA);901;1;4;2;5;999
MANAR MIRIAM;06/03/2017;Altri trasferimenti a famiglie n.a.c.;190,00;PACCHETTO SCUOLA A.S. 2016/2017 (MANAR MIRIAM);902;1;4;2;5;999
MARO  ETLEVA;06/03/2017;Altri trasferimenti a famiglie n.a.c.;280,00;PACCHETTO SCUOLA A.S. 2016/2017 (MARO KLEA);903;1;4;2;5;999
MARO  ETLEVA;06/03/2017;Altri trasferimenti a famiglie n.a.c.;190,00;PACCHETTO SCUOLA A.S. 2016/2017 (MARO SIMONE);904;1;4;2;5;999
MASSAINI MASSIMILIANO;06/03/2017;Altri trasferimenti a famiglie n.a.c.;150,00;PACCHETTO SCUOLA A.S. 2016/2017 (MASSAINI SAMUELE);905;1;4;2;5;999
MECACCI KATIA;06/03/2017;Altri trasferimenti a famiglie n.a.c.;280,00;PACCHETTO SCUOLA A.S. 2016/2017 (BERNARDI DENISE);906;1;4;2;5;999
MEZGUI HOUDA;06/03/2017;Altri trasferimenti a famiglie n.a.c.;190,00;PACCHETTO SCUOLA A.S. 2016/2017 (KAMAL ILYASS);907;1;4;2;5;999
MEZGUI HOUDA;06/03/2017;Altri trasferimenti a famiglie n.a.c.;210,00;PACCHETTO SCUOLA A.S. 2016/2017 (KAMAL DOHA);908;1;4;2;5;999
MICHELI GIANLUCA;06/03/2017;Altri trasferimenti a famiglie n.a.c.;190,00;PACCHETTO SCUOLA  A.S. 2016/2017 (MICHELI GIANLUCA);909;1;4;2;5;999
MILITELLO SERENA;06/03/2017;Altri trasferimenti a famiglie n.a.c.;280,00;PACCHETTO SCUOLA A.S. 2016/2017 (BARRANCA GABRIELE);910;1;4;2;5;999
MOCKA  KRISTAQ;06/03/2017;Altri trasferimenti a famiglie n.a.c.;210,00;PACCHETTO SCUOLA A.S. 2016/2017 (MOCKA BENEDETTA);911;1;4;2;5;999
MOULHAM RACHIDA;06/03/2017;Altri trasferimenti a famiglie n.a.c.;210,00;PACCHETTO SCUOLA A.S. 2016/2017 (HARRAT OMEMA;912;1;4;2;5;999
MOULHAM RACHIDA;06/03/2017;Altri trasferimenti a famiglie n.a.c.;280,00;PACCHETTO SCUOLA A.S. 2016/2017 (HARRAT RAHIANA;913;1;4;2;5;999
MOULHAM RACHIDA;06/03/2017;Altri trasferimenti a famiglie n.a.c.;190,00;PACCHETTO SCUOLA A.S. 2016/2017 (HARRAT AYOUB);914;1;4;2;5;999
MURARO MARIA;06/03/2017;Altri trasferimenti a famiglie n.a.c.;280,00;PACCHETTO SCUOLA A.S. 2016/2017 (DESIDERI GAIA);915;1;4;2;5;999
OSA RIVERA NELTIS;06/03/2017;Altri trasferimenti a famiglie n.a.c.;280,00;PACCHETTO SCUOLA  A.S. 2016/2017 (MICHELI ALESSANDRO);916;1;4;2;5;999
OUAZINE SAMIRA;06/03/2017;Altri trasferimenti a famiglie n.a.c.;150,00;PACCHETTO SCUOLA A.S. 2016/2017 (MIFTAH RIHAB);917;1;4;2;5;999
PACLEB MYRNA;06/03/2017;Altri trasferimenti a famiglie n.a.c.;170,00;PACCHETTO SCUOLA A.S. 2016/2017 (BILGERA ASHLEY WINSLET);918;1;4;2;5;999
PINEDA SANTOS JING JING;06/03/2017;Altri trasferimenti a famiglie n.a.c.;150,00;PACCHETTO SCUOLA A.S. 2016/2017 (PINEDA SANCEBUCHE AIZEL JEDLYN);919;1;4;2;5;999
POLITO PATRIZIA;06/03/2017;Altri trasferimenti a famiglie n.a.c.;280,00;PACCHETTO SCUOLA A.S. 2016/2017 (BERTELLI NICCOLO');920;1;4;2;5;999
POLITO PATRIZIA;06/03/2017;Altri trasferimenti a famiglie n.a.c.;190,00;PACCHETTO SCUOLA A.S. 2016/2017 (BERTELLI VALERY);921;1;4;2;5;999
POLITO PATRIZIA;06/03/2017;Altri trasferimenti a famiglie n.a.c.;170,00;PACCHETTO SCUOLA A.S. 2016/2017 (BERTELLI THOMAS;922;1;4;2;5;999
RAFIE EL HASSANE;06/03/2017;Altri trasferimenti a famiglie n.a.c.;150,00;PACCHETTO SCUOLA A.S. 2016/2017 (RAFIE MOHAMED);923;1;4;2;5;999
RAFIE EL HASSANE;06/03/2017;Altri trasferimenti a famiglie n.a.c.;280,00;PACCHETTO SCUOLA A.S. 2016/2017 (RAFIE HASNAA);924;1;4;2;5;999
